Workbook

Sheet Cover
C7: VIP-Rehab
C8: Sustainable Mine Rehabilitation Calculator
C11: An interactive model to explore the risk or erosion following mine site rehabilitation through the outcome of alternative rehabilitation design scenarios using Bayesian modelling
C14: ACARP Project C240331 and C28044
C16: V9.1
C17: 2021-06-17
C21: Click for contents

Sheet Contents
B2: Contents & Workflow
B5: Cover | C5: Index sheet
B6: Instructions | C6: Model instructions
B7: Scenarios | C7: A summary of the scenarios modelled
B8: Location & Climate | C8: Site location and climate data
B9: Cum RF Calculations | C9: Cumulative rainfall calculations
B10: Climate Assumptions | C10: Climate modelling assumptions
B11: Interventions | C11: Rehabilitation design interventions
B12: Soil Chemical | C12: Soil chemical attributes (from laboratory analysis)
B13: Soil Physical | C13: Soil physical attributes (from laboratory analysis)
B14: Vegetation | C14: Vegetatation structure and nutrient status
B15: Lists | C15: Drop down reference lists
B16: Scenarios Combined | C16: A summary of the data inputs for each scenario
B17: Data Form | C17: Netica data entry form (compiled from data inputs)
B18: Mine rehab erosion risk tool | C18: https://mine-rehabilitation.net.au/
B19: Results | C19: Raw data results from Netica
B20: Outputs | C20: Netica model outputs for each modelled scenario

Sheet Instructions
A1: Data entry and error checking
A2: 1 | B2: Each attribute of rehabilitation design or site characteristic is a "Node" in the model
A3: 2 | B3: Each Node in the model is categorised into a number of possible "States"
A4: 3 | B4: All data for each "State" of a "Node" is entered as either a categorical variable or continuous value.
A5: 4 | B5: All categorical variables are selected from drop-down menus in clear (unshaded) cells.
A6: 5 | B6: All continuous values are entered in green shaded cells. All entry values are supported by automated error checking. Cells with out-of-range values will be shaded red. Cells with in-range values will remain shaded green.
A7: 6 | B7: Do not copy and paste data from outside the workbook. Enter values or select drop-downs directly. Alternate scenarios may be compiled by copy and pasting columns within the workbook.
A8: 7 | B8: Continuous values will be automatically categorised into classes by the model. The range of each class for continuous variables is detailed in the help note for the respective variable.
A9: 8 | B9: Every cell in the data sheet must have either: (i) a categorical value; (ii) a numerical value; or (iii) a hyphen (-) if unknown. No cell can be left blank.
A10: Scenarios
A11: 1 | B11: Select a climate description from the drop-down menu for each scenario
A12: 2 | B12: Enter a description of each scenario to differentiate conditions or planned treatments at a site.
A13: Location & Climate
A14: 1 | B14: The model can simulate erosion outcomes for only one site at a time. For each site, the model can evaluate up to 20 scenarios simultaneously. A new data input file is required for each different location.
A15: 2 | B15: Enter the latitude and longitude in degrees, minutes and seconds for the centroid of the target site. Alternatively, enter the decimal degrees in the "Degrees" line only. The program will use this to automatically access the climate data for the site.
A16: 3 | B16: Climate data is automatically filled using a Macro. If this function doesn’t work, it will be necessary to change your computer's Macros settings: > Select "File" > Select "Options" > Select "Trust Centre" > Select "Trust Centre Settings" > Select "Macro Settings" > Select "Disable all Macros with notification" > Click "OK"
A17: Cumulative Rainfall Calculations
A18: 1 | B18: No action required. This sheet automatically calculates the likely cumulative rainfall for 36 two month periods and three rainfall intensity options: Low (Decile 1); Average and High (Decile 9). Results provide input to the Climate Assumptions sheet.
A19: Climate Assumptions
A20: 1 | B20: The model allows simulation of conditions in a Low (Decile 1); Average (Average); and High (Decile 9) rainfall year. These rainfall conditions are selected from a drop-down menu for each scenario.
A21: 2 | B21: The probability of an erosive rainfall event (>50mm/hr) is an inherent characteristic of the site. This will be accessed automatically from the BOM website.
A22: 3 | B22: Gypsum is activated by rainfall after application. Enter the month and date of planned gypsum application. The program will automatically calculate the likely cumulative rainfall 2 months after the planned application.
A23: Interventions
A24: 1 | B24: A range of interventions are incorporated in the model reflecting common design criteria. The "State" of each intervention can be selected to explore the effect of different rehabilitation design features.
A25: 2 | B25: Interventions to soil are applied to three layers: Layer 1 = Topsoil; Layer 2 = Upper 50cm of Spoil; Layer 3 = Spoil below 50cm depth. Layer 3 is rarely used (select "-" if not used).
A26: Soil Chemical
A27: 1 | B27: Enter soil and spoil chemical attributes from the average of soil and spoil analysis results for the site being modelled
A28: 2 | B28: Soil and Spoil chemical characteristics relate to three layers: Layer 1 = Topsoil; Layer 2 = Upper 50cm of Spoil; Layer 3 = Spoil below 50cm depth. Layer 3 is rarely used (select "-" if not used).
A29: 3 | B29: Scenarios may include the expected soil attributes after amelioration.
A30: Soil Physical
A31: 1 | B31: Enter soil and spoil physical attributes from the average of soil and spoil analysis results for the site being modelled
A32: 2 | B32: Soil and Spoil physical characteristics relate to two layers: Layer 1 = Topsoil; Layer 2 = Upper 50cm of Spoil. Layer 3 is rarely used (select "-" if not used).
A33: Vegetation
A34: 1 | B34: Select the state of soil condition attributes that directly affect vegetation cover (Soil nutrient status and topsoil organic matter)
A35: 2 | B35: Select the state of the vegetation cover attributes targeted as an outcome of rehabilitation and revegetation activities. This should be considered as the state of vegetation that would be revealed by monitoring results 12 months after revegetation.
A36: Lists
A37: 1 | B37: No action required. This sheet is for drop-down menu lists
A38: Scenarios combined
A39: 1 | B39: No action required. This sheet collates all data inputs
A40: Data form
A41: 1 | B41: This step involves compiling the data form ready to run in the Mine Reabilitation Erosion Risk Tool
A42: 2 | B42: Open the data form tab
A43: 3 | B43: In the "File" tab, select save a copy, click on "Save as", then select "CSV (Comma delimited) (*.csv)" from the drop down menu
A44: 4 | B44: The data form is now ready to upload to the Mine Reabilitation Erosion Risk Tool
A45: Web Tool | B45: Runnining the mine rehabilitaton erosion risk tool
A46: 1 | B46: Open the website: https://mine-rehabilitation.net.au/
A47: 2 | B47: Log in and click on the "Batch slope performance" button from the tools menu
A48: 3 | B48: Click in the box under "Verterra Netica Integration" and navigate to the data form saved as csv to upload. Alternatively, drag and drop the data form into the box
A49: 4 | B49: The Mine Rehabilitation Erosion Risk Tool will process the data and return the results as a .csv file. This may take a few minutes. If the results workbook doesn’t appear at the bottom of the browser window, it may be found in your computer's "Downloads" folder.
A50: Results
A51: 1 | B51: Open the raw results form (.csv) from above and copy all columns with values
A52: 2 | B52: Open the "Results" tab in this workbook, and paste in the raw results, starting in the top left corner (cell A1)
A53: 3 | B53: Delete any columns that do not relate to a tested scenario.
A54: Output
A55: 1 | B55: Open the "Output" tab from this workbook
A56: 2 | B56: The results will be displayed in tabualar and graphical format
A57: 3 | B57: If additional results colums are required: i. insert columns to the left of the shaded column ii. Drag the right-most results column to fill the space created
A58: 4 | B58: Review data output. The preferred scenario has the lowest relative erosion risk.

Sheet Scenarios
A2: Scenario number | B2: Climate Description | C2: Scenario Description
A3: Scenario 01: | B3: ='Climate Assumptions'!F$3 -> Average Year | C3: 1. Pre-amendment
A4: Scenario 02: | B4: ='Climate Assumptions'!G$3 -> Average Year | C4: 2. Rock mulch treatment
A5: Scenario 03: | B5: ='Climate Assumptions'!H$3 -> Average Year | C5: 3. Post-amendment
A6: Scenario 04: | B6: ='Climate Assumptions'!I$3 -> Average Year | C6: 4. Post-amendment (Reduced treatment depth)
A7: Scenario 05: | B7: ='Climate Assumptions'!J$3 -> Average Year | C7: 5. Post-amendment (Reduced treatment ESP)
A8: Scenario 06: | B8: ='Climate Assumptions'!K$3 -> Average Year | C8: 6. Post-amendment (Reduced treatment depth and ESP)
A9: Scenario 07: | B9: ='Climate Assumptions'!L$3 -> - | C9: -
A10: Scenario 08: | B10: ='Climate Assumptions'!M$3 -> - | C10: -
A11: Scenario 09: | B11: ='Climate Assumptions'!N$3 -> - | C11: -
A12: Scenario 10: | B12: ='Climate Assumptions'!O$3 -> - | C12: -
A13: Scenario 11: | B13: ='Climate Assumptions'!P$3 -> - | C13: -
A14: Scenario 12: | B14: ='Climate Assumptions'!Q$3 -> - | C14: -
A15: Scenario 13: | B15: ='Climate Assumptions'!R$3 -> - | C15: -
A16: Scenario 14: | B16: ='Climate Assumptions'!S$3 -> - | C16: -
A17: Scenario 15: | B17: ='Climate Assumptions'!T$3 -> - | C17: -
A18: Scenario 16: | B18: ='Climate Assumptions'!U$3 -> - | C18: -
A19: Scenario 17: | B19: ='Climate Assumptions'!V$3 -> - | C19: -
A20: Scenario 18: | B20: ='Climate Assumptions'!W$3 -> - | C20: -
A21: Scenario 19: | B21: ='Climate Assumptions'!X$3 -> - | C21: -
A22: Scenario 20: | B22: ='Climate Assumptions'!Y$3 -> - | C22: -

Sheet Location & Climate
B2: Location
B3: Site name
B4: Lake Lindsay
B6: Centroid for location
B7: Coordinates | C7: Latitude | D7: Longitude | J7: User input | M7: Note: pressing the button will clear your edit history
B8: Degrees | C8: -23 | D8: 147.3 | J8: Auto input (macro) | M8: YOU WILL NOT BE ABLE TO UNDO CHANGES
B9: Minutes | C9: 0 | D9: 0
B10: Seconds | C10: 0 | D10: 0
B11: Decimal coordinates | C11: =C8+(C9/60)+(C10/3600) -> -23.00 | D11: =D8+(D9/60)+(D10/3600) -> 147.30
B13: Rainfall variability
B14: Rainfall Summary | C14: Decile 1 year | D14: Average Year | E14: Decile 9 Year
B15: Annual rainfall (mm/yr) | C15: =O20 -> 47.37 | D15: =O19 -> 607 | E15: =O21 -> 1347
B17: Monthly averages
B18: Climate parameters | C18: Jan | D18: Feb | E18: Mar | F18: Apr | G18: May | H18: Jun | I18: Jul | J18: Aug | K18: Sep | L18: Oct | M18: Nov | N18: Dec | O18: Totals
B19: Average monthly rainfall (mm) | C19: 109.1 | D19: 109.6 | E19: 62.2 | F19: 32.6 | G19: 33.9 | H19: 29.0 | I19: 29.7 | J19: 19.9 | K19: 16.7 | L19: 35.3 | M19: 53.7 | N19: 75.2 | O19: =SUM(Rain) -> 607
B20: Decile 1 monthly rainfall (mm) | C20: 20.9 | D20: 11.2 | E20: 0.5 | F20: 0.0 | G20: 0.0 | H20: 0.0 | I20: 0.0 | J20: 0.0 | K20: 0.0 | L20: 0.2 | M20: 2.0 | N20: 12.6 | O20: =SUM(Rain10) -> 47
B21: Decile 9 monthly rainfall (mm) | C21: 197.4 | D21: 240.6 | E21: 160.9 | F21: 88.1 | G21: 79.8 | H21: 65.3 | I21: 76.7 | J21: 49.3 | K21: 43.6 | L21: 77.2 | M21: 117.3 | N21: 151.1 | O21: =SUM(Rain90) -> 1347
B22: Mean monthly evap. (mm) | C22: 230.5 | D22: 186.5 | E22: 192.2 | F22: 149.9 | G22: 113.3 | H22: 88.3 | I22: 98.4 | J22: 131.7 | K22: 177.3 | L22: 225.2 | M22: 235.4 | N22: 251.8 | O22: =SUM(Evap) -> 2080
B23: Mean maximum temperature (oC) | C23: 39.9 | D23: 36.4 | E23: 34.8 | F23: 31.2 | G23: 28.7 | H23: 25.0 | I23: 25.2 | J23: 29.1 | K23: 31.9 | L23: 34.7 | M23: 35.7 | N23: 37.3 | O23: =AVERAGE(MaxT) -> 32
B24: Mean minimum termperature (oC) | C24: 18.0 | D24: 18.4 | E24: 16.2 | F24: 11.6 | G24: 6.8 | H24: 2.9 | I24: 2.6 | J24: 3.6 | K24: 7.8 | L24: 12.1 | M24: 16.2 | N24: 17.8 | O24: =AVERAGE(MinT) -> 11
B26: Rainfall Intensity, Frequency, Duration (IFD) - Probabilty of greater than 50mm/hr
B27: Annual exceedance probability AEP (1 in x) | C27: 1.58 | D27: 2 | E27: 5 | F27: 10 | G27: 20 | H27: 50 | I27: 100
B28: Annual exceedance probability (AEP) (%) | C28: 63.2 | D28: 50 | E28: 20 | F28: 10 | G28: 5 | H28: 2 | I28: 1
B29: Model Class | C29: Very High | D29: Very High | E29: High | F29: High | G29: Moderate | H29: Moderate | I29: Low
B30: Annual return interval (ARI) | C30: 1 | D30: 1.44 | E30: 4.48 | F30: 9.49 | G30: 20 | H30: 50 | I30: 100
B31: Exceedance per year (EY) | C31: 1 | D31: 0.69 | E31: 0.22 | F31: 0.11 | G31: 0.05 | H31: 0.02 | I31: 0.01
B32: 1 hour duration | C32: 31.3 | D32: 35.3 | E32: 48.1 | F32: 56.9 | G32: 65.7 | H32: 77.7 | I32: 87.0
B33: Threshold rainfall (mm/hr) | C33: 50 | D33: 50 | E33: 50 | F33: 50 | G33: 50 | H33: 50 | I33: 50
B34: Rainfall/hr greater than threshold (mm) | C34: =IF(C32-C33<0,"",C32-C33) ->  | D34: =IF(D32-D33<0,"",D32-D33) ->  | F34: 6.9 | G34: 15.7 | H34: 27.7 | I34: 37
B35: Probabilty of greater than theshold (50mm/hr) | C35: =SUM(IF(C34:I34=(MIN(C34:I34)),C27:I27,0)) -> 10
B36: IFD Class | C36: =HLOOKUP(C35,C28:I29,2,FALSE) -> High
B38: Data links
B39: Link to BOM climate averages | C39: http://www.bom.gov.au/climate/data/index.shtml?bookmark=200
B40: Link to BOM rainfall IFD | C40: http://www.bom.gov.au/water/designRainfalls/revised-ifd/?year=2016
B41: Explanation of rainfall IFD | C41: http://www.bom.gov.au/water/designRainfalls/ifd/ifd-faq.shtml#sec1q5

Sheet Cum RF Calcs
A1: Cumulative Rainfall 2 month after Gypsum Treatment
A2: Cumulative Rainfall Calcs - Decile 1 year | B2: Month | E2: January | F2: February | G2: March | H2: April | I2: May | J2: June | K2: July | L2: August | M2: September | N2: October | O2: November | P2: December | R2: CumulativeRainfall_2month1 | S2: Cumulative rainfall
B3: Days per month | C3: Start | D3: End | E3: 31 | F3: 28 | G3: 31 | H3: 30 | I3: 31 | J3: 30 | K3: 31 | L3: 31 | M3: 30 | N3: 31 | O3: 30 | P3: 31 | R3: Very Low | S3: 0 - 25 mm
B4: Decile 1 Monthly Rainfall | E4: ='Location & Climate'!C20 -> 21 | F4: ='Location & Climate'!D20 -> 11 | G4: ='Location & Climate'!E20 -> 0 | H4: ='Location & Climate'!F20 -> 0 | I4: ='Location & Climate'!G20 -> 0 | J4: ='Location & Climate'!H20 -> 0 | K4: ='Location & Climate'!I20 -> 0 | L4: ='Location & Climate'!J20 -> 0 | M4: ='Location & Climate'!K20 -> 0 | N4: ='Location & Climate'!L20 -> 0 | O4: ='Location & Climate'!M20 -> 2 | P4: ='Location & Climate'!N20 -> 13 | R4: Low | S4: 25 - 75 mm
A5: Decile 1 Year10 | B5: Start (1-10) | C5: 1 | D5: 10 | E5: =SUM(E4:F4) -> 32 | F5: =SUM(F4:G4) -> 12 | G5: =SUM(G4:H4) -> 0 | H5: =SUM(H4:I4) -> 0 | I5: =SUM(I4:J4) -> 0 | J5: =SUM(J4:K4) -> 0 | K5: =SUM(K4:L4) -> 0 | L5: =SUM(L4:M4) -> 0 | M5: =SUM(M4:N4) -> 0 | N5: =SUM(N4:O4) -> 2 | O5: =SUM(O4:P4) -> 15 | P5: =P4+E4 -> 34 | R5: Moderate | S5: 75 - 120 mm
A6: Decile 1 Year20 | B6: Middle (10-20) | C6: 11 | D6: 20 | E6: =E4/2+F4+G4/2 -> 22 | F6: =F4/2+G4+H4/2 -> 6 | G6: =G4/2+H4+I4/2 -> 0 | H6: =H4/2+I4+J4/2 -> 0 | I6: =I4/2+J4+K4/2 -> 0 | J6: =J4/2+K4+L4/2 -> 0 | K6: =K4/2+L4+M4/2 -> 0 | L6: =L4/2+M4+N4/2 -> 0 | M6: =M4/2+N4+O4/2 -> 1 | N6: =N4/2+O4+P4/2 -> 8 | O6: =O4/2+P4+E4/2 -> 24 | P6: =P4/2+E4+F4/2 -> 33 | R6: High | S6: 120 - 250 mm
A7: Decile 1 Year31 | B7: End (20-31) | C7: 21 | D7: 31 | E7: =F4+G4 -> 12 | F7: =G4+H4 -> 0 | G7: =H4+I4 -> 0 | H7: =I4+J4 -> 0 | I7: =J4+K4 -> 0 | J7: =K4+L4 -> 0 | K7: =L4+M4 -> 0 | L7: =M4+N4 -> 0 | M7: =N4+O4 -> 2 | N7: =O4+P4 -> 15 | O7: =P4+E4 -> 34 | P7: =E4+F4 -> 32 | R7: Very High | S7: 250 - 500 mm
A10: Cumulative Rainfall Calcs - Average year | B10: Month | E10: January | F10: February | G10: March | H10: April | I10: May | J10: June | K10: July | L10: August | M10: September | N10: October | O10: November | P10: December
B11: Days per month | C11: Start | D11: End | E11: 31 | F11: 28 | G11: 31 | H11: 30 | I11: 31 | J11: 30 | K11: 31 | L11: 31 | M11: 30 | N11: 31 | O11: 30 | P11: 31
B12: Av Monthly Rainfall | E12: ='Location & Climate'!C19 -> 109 | F12: ='Location & Climate'!D19 -> 110 | G12: ='Location & Climate'!E19 -> 62 | H12: ='Location & Climate'!F19 -> 33 | I12: ='Location & Climate'!G19 -> 34 | J12: ='Location & Climate'!H19 -> 29 | K12: ='Location & Climate'!I19 -> 30 | L12: ='Location & Climate'!J19 -> 20 | M12: ='Location & Climate'!K19 -> 17 | N12: ='Location & Climate'!L19 -> 35 | O12: ='Location & Climate'!M19 -> 54 | P12: ='Location & Climate'!N19 -> 75
A13: Average Year10 | B13: Start (1-10) | C13: 1 | D13: 10 | E13: =SUM(E12:F12) -> 219 | F13: =SUM(F12:G12) -> 172 | G13: =SUM(G12:H12) -> 95 | H13: =SUM(H12:I12) -> 67 | I13: =SUM(I12:J12) -> 63 | J13: =SUM(J12:K12) -> 59 | K13: =SUM(K12:L12) -> 50 | L13: =SUM(L12:M12) -> 37 | M13: =SUM(M12:N12) -> 52 | N13: =SUM(N12:O12) -> 89 | O13: =SUM(O12:P12) -> 129 | P13: =P12+E12 -> 184
A14: Average Year20 | B14: Middle (10-20) | C14: 11 | D14: 20 | E14: =E12/2+F12+G12/2 -> 195 | F14: =F12/2+G12+H12/2 -> 133 | G14: =G12/2+H12+I12/2 -> 81 | H14: =H12/2+I12+J12/2 -> 65 | I14: =I12/2+J12+K12/2 -> 61 | J14: =J12/2+K12+L12/2 -> 54 | K14: =K12/2+L12+M12/2 -> 43 | L14: =L12/2+M12+N12/2 -> 44 | M14: =M12/2+N12+O12/2 -> 70 | N14: =N12/2+O12+P12/2 -> 109 | O14: =O12/2+P12+E12/2 -> 157 | P14: =P12/2+E12+F12/2 -> 202
A15: Average Year30 | B15: End (20-31) | C15: 21 | D15: 31 | E15: =F12+G12 -> 172 | F15: =G12+H12 -> 95 | G15: =H12+I12 -> 67 | H15: =I12+J12 -> 63 | I15: =J12+K12 -> 59 | J15: =K12+L12 -> 50 | K15: =L12+M12 -> 37 | L15: =M12+N12 -> 52 | M15: =N12+O12 -> 89 | N15: =O12+P12 -> 129 | O15: =P12+E12 -> 184 | P15: =E12+F12 -> 219
A18: Cumulative Rainfall Calcs - Decile 9 year | B18: Month | E18: January | F18: February | G18: March | H18: April | I18: May | J18: June | K18: July | L18: August | M18: September | N18: October | O18: November | P18: December
B19: Days per month | C19: Start | D19: End | E19: 31 | F19: 28 | G19: 31 | H19: 30 | I19: 31 | J19: 30 | K19: 31 | L19: 31 | M19: 30 | N19: 31 | O19: 30 | P19: 31
B20: Decile 9 Monthly Rainfall | E20: ='Location & Climate'!C21 -> 197 | F20: ='Location & Climate'!D21 -> 241 | G20: ='Location & Climate'!E21 -> 161 | H20: ='Location & Climate'!F21 -> 88 | I20: ='Location & Climate'!G21 -> 80 | J20: ='Location & Climate'!H21 -> 65 | K20: ='Location & Climate'!I21 -> 77 | L20: ='Location & Climate'!J21 -> 49 | M20: ='Location & Climate'!K21 -> 44 | N20: ='Location & Climate'!L21 -> 77 | O20: ='Location & Climate'!M21 -> 117 | P20: ='Location & Climate'!N21 -> 151
A21: Decile 9 Year10 | B21: Start (1-10) | C21: 1 | D21: 10 | E21: =SUM(E20:F20) -> 438 | F21: =SUM(F20:G20) -> 402 | G21: =SUM(G20:H20) -> 249 | H21: =SUM(H20:I20) -> 168 | I21: =SUM(I20:J20) -> 145 | J21: =SUM(J20:K20) -> 142 | K21: =SUM(K20:L20) -> 126 | L21: =SUM(L20:M20) -> 93 | M21: =SUM(M20:N20) -> 121 | N21: =SUM(N20:O20) -> 195 | O21: =SUM(O20:P20) -> 268 | P21: =P20+E20 -> 349
A22: Decile 9 Year20 | B22: Middle (10-20) | C22: 11 | D22: 20 | E22: =E20/2+F20+G20/2 -> 420 | F22: =F20/2+G20+H20/2 -> 325 | G22: =G20/2+H20+I20/2 -> 209 | H22: =H20/2+I20+J20/2 -> 157 | I22: =I20/2+J20+K20/2 -> 144 | J22: =J20/2+K20+L20/2 -> 134 | K22: =K20/2+L20+M20/2 -> 109 | L22: =L20/2+M20+N20/2 -> 107 | M22: =M20/2+N20+O20/2 -> 158 | N22: =N20/2+O20+P20/2 -> 231 | O22: =O20/2+P20+E20/2 -> 308 | P22: =P20/2+E20+F20/2 -> 393
A23: Decile 9 Year30 | B23: End (20-31) | C23: 21 | D23: 31 | E23: =F20+G20 -> 402 | F23: =G20+H20 -> 249 | G23: =H20+I20 -> 168 | H23: =I20+J20 -> 145 | I23: =J20+K20 -> 142 | J23: =K20+L20 -> 126 | K23: =L20+M20 -> 93 | L23: =M20+N20 -> 121 | M23: =N20+O20 -> 195 | N23: =O20+P20 -> 268 | O23: =P20+E20 -> 349 | P23: =E20+F20 -> 438
A26: Cumulative Rainfall 2 month prior to Gypsum Treatment
A27: Cumulative Rainfall Calcs - Decile 1 year | B27: Month | E27: January | F27: February | G27: March | H27: April | I27: May | J27: June | K27: July | L27: August | M27: September | N27: October | O27: November | P27: December
B28: Days per month | C28: Start | D28: End | E28: 31 | F28: 28 | G28: 31 | H28: 30 | I28: 31 | J28: 30 | K28: 31 | L28: 31 | M28: 30 | N28: 31 | O28: 30 | P28: 31
B29: Decile 1 Monthly Rainfall | E29: ='Location & Climate'!C20 -> 21 | F29: ='Location & Climate'!D20 -> 11 | G29: ='Location & Climate'!E20 -> 0 | H29: ='Location & Climate'!F20 -> 0 | I29: ='Location & Climate'!G20 -> 0 | J29: ='Location & Climate'!H20 -> 0 | K29: ='Location & Climate'!I20 -> 0 | L29: ='Location & Climate'!J20 -> 0 | M29: ='Location & Climate'!K20 -> 0 | N29: ='Location & Climate'!L20 -> 0 | O29: ='Location & Climate'!M20 -> 2 | P29: ='Location & Climate'!N20 -> 13
A30: Decile 1 Year10 | B30: Start (1-10) | C30: 1 | D30: 10 | E30: =E29+P29 -> 34 | F30: =SUM(E29:F29) -> 32 | G30: =SUM(F29:G29) -> 12 | H30: =SUM(G29:H29) -> 0 | I30: =SUM(H29:I29) -> 0 | J30: =SUM(I29:J29) -> 0 | K30: =SUM(J29:K29) -> 0 | L30: =SUM(K29:L29) -> 0 | M30: =SUM(L29:M29) -> 0 | N30: =SUM(M29:N29) -> 0 | O30: =SUM(N29:O29) -> 2 | P30: =SUM(O29:P29) -> 15
A31: Decile 1 Year20 | B31: Middle (10-20) | C31: 11 | D31: 20 | E31: =E29/2+P29+O29/2 -> 24 | F31: =F29/2+E29+P29/2 -> 33 | G31: =G29/2+F29+E29/2 -> 21.885 | H31: =H29/2+G29+F29/2 -> 6 | I31: =I29/2+H29+G29/2 -> 0 | J31: =J29/2+I29+H29/2 -> 0 | K31: =K29/2+J29+I29/2 -> 0 | L31: =L29/2+K29+J29/2 -> 0 | M31: =M29/2+L29+K29/2 -> 0 | N31: =N29/2+M29+L29/2 -> 0 | O31: =O29/2+N29+M29/2 -> 1 | P31: =P29/2+O29+N29/2 -> 8
A32: Decile 1 Year31 | B32: End (20-31) | C32: 21 | D32: 31 | E32: =O29+P29 -> 15 | F32: =E29+P29 -> 34 | G32: =E29+F29 -> 32 | H32: =F29+G29 -> 12 | I32: =G29+H29 -> 0 | J32: =H29+I29 -> 0 | K32: =I29+J29 -> 0 | L32: =J29+K29 -> 0 | M32: =K29+L29 -> 0 | N32: =L29+M29 -> 0 | O32: =M29+N29 -> 0 | P32: =N29+O29 -> 2
A35: Cumulative Rainfall Calcs - Average year | B35: Month | E35: January | F35: February | G35: March | H35: April | I35: May | J35: June | K35: July | L35: August | M35: September | N35: October | O35: November | P35: December
B36: Days per month | C36: Start | D36: End | E36: 31 | F36: 28 | G36: 31 | H36: 30 | I36: 31 | J36: 30 | K36: 31 | L36: 31 | M36: 30 | N36: 31 | O36: 30 | P36: 31
B37: Av Monthly Rainfall | E37: ='Location & Climate'!C19 -> 109 | F37: ='Location & Climate'!D19 -> 110 | G37: ='Location & Climate'!E19 -> 62 | H37: ='Location & Climate'!F19 -> 33 | I37: ='Location & Climate'!G19 -> 34 | J37: ='Location & Climate'!H19 -> 29 | K37: ='Location & Climate'!I19 -> 30 | L37: ='Location & Climate'!J19 -> 20 | M37: ='Location & Climate'!K19 -> 17 | N37: ='Location & Climate'!L19 -> 35 | O37: ='Location & Climate'!M19 -> 54 | P37: ='Location & Climate'!N19 -> 75
A38: Average Year10 | B38: Start (1-10) | C38: 1 | D38: 10 | E38: =E37+P37 -> 184 | F38: =SUM(E37:F37) -> 219 | G38: =SUM(F37:G37) -> 172 | H38: =SUM(G37:H37) -> 95 | I38: =SUM(H37:I37) -> 67 | J38: =SUM(I37:J37) -> 63 | K38: =SUM(J37:K37) -> 59 | L38: =SUM(K37:L37) -> 50 | M38: =SUM(L37:M37) -> 37 | N38: =SUM(M37:N37) -> 52 | O38: =SUM(N37:O37) -> 89 | P38: =SUM(O37:P37) -> 129
A39: Average Year20 | B39: Middle (10-20) | C39: 11 | D39: 20 | E39: =E37/2+P37+O37/2 -> 157 | F39: =F37/2+E37+P37/2 -> 202 | G39: =G37/2+F37+E37/2 -> 195.3235891 | H39: =H37/2+G37+F37/2 -> 133 | I39: =I37/2+H37+G37/2 -> 81 | J39: =J37/2+I37+H37/2 -> 65 | K39: =K37/2+J37+I37/2 -> 61 | L39: =L37/2+K37+J37/2 -> 54 | M39: =M37/2+L37+K37/2 -> 43 | N39: =N37/2+M37+L37/2 -> 44 | O39: =O37/2+N37+M37/2 -> 70 | P39: =P37/2+O37+N37/2 -> 109
A40: Average Year30 | B40: End (20-31) | C40: 21 | D40: 31 | E40: =O37+P37 -> 129 | F40: =E37+P37 -> 184 | G40: =E37+F37 -> 219 | H40: =F37+G37 -> 172 | I40: =G37+H37 -> 95 | J40: =H37+I37 -> 67 | K40: =I37+J37 -> 63 | L40: =J37+K37 -> 59 | M40: =K37+L37 -> 50 | N40: =L37+M37 -> 37 | O40: =M37+N37 -> 52 | P40: =N37+O37 -> 89
A43: Cumulative Rainfall Calcs - Decile 9 year | B43: Month | E43: January | F43: February | G43: March | H43: April | I43: May | J43: June | K43: July | L43: August | M43: September | N43: October | O43: November | P43: December
B44: Days per month | C44: Start | D44: End | E44: 31 | F44: 28 | G44: 31 | H44: 30 | I44: 31 | J44: 30 | K44: 31 | L44: 31 | M44: 30 | N44: 31 | O44: 30 | P44: 31
B45: Decile 9 Monthly Rainfall | E45: ='Location & Climate'!C21 -> 197 | F45: ='Location & Climate'!D21 -> 241 | G45: ='Location & Climate'!E21 -> 161 | H45: ='Location & Climate'!F21 -> 88 | I45: ='Location & Climate'!G21 -> 80 | J45: ='Location & Climate'!H21 -> 65 | K45: ='Location & Climate'!I21 -> 77 | L45: ='Location & Climate'!J21 -> 49 | M45: ='Location & Climate'!K21 -> 44 | N45: ='Location & Climate'!L21 -> 77 | O45: ='Location & Climate'!M21 -> 117 | P45: ='Location & Climate'!N21 -> 151
A46: Decile 9 Year10 | B46: Start (1-10) | C46: 1 | D46: 10 | E46: =E45+P45 -> 349 | F46: =SUM(E45:F45) -> 438 | G46: =SUM(F45:G45) -> 402 | H46: =SUM(G45:H45) -> 249 | I46: =SUM(H45:I45) -> 168 | J46: =SUM(I45:J45) -> 145 | K46: =SUM(J45:K45) -> 142 | L46: =SUM(K45:L45) -> 126 | M46: =SUM(L45:M45) -> 93 | N46: =SUM(M45:N45) -> 121 | O46: =SUM(N45:O45) -> 195 | P46: =SUM(O45:P45) -> 268
A47: Decile 9 Year20 | B47: Middle (10-20) | C47: 11 | D47: 20 | E47: =E45/2+P45+O45/2 -> 308 | F47: =F45/2+E45+P45/2 -> 393 | G47: =G45/2+F45+E45/2 -> 419.765 | H47: =H45/2+G45+F45/2 -> 325 | I47: =I45/2+H45+G45/2 -> 209 | J47: =J45/2+I45+H45/2 -> 157 | K47: =K45/2+J45+I45/2 -> 144 | L47: =L45/2+K45+J45/2 -> 134 | M47: =M45/2+L45+K45/2 -> 109 | N47: =N45/2+M45+L45/2 -> 107 | O47: =O45/2+N45+M45/2 -> 158 | P47: =P45/2+O45+N45/2 -> 231
A48: Decile 9 Year30 | B48: End (20-31) | C48: 21 | D48: 31 | E48: =O45+P45 -> 268 | F48: =E45+P45 -> 349 | G48: =E45+F45 -> 438 | H48: =F45+G45 -> 402 | I48: =G45+H45 -> 249 | J48: =H45+I45 -> 168 | K48: =I45+J45 -> 145 | L48: =J45+K45 -> 142 | M48: =K45+L45 -> 126 | N48: =L45+M45 -> 93 | O48: =M45+N45 -> 121 | P48: =N45+O45 -> 195

Sheet Climate Assumptions
A1: N Order | B1: Netica Name | C1: Model name | D1: Values | E1: Notes | F1: =Scenarios!A3&Scenarios!$C3 -> Scenario 01: 1. Pre-amendment | G1: =Scenarios!A4&Scenarios!$C4 -> Scenario 02: 2. Rock mulch treatment | H1: =Scenarios!A5&Scenarios!$C5 -> Scenario 03: 3. Post-amendment | I1: =Scenarios!A6&Scenarios!$C6 -> Scenario 04: 4. Post-amendment (Reduced treatment depth) | J1: =Scenarios!A7&Scenarios!$C7 -> Scenario 05: 5. Post-amendment (Reduced treatment ESP) | K1: =Scenarios!A8&Scenarios!$C8 -> Scenario 06: 6. Post-amendment (Reduced treatment depth and ESP) | L1: =Scenarios!A9&Scenarios!$C9 -> Scenario 07: - | M1: =Scenarios!A10&Scenarios!$C10 -> Scenario 08: - | N1: =Scenarios!A11&Scenarios!$C11 -> Scenario 09: - | O1: =Scenarios!A12&Scenarios!$C12 -> Scenario 10: - | P1: =Scenarios!A13&Scenarios!$C13 -> Scenario 11: - | Q1: =Scenarios!A14&Scenarios!$C14 -> Scenario 12: - | R1: =Scenarios!A15&Scenarios!$C15 -> Scenario 13: - | S1: =Scenarios!A16&Scenarios!$C16 -> Scenario 14: - | T1: =Scenarios!A17&Scenarios!$C17 -> Scenario 15: - | U1: =Scenarios!A18&Scenarios!$C18 -> Scenario 16: - | V1: =Scenarios!A19&Scenarios!$C19 -> Scenario 17: - | W1: =Scenarios!A20&Scenarios!$C20 -> Scenario 18: - | X1: =Scenarios!A21&Scenarios!$C21 -> Scenario 19: - | Y1: =Scenarios!A22&Scenarios!$C22 -> Scenario 20: - | Z1: Add new columns to left
B2: Climate assumptions
C3: Rainfall modelling conditions | D3: Class | E3: User selected | F3: Average Year | G3: Average Year | H3: Average Year | I3: Average Year | J3: Average Year | K3: Average Year | L3: - | M3: - | N3: - | O3: - | P3: - | Q3: - | R3: - | S3: - | T3: - | U3: - | V3: - | W3: - | X3: - | Y3: -
A4: 1 | B4: Avge_annual_rainfall | C4: Average Annual Rainfall | D4: Values | E4: Calculated - no direct model input | F4: =SUM(IF(F3='Location & Climate'!$C$14:$E$14,'Location & Climate'!$C$15:$E$15," ")) -> 607 | G4: =SUM(IF(G3='Location & Climate'!$C$14:$E$14,'Location & Climate'!$C$15:$E$15," ")) -> 607 | H4: =SUM(IF(H3='Location & Climate'!$C$14:$E$14,'Location & Climate'!$C$15:$E$15," ")) -> 607 | I4: =SUM(IF(I3='Location & Climate'!$C$14:$E$14,'Location & Climate'!$C$15:$E$15," ")) -> 607 | J4: =SUM(IF(J3='Location & Climate'!$C$14:$E$14,'Location & Climate'!$C$15:$E$15," ")) -> 607 | K4: =SUM(IF(K3='Location & Climate'!$C$14:$E$14,'Location & Climate'!$C$15:$E$15," ")) -> 607 | L4: - | M4: - | N4: - | O4: - | P4: - | Q4: - | R4: - | S4: - | T4: - | U4: - | V4: - | W4: - | X4: - | Y4: -
A5: 4 | B5: Rainfall_IFD_index | C5: Probability of > 50mm/hr rainfall | D5: Class | E5: Calculated - no direct model input | F5: =IF(F3>0,'Location & Climate'!$C$36,0) -> High | G5: =IF(G3>0,'Location & Climate'!$C$36,0) -> High | H5: =IF(H3>0,'Location & Climate'!$C$36,0) -> High | I5: =IF(I3>0,'Location & Climate'!$C$36,0) -> High | J5: =IF(J3>0,'Location & Climate'!$C$36,0) -> High | K5: =IF(K3>0,'Location & Climate'!$C$36,0) -> High | L5: - | M5: - | N5: - | O5: - | P5: - | Q5: - | R5: - | S5: - | T5: - | U5: - | V5: - | W5: - | X5: - | Y5: -
C6: Gypsum Application month | D6: Class | E6: User selected | F6: November | G6: November | H6: November | I6: November | J6: November | K6: November | L6: - | M6: - | N6: - | O6: - | P6: - | Q6: - | R6: - | S6: - | T6: - | U6: - | V6: - | W6: - | X6: - | Y6: -
C7: Day of month | D7: Class | E7: User selected | F7: 12 | G7: 22 | H7: 1 | I7: 1 | J7: 1 | K7: 1 | L7: - | M7: - | N7: - | O7: - | P7: - | Q7: - | R7: - | S7: - | T7: - | U7: - | V7: - | W7: - | X7: - | Y7: -
C8: Rainfall modelling conditions & Period of Month | D8: Class | E8: Calculated by model | F8: =IF(F7<>"",IF(F7<=10,F3&"10",IF(F7<=20,F3&20,F3&"30")),"") -> Average Year20 | G8: =IF(G7<>"",IF(G7<=10,G3&"10",IF(G7<=20,G3&20,G3&"30")),"") -> Average Year30 | H8: Average Year10 | I8: Average Year10 | J8: Average Year10 | K8: Average Year10 | L8: - | M8: - | N8: - | O8: - | P8: - | Q8: - | R8: - | S8: - | T8: - | U8: - | V8: - | W8: - | X8: - | Y8: -
A9: 2,3 | B9: CumulativeRainfall_2month | C9: Cumulative rainfall 2months following gypsum application | D9: Values | E9: Calculated - no direct model input | F9: =_xlfn.IFNA(INDEX('Cum RF Calcs'!$A$2:$P$23,MATCH('Climate Assumptions'!F8,'Cum RF Calcs'!$A$2:$A$23,0),MATCH('Climate Assumptions'!F6,'Cum RF Calcs'!$A$2:$P$2,0)),0) -> 157 | G9: =_xlfn.IFNA(INDEX('Cum RF Calcs'!$A$2:$P$23,MATCH('Climate Assumptions'!G8,'Cum RF Calcs'!$A$2:$A$23,0),MATCH('Climate Assumptions'!G6,'Cum RF Calcs'!$A$2:$P$2,0)),0) -> 184 | H9: =_xlfn.IFNA(INDEX('Cum RF Calcs'!$A$2:$P$23,MATCH('Climate Assumptions'!H8,'Cum RF Calcs'!$A$2:$A$23,0),MATCH('Climate Assumptions'!H6,'Cum RF Calcs'!$A$2:$P$2,0)),0) -> 129 | I9: =_xlfn.IFNA(INDEX('Cum RF Calcs'!$A$2:$P$23,MATCH('Climate Assumptions'!I8,'Cum RF Calcs'!$A$2:$A$23,0),MATCH('Climate Assumptions'!I6,'Cum RF Calcs'!$A$2:$P$2,0)),0) -> 129 | J9: =_xlfn.IFNA(INDEX('Cum RF Calcs'!$A$2:$P$23,MATCH('Climate Assumptions'!J8,'Cum RF Calcs'!$A$2:$A$23,0),MATCH('Climate Assumptions'!J6,'Cum RF Calcs'!$A$2:$P$2,0)),0) -> 129 | K9: =_xlfn.IFNA(INDEX('Cum RF Calcs'!$A$2:$P$23,MATCH('Climate Assumptions'!K8,'Cum RF Calcs'!$A$2:$A$23,0),MATCH('Climate Assumptions'!K6,'Cum RF Calcs'!$A$2:$P$2,0)),0) -> 129 | L9: - | M9: - | N9: - | O9: - | P9: - | Q9: - | R9: - | S9: - | T9: - | U9: - | V9: - | W9: - | X9: - | Y9: -

Sheet Interventions
A1: N Order | B1: Netica Name | C1: Model name | D1: Values | E1: Notes | F1: =Scenarios!A3&Scenarios!$C3 -> Scenario 01: 1. Pre-amendment | G1: =Scenarios!A4&Scenarios!$C4 -> Scenario 02: 2. Rock mulch treatment | H1: =Scenarios!A5&Scenarios!$C5 -> Scenario 03: 3. Post-amendment | I1: =Scenarios!A6&Scenarios!$C6 -> Scenario 04: 4. Post-amendment (Reduced treatment depth) | J1: =Scenarios!A7&Scenarios!$C7 -> Scenario 05: 5. Post-amendment (Reduced treatment ESP) | K1: =Scenarios!A8&Scenarios!$C8 -> Scenario 06: 6. Post-amendment (Reduced treatment depth and ESP) | L1: =Scenarios!A9&Scenarios!$C9 -> Scenario 07: - | M1: =Scenarios!A10&Scenarios!$C10 -> Scenario 08: - | N1: =Scenarios!A11&Scenarios!$C11 -> Scenario 09: - | O1: =Scenarios!A12&Scenarios!$C12 -> Scenario 10: - | P1: =Scenarios!A13&Scenarios!$C13 -> Scenario 11: - | Q1: =Scenarios!A14&Scenarios!$C14 -> Scenario 12: - | R1: =Scenarios!A15&Scenarios!$C15 -> Scenario 13: - | S1: =Scenarios!A16&Scenarios!$C16 -> Scenario 14: - | T1: =Scenarios!A17&Scenarios!$C17 -> Scenario 15: - | U1: =Scenarios!A18&Scenarios!$C18 -> Scenario 16: - | V1: =Scenarios!A19&Scenarios!$C19 -> Scenario 17: - | W1: =Scenarios!A20&Scenarios!$C20 -> Scenario 18: - | X1: =Scenarios!A21&Scenarios!$C21 -> Scenario 19: - | Y1: =Scenarios!A22&Scenarios!$C22 -> Scenario 20: - | Z1: Add new columns to left
B2: Ammendment rate for each soil layer
A3: 11 | B3: Spoil_amendment_rate_1 | C3: Spoil amendment rate Layer 1 | D3: Class | E3: - | F3: Nil | G3: Nil | H3: As_Recommended | I3: As_Recommended | J3: Half_recommended | K3: Half_recommended | L3: - | M3: - | N3: - | O3: - | P3: - | Q3: - | R3: - | S3: - | T3: - | U3: - | V3: - | W3: - | X3: - | Y3: -
A4: 12 | B4: Spoil_amendment_rate_2 | C4: Spoil amendment rate Layer 2 | D4: Class | E4: - | F4: Nil | G4: Nil | H4: As_Recommended | I4: As_Recommended | J4: Half_recommended | K4: Half_recommended | L4: - | M4: - | N4: - | O4: - | P4: - | Q4: - | R4: - | S4: - | T4: - | U4: - | V4: - | W4: - | X4: - | Y4: -
A5: 13 | B5: Spoil_amendment_rate_3 | C5: Spoil amendment rate Layer 3 | D5: Class | E5: - | F5: Nil | G5: Nil | H5: As_Recommended | I5: As_Recommended | J5: Half_recommended | K5: Half_recommended | L5: - | M5: - | N5: - | O5: - | P5: - | Q5: - | R5: - | S5: - | T5: - | U5: - | V5: - | W5: - | X5: - | Y5: -
B6: Ammendment type for each soil layer
A7: 14 | B7: Spoil_amendment_type_1 | C7: Spoil amendment type Layer 1 | D7: Class | E7: - | F7: - | G7: Gypsum | H7: Gypsum | I7: Gypsum | J7: Gypsum | K7: Gypsum | L7: - | M7: - | N7: - | O7: - | P7: - | Q7: - | R7: - | S7: - | T7: - | U7: - | V7: - | W7: - | X7: - | Y7: -
A8: 15 | B8: Spoil_amendment_type_2 | C8: Spoil amendment type Layer 2 | D8: Class | E8: - | F8: - | G8: Gypsum | H8: Gypsum | I8: Gypsum | J8: Gypsum | K8: Gypsum | L8: - | M8: - | N8: - | O8: - | P8: - | Q8: - | R8: - | S8: - | T8: - | U8: - | V8: - | W8: - | X8: - | Y8: -
A9: 16 | B9: Spoil_amendment_type_3 | C9: Spoil amendment type Layer 3 | D9: Class | E9: - | F9: - | G9: Gypsum | H9: Gypsum | I9: Gypsum | J9: Gypsum | K9: Gypsum | L9: - | M9: - | N9: - | O9: - | P9: - | Q9: - | R9: - | S9: - | T9: - | U9: - | V9: - | W9: - | X9: - | Y9: -
B10: Ammendment form for each soil layer
A11: 1 | B11: Amendment_form_1 | C11: Amendment form Layer 1 | D11: Class | E11: - | F11: - | G11: Granular | H11: Granular | I11: Granular | J11: Granular | K11: Granular | L11: - | M11: - | N11: - | O11: - | P11: - | Q11: - | R11: - | S11: - | T11: - | U11: - | V11: - | W11: - | X11: - | Y11: -
A12: 2 | B12: Amendment_form_2 | C12: Amendment form Layer 2 | D12: Class | E12: - | F12: - | G12: Granular | H12: Granular | I12: Granular | J12: Granular | K12: Granular | L12: - | M12: - | N12: - | O12: - | P12: - | Q12: - | R12: - | S12: - | T12: - | U12: - | V12: - | W12: - | X12: - | Y12: -
A13: 3 | B13: Amendment_form_3 | C13: Amendment form Layer 3 | D13: Class | E13: - | F13: - | G13: Granular | H13: Granular | I13: Granular | J13: Granular | K13: Granular | L13: - | M13: - | N13: - | O13: - | P13: - | Q13: - | R13: - | S13: - | T13: - | U13: - | V13: - | W13: - | X13: - | Y13: -
B14: Ammendment application method
A15: 26 | B15: Spoil_amendment_application_1 | C15: Topsoil amendment application method | D15: Class | E15: - | F15: - | G15: Incorporated | H15: Incorporated | I15: Incorporated | J15: Incorporated | K15: Incorporated | L15: - | M15: - | N15: - | O15: - | P15: - | Q15: - | R15: - | S15: - | T15: - | U15: - | V15: - | W15: - | X15: - | Y15: -
B16: Contour banks
A17: 19 | B17: Contourbank_height | C17: Contourbank height (mm) | D17: Value | E17: - | F17: 500 | G17: 0 | H17: 500 | I17: 500 | J17: 500 | K17: 500 | L17: - | M17: - | N17: - | O17: - | P17: - | Q17: - | R17: - | S17: - | T17: - | U17: - | V17: - | W17: - | X17: - | Y17: -
A18: 25 | B18: Contourbank_Interval | C18: Contourbank Interval (m) | D18: Value | E18: - | F18: 20 | G18: 20 | H18: 20 | I18: 20 | J18: 20 | K18: 20 | L18: - | M18: - | N18: - | O18: - | P18: - | Q18: - | R18: - | S18: - | T18: - | U18: - | V18: - | W18: - | X18: - | Y18: -
A19: 4 | B19: Contourbank_permanence | C19: Contourbank permanence | D19: Class | E19: - | F19: Temporary | G19: Temporary | H19: Temporary | I19: Temporary | J19: Temporary | K19: Temporary | L19: - | M19: - | N19: - | O19: - | P19: - | Q19: - | R19: - | S19: - | T19: - | U19: - | V19: - | W19: - | X19: - | Y19: -
A20: 17 | B20: UpslopeBund | C20: Upslope bund | D20: Class | E20: - | F20: Yes | G20: Yes | H20: Yes | I20: Yes | J20: Yes | K20: Yes | L20: - | M20: - | N20: - | O20: - | P20: - | Q20: - | R20: - | S20: - | T20: - | U20: - | V20: - | W20: - | X20: - | Y20: -
B21: Landform
A22: 23 | B22: Slope_angle | C22: Slope angle (%) | D22: Value | E22: - | F22: 10 | G22: 10 | H22: 10 | I22: 10 | J22: 10 | K22: 10 | L22: - | M22: - | N22: - | O22: - | P22: - | Q22: - | R22: - | S22: - | T22: - | U22: - | V22: - | W22: - | X22: - | Y22: -
A23: 21 | B23: Overall_Slope_length | C23: Overall slope length (m) | D23: Value | E23: - | F23: 100 | G23: 100 | H23: 100 | I23: 100 | J23: 100 | K23: 100 | L23: - | M23: - | N23: - | O23: - | P23: - | Q23: - | R23: - | S23: - | T23: - | U23: - | V23: - | W23: - | X23: - | Y23: -
A24: 10 | B24: Slope_shape | C24: Slope shape | D24: Class | E24: - | F24: Linear | G24: Linear | H24: Linear | I24: Linear | J24: Linear | K24: Linear | L24: - | M24: - | N24: - | O24: - | P24: - | Q24: - | R24: - | S24: - | T24: - | U24: - | V24: - | W24: - | X24: - | Y24: -
A25: 5 | B25: Lateral_landform_uniformity | C25: Lateral landform uniformity | D25: Class | E25: - | F25: Flat_linear | G25: Flat_linear | H25: Flat_linear | I25: Flat_linear | J25: Flat_linear | K25: Flat_linear | L25: - | M25: - | N25: - | O25: - | P25: - | Q25: - | R25: - | S25: - | T25: - | U25: - | V25: - | W25: - | X25: - | Y25: -
A26: 9 | B26: Slope_Drainage_Type | C26: Slope drainage type | D26: Class | E26: - | F26: Grassed_drains | G26: No_drainage | H26: Grassed_drains | I26: Grassed_drains | J26: Grassed_drains | K26: Grassed_drains | L26: - | M26: - | N26: - | O26: - | P26: - | Q26: - | R26: - | S26: - | T26: - | U26: - | V26: - | W26: - | X26: - | Y26: -
B27: Ripping
A28: 22 | B28: Rip_depth | C28: Rip depth (cm) | D28: Class | E28: - | F28: 50 | G28: 50 | H28: 50 | I28: 50 | J28: 50 | K28: 50 | L28: - | M28: - | N28: - | O28: - | P28: - | Q28: - | R28: - | S28: - | T28: - | U28: - | V28: - | W28: - | X28: - | Y28: -
A29: 8 | B29: Rip_direction | C29: Rip direction | D29: Class | E29: - | F29: Grade_ripped_downslope | G29: Contour_ripped | H29: Grade_ripped_downslope | I29: Grade_ripped_downslope | J29: Grade_ripped_downslope | K29: Grade_ripped_downslope | L29: - | M29: - | N29: - | O29: - | P29: - | Q29: - | R29: - | S29: - | T29: - | U29: - | V29: - | W29: - | X29: - | Y29: -
A30: 7 | B30: Rip_conditions | C30: Soil moisture at time of ripping | D30: Class | E30: - | F30: Moist | G30: Dry | H30: Moist | I30: Moist | J30: Moist | K30: Moist | L30: - | M30: - | N30: - | O30: - | P30: - | Q30: - | R30: - | S30: - | T30: - | U30: - | V30: - | W30: - | X30: - | Y30: -
B31: Surface armouring
A32: 6 | B32: Mixing_topsoil_rockmulch | C32: Rockmulch applied | D32: Class | E32: - | F32: No | G32: Yes | H32: No | I32: No | J32: No | K32: No | L32: - | M32: - | N32: - | O32: - | P32: - | Q32: - | R32: - | S32: - | T32: - | U32: - | V32: - | W32: - | X32: - | Y32: -
A33: 24 | B33: Surface_armouring_quantity | C33: Surface armouring depth (cm) | D33: Value | E33: - | F33: 0 | G33: 100 | H33: 0 | I33: 0 | J33: 0 | K33: 0 | L33: - | M33: - | N33: - | O33: - | P33: - | Q33: - | R33: - | S33: - | T33: - | U33: - | V33: - | W33: - | X33: - | Y33: -
A34: 30 | B34: Surface_roughness_noVeg | C34: Soil surface roughness (clod/rock size) (cm) | D34: Value | E34: Calculated by model. Optional input | F34: 5 | G34: 50 | H34: 10 | I34: 10 | J34: 10 | K34: 10 | L34: - | M34: - | N34: - | O34: - | P34: - | Q34: - | R34: - | S34: - | T34: - | U34: - | V34: - | W34: - | X34: - | Y34: -
B35: Vegetation management
A36: 28 | B36: ERA_landuse_designation | C36: EA Landuse requirement | D36: Class | E36: - | F36: Native_vegetation | G36: Grazing | H36: Native_vegetation | I36: Native_vegetation | J36: Native_vegetation | K36: Native_vegetation | L36: - | M36: - | N36: - | O36: - | P36: - | Q36: - | R36: - | S36: - | T36: - | U36: - | V36: - | W36: - | X36: - | Y36: -
A37: 29 | B37: Seed_Addition | C37: Seed mix applied | D37: Class | E37: - | F37: None | G37: Mixed_Pasture_Covercrop_Spp | H37: Mixed_Pasture_Covercrop_Spp | I37: Mixed_Pasture_Covercrop_Spp | J37: Mixed_Pasture_Covercrop_Spp | K37: Mixed_Pasture_Covercrop_Spp | L37: - | M37: - | N37: - | O37: - | P37: - | Q37: - | R37: - | S37: - | T37: - | U37: - | V37: - | W37: - | X37: - | Y37: -
A38: 27 | B38: Fertiliser_addition | C38: Topsoil fertiliser addition | D38: Class | E38: - | F38: No | G38: Yes | H38: Yes | I38: Yes | J38: Yes | K38: Yes | L38: - | M38: - | N38: - | O38: - | P38: - | Q38: - | R38: - | S38: - | T38: - | U38: - | V38: - | W38: - | X38: - | Y38: -
A39: 20 | B39: Organic_mulch | C39: Organic mulch thickness (cm) | D39: Value | E39: - | G39: 0 | H39: 5 | I39: 5 | J39: 5 | K39: 5 | L39: - | M39: - | N39: - | O39: - | P39: - | Q39: - | R39: - | S39: - | T39: - | U39: - | V39: - | W39: - | X39: - | Y39: -
A40: 18 | B40: Irrigation | C40: Irrigation | D40: Class | E40: - | F40: No | G40: No | H40: Yes | I40: Yes | J40: Yes | K40: Yes | L40: - | M40: - | N40: - | O40: - | P40: - | Q40: - | R40: - | S40: - | T40: - | U40: - | V40: - | W40: - | X40: - | Y40: -

Sheet Soil Chemical
A1: N Order | B1: Netica Name | C1: Model name | D1: Values | E1: Notes | F1: =Scenarios!A3&Scenarios!$C3 -> Scenario 01: 1. Pre-amendment | G1: =Scenarios!A4&Scenarios!$C4 -> Scenario 02: 2. Rock mulch treatment | H1: =Scenarios!A5&Scenarios!$C5 -> Scenario 03: 3. Post-amendment | I1: =Scenarios!A6&Scenarios!$C6 -> Scenario 04: 4. Post-amendment (Reduced treatment depth) | J1: =Scenarios!A7&Scenarios!$C7 -> Scenario 05: 5. Post-amendment (Reduced treatment ESP) | K1: =Scenarios!A8&Scenarios!$C8 -> Scenario 06: 6. Post-amendment (Reduced treatment depth and ESP) | L1: =Scenarios!A9&Scenarios!$C9 -> Scenario 07: - | M1: =Scenarios!A10&Scenarios!$C10 -> Scenario 08: - | N1: =Scenarios!A11&Scenarios!$C11 -> Scenario 09: - | O1: =Scenarios!A12&Scenarios!$C12 -> Scenario 10: - | P1: =Scenarios!A13&Scenarios!$C13 -> Scenario 11: - | Q1: =Scenarios!A14&Scenarios!$C14 -> Scenario 12: - | R1: =Scenarios!A15&Scenarios!$C15 -> Scenario 13: - | S1: =Scenarios!A16&Scenarios!$C16 -> Scenario 14: - | T1: =Scenarios!A17&Scenarios!$C17 -> Scenario 15: - | U1: =Scenarios!A18&Scenarios!$C18 -> Scenario 16: - | V1: =Scenarios!A19&Scenarios!$C19 -> Scenario 17: - | W1: =Scenarios!A20&Scenarios!$C20 -> Scenario 18: - | X1: =Scenarios!A21&Scenarios!$C21 -> Scenario 19: - | Y1: =Scenarios!A22&Scenarios!$C22 -> Scenario 20: - | Z1: Add new columns to left
B2: pH
A3: 10 | B3: pH_1 | C3: pH (water) Layer 1 | D3: Value | E3: - | F3: 5.7 | G3: 5.7 | H3: 5.7 | I3: 5.7 | J3: 5.7 | K3: 5.7 | L3: - | M3: - | N3: - | O3: - | P3: - | Q3: - | R3: - | S3: - | T3: - | U3: - | V3: - | W3: - | X3: - | Y3: -
A4: 11 | B4: pH_2 | C4: pH (water) Layer 2 | D4: Value | E4: - | F4: 5.7 | G4: 5.7 | H4: 5.7 | I4: 5.7 | J4: 5.7 | K4: 5.7 | L4: - | M4: - | N4: - | O4: - | P4: - | Q4: - | R4: - | S4: - | T4: - | U4: - | V4: - | W4: - | X4: - | Y4: -
A5: 12 | B5: pH_3 | C5: pH (water) Layer 3 | D5: Value | E5: -- | F5: - | G5: - | H5: - | I5: - | J5: - | K5: - | L5: - | M5: - | N5: - | O5: - | P5: - | Q5: - | R5: - | S5: - | T5: - | U5: - | V5: - | W5: - | X5: - | Y5: -
B6: EC (1:5)
A7: 1 | B7: EC_1 | C7: EC (1:5) Layer 1 (dS/m) | D7: Value | E7: - | F7: 0.70 | G7: 0.28 | H7: 0.28 | I7: 0.28 | J7: 0.28 | K7: 0.28 | L7: - | M7: - | N7: - | O7: - | P7: - | Q7: - | R7: - | S7: - | T7: - | U7: - | V7: - | W7: - | X7: - | Y7: -
A8: 2 | B8: EC_2 | C8: EC (1:5) Layer 2 (dS/m) | D8: Value | E8: - | F8: 0.70 | G8: 0.34 | H8: 0.34 | I8: 0.34 | J8: 0.34 | K8: 0.34 | L8: - | M8: - | N8: - | O8: - | P8: - | Q8: - | R8: - | S8: - | T8: - | U8: - | V8: - | W8: - | X8: - | Y8: -
A9: 3 | B9: EC_3 | C9: EC (1:5) Layer 3 (dS/m) | D9: Value | E9: - | F9: 0.70 | G9: 0.34 | H9: 0.34 | I9: 0.34 | J9: 0.34 | K9: 0.34 | L9: - | M9: - | N9: - | O9: - | P9: - | Q9: - | R9: - | S9: - | T9: - | U9: - | V9: - | W9: - | X9: - | Y9: -
B10: Cations (Sodium)
A11: 7 | B11: Na_ex_1 | C11: Exchangeable Sodium Layer 1 (meq/100g) | D11: Value | E11: - | F11: 5.00 | G11: 0.39 | H11: 0.39 | I11: 0.39 | J11: 2.00 | K11: 2.00 | L11: - | M11: - | N11: - | O11: - | P11: - | Q11: - | R11: - | S11: - | T11: - | U11: - | V11: - | W11: - | X11: - | Y11: -
A12: 8 | B12: Na_ex_2 | C12: Exchangeable Sodium Layer 2 (meq/100g) | D12: Value | E12: - | F12: 5.00 | G12: 0.87 | H12: 0.87 | I12: 0.87 | J12: 2.00 | K12: 2.00 | L12: - | M12: - | N12: - | O12: - | P12: - | Q12: - | R12: - | S12: - | T12: - | U12: - | V12: - | W12: - | X12: - | Y12: -
A13: 9 | B13: Na_ex_3 | C13: Exchangeable Sodium Layer 3 (meq/100g) | D13: Value | E13: - | F13: 5.00 | G13: 0.87 | H13: 0.87 | I13: 0.87 | J13: 2.00 | K13: 2.00 | L13: - | M13: - | N13: - | O13: - | P13: - | Q13: - | R13: - | S13: - | T13: - | U13: - | V13: - | W13: - | X13: - | Y13: -
B14: Cations (Potassium)
A15: 4 | B15: K_ex_1 | C15: Exchangeable Potassium Layer 1 (meq/100g) | D15: Value | E15: - | F15: 0.30 | G15: 0.64 | H15: 0.64 | I15: 0.64 | J15: 0.64 | K15: 0.64 | L15: - | M15: - | N15: - | O15: - | P15: - | Q15: - | R15: - | S15: - | T15: - | U15: - | V15: - | W15: - | X15: - | Y15: -
A16: 5 | B16: K_ex_2 | C16: Exchangeable Potassium Layer 2 (meq/100g) | D16: Value | E16: - | F16: 0.30 | G16: 0.50 | H16: 0.50 | I16: 0.50 | J16: 0.50 | K16: 0.50 | L16: - | M16: - | N16: - | O16: - | P16: - | Q16: - | R16: - | S16: - | T16: - | U16: - | V16: - | W16: - | X16: - | Y16: -
A17: 6 | B17: K_ex_3 | C17: Exchangeable Potassium Layer 3 (meq/100g) | D17: Value | E17: - | F17: 0.30 | G17: 0.50 | H17: 0.50 | I17: 0.50 | J17: 0.50 | K17: 0.50 | L17: - | M17: - | N17: - | O17: - | P17: - | Q17: - | R17: - | S17: - | T17: - | U17: - | V17: - | W17: - | X17: - | Y17: -
B18: Exchangeable dispersion percentage
A19: 13 | B19: EDP_1 | C19: Exchangeable dispersive percentage Layer 1 (%) | D19: Calculated by model | E19: Model asks for input, but should be calcuated | F19: 35.8 | G19: 3 | H19: 3 | I19: 3 | J19: 15 | K19: 15 | L19: - | M19: - | N19: - | O19: - | P19: - | Q19: - | R19: - | S19: - | T19: - | U19: - | V19: - | W19: - | X19: - | Y19: -
A20: 14 | B20: EDP_2 | C20: Exchangeable dispersive percentage Layer 2 (%) | D20: Calculated by model | E20: Model asks for input, but should be calcuated | F20: 35.8 | G20: 6 | H20: 6 | I20: 6 | J20: 15 | K20: 15 | L20: - | M20: - | N20: - | O20: - | P20: - | Q20: - | R20: - | S20: - | T20: - | U20: - | V20: - | W20: - | X20: - | Y20: -
A21: 15 | B21: EDP_3 | C21: Exchangeable dispersive percentage Layer 3 (%) | D21: Calculated by model | E21: Model asks for input, but should be calcuated | F21: 35.8 | G21: 6 | H21: 6 | I21: 6 | J21: 15 | K21: 15 | L21: - | M21: - | N21: - | O21: - | P21: - | Q21: - | R21: - | S21: - | T21: - | U21: - | V21: - | W21: - | X21: - | Y21: -

Sheet Soil physical
A1: N Order | B1: Netica Name | C1: Model name | D1: Values | E1: Notes | F1: =Scenarios!A3&Scenarios!$C3 -> Scenario 01: 1. Pre-amendment | G1: =Scenarios!A4&Scenarios!$C4 -> Scenario 02: 2. Rock mulch treatment | H1: =Scenarios!A5&Scenarios!$C5 -> Scenario 03: 3. Post-amendment | I1: =Scenarios!A6&Scenarios!$C6 -> Scenario 04: 4. Post-amendment (Reduced treatment depth) | J1: =Scenarios!A7&Scenarios!$C7 -> Scenario 05: 5. Post-amendment (Reduced treatment ESP) | K1: =Scenarios!A8&Scenarios!$C8 -> Scenario 06: 6. Post-amendment (Reduced treatment depth and ESP) | L1: =Scenarios!A9&Scenarios!$C9 -> Scenario 07: - | M1: =Scenarios!A10&Scenarios!$C10 -> Scenario 08: - | N1: =Scenarios!A11&Scenarios!$C11 -> Scenario 09: - | O1: =Scenarios!A12&Scenarios!$C12 -> Scenario 10: - | P1: =Scenarios!A13&Scenarios!$C13 -> Scenario 11: - | Q1: =Scenarios!A14&Scenarios!$C14 -> Scenario 12: - | R1: =Scenarios!A15&Scenarios!$C15 -> Scenario 13: - | S1: =Scenarios!A16&Scenarios!$C16 -> Scenario 14: - | T1: =Scenarios!A17&Scenarios!$C17 -> Scenario 15: - | U1: =Scenarios!A18&Scenarios!$C18 -> Scenario 16: - | V1: =Scenarios!A19&Scenarios!$C19 -> Scenario 17: - | W1: =Scenarios!A20&Scenarios!$C20 -> Scenario 18: - | X1: =Scenarios!A21&Scenarios!$C21 -> Scenario 19: - | Y1: =Scenarios!A22&Scenarios!$C22 -> Scenario 20: - | Z1: Add new columns to left
B2: Clay
A3: 3 | B3: Clay_1 | C3: Clay proportion Layer 1 (%) | D3: Value | E3: - | F3: 35.5 | G3: 9.8 | H3: 35.5 | I3: 35.5 | J3: 35.5 | K3: 35.5 | L3: - | M3: - | N3: - | O3: - | P3: - | Q3: - | R3: - | S3: - | T3: - | U3: - | V3: - | W3: - | X3: - | Y3: -
A4: 4 | B4: Clay_2 | C4: Clay proportion Layer 2 (%) | D4: Value | E4: - | F4: 35.5 | G4: 8.3 | H4: 35.5 | I4: 35.5 | J4: 35.5 | K4: 35.5 | L4: - | M4: - | N4: - | O4: - | P4: - | Q4: - | R4: - | S4: - | T4: - | U4: - | V4: - | W4: - | X4: - | Y4: -
B5: Sand
A6: 7 | B6: Sand_1 | C6: Sand proportion Layer 1 (%) | D6: Value | E6: - | F6: 35.0 | G6: 56.8 | H6: 35.0 | I6: 35.0 | J6: 35.0 | K6: 35.0 | L6: - | M6: - | N6: - | O6: - | P6: - | Q6: - | R6: - | S6: - | T6: - | U6: - | V6: - | W6: - | X6: - | Y6: -
A7: 8 | B7: Sand_2 | C7: Sand proportion Layer 2 (%) | D7: Value | E7: - | F7: 35.0 | G7: 59.0 | H7: 35.0 | I7: 35.0 | J7: 35.0 | K7: 35.0 | L7: - | M7: - | N7: - | O7: - | P7: - | Q7: - | R7: - | S7: - | T7: - | U7: - | V7: - | W7: - | X7: - | Y7: -
B8: Stone
A9: 9 | B9: Stone_content_1 | C9: Stone proportion Layer 1 (%) | D9: Value | E9: - | F9: - | G9: - | H9: - | I9: - | J9: - | K9: - | L9: - | M9: - | N9: - | O9: - | P9: - | Q9: - | R9: - | S9: - | T9: - | U9: - | V9: - | W9: - | X9: - | Y9: -
A10: 10 | B10: Stone_content_2 | C10: Stone proportion Layer 2 (%) | D10: Value | E10: - | F10: - | G10: - | H10: - | I10: - | J10: - | K10: - | L10: - | M10: - | N10: - | O10: - | P10: - | Q10: - | R10: - | S10: - | T10: - | U10: - | V10: - | W10: - | X10: - | Y10: -
B11: Bulk density
A12: 1 | B12: Bulk_density_1 | C12: Bulk Density Layer 1 (ton/m3) | D12: Value | E12: - | F12: 1.50 | G12: 1.43 | H12: 1.50 | I12: 1.50 | J12: 1.50 | K12: 1.50 | L12: - | M12: - | N12: - | O12: - | P12: - | Q12: - | R12: - | S12: - | T12: - | U12: - | V12: - | W12: - | X12: - | Y12: -
A13: 2 | B13: Bulk_density_2 | C13: Bulk Density Layer 2 (ton/m3) | D13: Value | E13: - | F13: 1.50 | G13: 1.45 | H13: 1.50 | I13: 1.50 | J13: 1.50 | K13: 1.50 | L13: - | M13: - | N13: - | O13: - | P13: - | Q13: - | R13: - | S13: - | T13: - | U13: - | V13: - | W13: - | X13: - | Y13: -
B14: Soil depth
A15: 5 | B15: Depth_to_L2 | C15: Depth of Layer 1 (Topsoil) (cm) | D15: Value | E15: - | F15: 10 | G15: 50 | H15: 20 | I15: 10 | J15: 20 | K15: 10 | L15: - | M15: - | N15: - | O15: - | P15: - | Q15: - | R15: - | S15: - | T15: - | U15: - | V15: - | W15: - | X15: - | Y15: -
A16: 6 | B16: Depth_to_L3 | C16: Depth of Layer 2 (Subsoil) (cm) | D16: Value | E16: - | F16: 50 | G16: 50 | H16: 35 | I16: 20 | J16: 35 | K16: 20 | L16: - | M16: - | N16: - | O16: - | P16: - | Q16: - | R16: - | S16: - | T16: - | U16: - | V16: - | W16: - | X16: - | Y16: -

Sheet Vegetation
A1: N Order | B1: Netica Name | C1: Model name | D1: Values | E1: Notes | F1: =Scenarios!A3&Scenarios!$C3 -> Scenario 01: 1. Pre-amendment | G1: =Scenarios!A4&Scenarios!$C4 -> Scenario 02: 2. Rock mulch treatment | H1: =Scenarios!A5&Scenarios!$C5 -> Scenario 03: 3. Post-amendment | I1: =Scenarios!A6&Scenarios!$C6 -> Scenario 04: 4. Post-amendment (Reduced treatment depth) | J1: =Scenarios!A7&Scenarios!$C7 -> Scenario 05: 5. Post-amendment (Reduced treatment ESP) | K1: =Scenarios!A8&Scenarios!$C8 -> Scenario 06: 6. Post-amendment (Reduced treatment depth and ESP) | L1: =Scenarios!A9&Scenarios!$C9 -> Scenario 07: - | M1: =Scenarios!A10&Scenarios!$C10 -> Scenario 08: - | N1: =Scenarios!A11&Scenarios!$C11 -> Scenario 09: - | O1: =Scenarios!A12&Scenarios!$C12 -> Scenario 10: - | P1: =Scenarios!A13&Scenarios!$C13 -> Scenario 11: - | Q1: =Scenarios!A14&Scenarios!$C14 -> Scenario 12: - | R1: =Scenarios!A15&Scenarios!$C15 -> Scenario 13: - | S1: =Scenarios!A16&Scenarios!$C16 -> Scenario 14: - | T1: =Scenarios!A17&Scenarios!$C17 -> Scenario 15: - | U1: =Scenarios!A18&Scenarios!$C18 -> Scenario 16: - | V1: =Scenarios!A19&Scenarios!$C19 -> Scenario 17: - | W1: =Scenarios!A20&Scenarios!$C20 -> Scenario 18: - | X1: =Scenarios!A21&Scenarios!$C21 -> Scenario 19: - | Y1: =Scenarios!A22&Scenarios!$C22 -> Scenario 20: - | Z1: Add new columns to left
B2: Soil condition
A3: 1 | B3: Soil_Nutrient_Status | C3: Topsoil nutrient status | D3: Class | E3: - | F3: Low | G3: Moderate | H3: High | I3: High | J3: High | K3: High | L3: - | M3: - | N3: - | O3: - | P3: - | Q3: - | R3: - | S3: - | T3: - | U3: - | V3: - | W3: - | X3: - | Y3: -
A4: 2 | B4: Topsoil_organic_matter | C4: Topsoil organic matter | D4: Class | E4: Calculated by model. Optional input | F4: Low | G4: Low | H4: Medium | I4: High | J4: High | K4: High | L4: - | M4: - | N4: - | O4: - | P4: - | Q4: - | R4: - | S4: - | T4: - | U4: - | V4: - | W4: - | X4: - | Y4: -
B5: Vegetation cover
A6: 3 | B6: Annual_spp_groundcover | C6: Annual species cover (%) | D6: Value | E6: Calculated by model. Optional input | F6: 0 | G6: 0 | H6: 79 | I6: 79 | J6: 79 | K6: 79 | L6: =D10 -> 0 | M6: - | N6: - | O6: - | P6: - | Q6: - | R6: - | S6: - | T6: - | U6: - | V6: - | W6: - | X6: - | Y6: -
A7: 4 | B7: Perennial_spp_groundcover | C7: Perennial species cover (%) | D7: Value | E7: Calculated by model. Optional input | F7: 0 | G7: 43 | H7: 79 | I7: 79 | J7: 79 | K7: 79 | L7: - | M7: - | N7: - | O7: - | P7: - | Q7: - | R7: - | S7: - | T7: - | U7: - | V7: - | W7: - | X7: - | Y7: -
A8: 6 | B8: Woody_spp_cover | C8: Woody species cover (%) | D8: Value | E8: Calculated by model. Optional input | F8: 0 | G8: 0 | H8: 0 | I8: 0 | J8: 0 | K8: 0 | L8: - | M8: - | N8: - | O8: - | P8: - | Q8: - | R8: - | S8: - | T8: - | U8: - | V8: - | W8: - | X8: - | Y8: -
A9: 5 | B9: Vegetation_cover | C9: Total vegetation cover (%) | D9: Value | E9: Calculated by model. Optional input | F9: 0 | G9: 43 | H9: 79 | I9: 79 | J9: 79 | K9: 79 | L9: - | M9: - | N9: - | O9: - | P9: - | Q9: - | R9: - | S9: - | T9: - | U9: - | V9: - | W9: - | X9: - | Y9: -

Sheet Lists
A1: Netica Name | B1: Model name | C1: Values
A2: Climate variables
A3: CumulativeRainfall_2month | B3: Gypsum_Application_Month | C3: January
C4: February
C5: March
C6: April
C7: May
C8: June
C9: July
C10: August
C11: September
C12: October
C13: November
C14: December
C15: -
A16: CumulativeRainfall_2month | B16: Day_of_Month | C16: 1
C17: 2
C18: 3
C19: 4
C20: 5
C21: 6
C22: 7
C23: 8
C24: 9
C25: 10
C26: 11
C27: 12
C28: 13
C29: 14
C30: 15
C31: 16
C32: 17
C33: 18
C34: 19
C35: 20
C36: 21
C37: 22
C38: 23
C39: 24
C40: 25
C41: 26
C42: 27
C43: 28
C44: 29
C45: 30
C46: 31
C47: -
A48: CumulativeRainfall_2month | B48: Rainfall_modelling_conditions | C48: Decile 1 Year
C49: Average Year
C50: Decile 9 Year
C51: -
A52: Ammendments
A53: Spoil_amendment_rate | B53: Spoil_amendment_rate | C53: Nil
C54: Half_recommended
C55: Three_quarters_recommended
C56: As_Recommended
C57: -
A58: Spoil_amendment_type | B58: Spoil_amendment_type | C58: Gypsum
C59: Lime
C60: -
A61: Amendment_form | B61: Amendment_form | C61: Micronised
C62: Powder
C63: Granular
C64: -
A65: Spoil_amendment_application_1 | B65: Topsoil_amendment_application_method | C65: Spread
C66: Incorporated
C67: -
A68: Contour banks
A69: Contourbank_permanence | B69: Contourbank_permanence | C69: Permanent_maintained
C70: Permanent_not_maintained
C71: Temporary
C72: Not_constructed
C73: -
A74: UpslopeBund | B74: Upslope_bund | C74: Yes
C75: No
C76: -
A77: Landform
A78: Slope_shape | B78: Slope_shape | C78: Linear
C79: Concave
C80: Convex
C81: Complex_geomorphic
C82: -
A83: Lateral_landform_uniformity | B83: Lateral_landform_uniformity | C83: Flat_linear
C84: Converging
C85: Diverging
C86: -
A87: SlopeDrainage | B87: Slope_drainage_structures | C87: No_drainage
C88: Grassed_drains
C89: Rock_drains
C90: -
A91: Ripping
A92: Rip_direction | B92: Rip_direction | C92: Not_ripped
C93: Contour_ripped
C94: Grade_ripped_downslope
C95: -
A96: Rip_conditions | B96: Soil_moisture_at_time_of_ripping | C96: Dry
C97: Moist
C98: -
A99: Surface armouring
A100: Mixing_topsoil_rockmulch | B100: Rockmulch_applied | C100: Yes
C101: No
C102: -
A103: Vegetation management
A104: ERA_landuse_designation | B104: EA_Landuse_requirement | C104: Grazing
C105: Native_vegetation
C106: -
A107: Seed_Addition | B107: Seed_mix_applied | C107: None
C108: Native_Woodland_Spp
C109: Mixed_Woodland_Spp_Covercrop
C110: Perennial_Pasture_Spp
C111: Mixed_Pasture_Covercrop_Spp
C112: -
A113: Fertiliser_addition | B113: Topsoil_fertiliser_addition | C113: Yes
C114: No
C115: -
A116: Irrigation | B116: Irrigation | C116: Yes
C117: No
C118: -
A119: Soil condition
A120: Soil_Nutrient_Status | B120: Topsoil_nutrient_status | C120: Low
C121: Moderate
C122: High
C123: -
A124: Topsoil_organic_matter | B124: Topsoil_organic_carbon | C124: Very low
C125: Low
C126: Medium
C127: High
C128: -
A131: Results ranges
A132: Output component | B132: Output row | C132: No of output rows | D132: Formula
A133: PROFILE VULNERABILITY | B133: =MATCH(A133,Results!A:A,0) -> 151 | C133: =MATCH(TRUE,INDEX(INDIRECT(_xlfn.CONCAT("Results!B",B133+1,":B1000"))="",0),0)-1 -> 6 | D133: =_xlfn.CONCAT("Results!A",B133+1,":A",B133+C133) -> Results!A152:A157
A134: TUNNEL EXPOSURE | B134: =MATCH(A134,Results!A:A,0) -> 160 | C134: =MATCH(TRUE,INDEX(INDIRECT(_xlfn.CONCAT("Results!B",B134+1,":B1000"))="",0),0)-1 -> 4 | D134: =_xlfn.CONCAT("Results!A",B134+1,":A",B134+C134) -> Results!A161:A164
A135: TUNNELLING RISK | B135: =MATCH(A135,Results!A:A,0) -> 165 | C135: =MATCH(TRUE,INDEX(INDIRECT(_xlfn.CONCAT("Results!B",B135+1,":B1000"))="",0),0)-1 -> 6 | D135: =_xlfn.CONCAT("Results!A",B135+1,":A",B135+C135) -> Results!A166:A171
A136: LAYER 1 VULNERABILITY | B136: =MATCH(A136,Results!A:A,0) -> 96 | C136: =MATCH(TRUE,INDEX(INDIRECT(_xlfn.CONCAT("Results!B",B136+1,":B1000"))="",0),0)-1 -> 4 | D136: =_xlfn.CONCAT("Results!A",B136+1,":A",B136+C136) -> Results!A97:A100
A137: SURFACE GULLYING EXPOSURE | B137: =MATCH(A137,Results!A:A,0) -> 205 | C137: =MATCH(TRUE,INDEX(INDIRECT(_xlfn.CONCAT("Results!B",B137+1,":B1000"))="",0),0)-1 -> 4 | D137: Results!A206:A209
A138: SURFACE EROSION RISK | B138: =MATCH(A138,Results!A:A,0) -> 210 | C138: =MATCH(TRUE,INDEX(INDIRECT(_xlfn.CONCAT("Results!B",B138+1,":B1000"))="",0),0)-1 -> 6 | D138: Results!A211:A216

Sheet Scenarios Combined
A1: N Order | B1: Netica Name | C1: Model name | D1: Values | E1: Notes | F1: =Scenarios!A3&Scenarios!$C3 -> Scenario 01: 1. Pre-amendment | G1: =Scenarios!A4&Scenarios!$C4 -> Scenario 02: 2. Rock mulch treatment | H1: =Scenarios!A5&Scenarios!$C5 -> Scenario 03: 3. Post-amendment | I1: =Scenarios!A6&Scenarios!$C6 -> Scenario 04: 4. Post-amendment (Reduced treatment depth) | J1: =Scenarios!A7&Scenarios!$C7 -> Scenario 05: 5. Post-amendment (Reduced treatment ESP) | K1: =Scenarios!A8&Scenarios!$C8 -> Scenario 06: 6. Post-amendment (Reduced treatment depth and ESP) | L1: =Scenarios!A9&Scenarios!$C9 -> Scenario 07: - | M1: =Scenarios!A10&Scenarios!$C10 -> Scenario 08: - | N1: =Scenarios!A11&Scenarios!$C11 -> Scenario 09: - | O1: =Scenarios!A12&Scenarios!$C12 -> Scenario 10: - | P1: =Scenarios!A13&Scenarios!$C13 -> Scenario 11: - | Q1: =Scenarios!A14&Scenarios!$C14 -> Scenario 12: - | R1: =Scenarios!A15&Scenarios!$C15 -> Scenario 13: - | S1: =Scenarios!A16&Scenarios!$C16 -> Scenario 14: - | T1: =Scenarios!A17&Scenarios!$C17 -> Scenario 15: - | U1: =Scenarios!A18&Scenarios!$C18 -> Scenario 16: - | V1: =Scenarios!A19&Scenarios!$C19 -> Scenario 17: - | W1: =Scenarios!A20&Scenarios!$C20 -> Scenario 18: - | X1: =Scenarios!A21&Scenarios!$C21 -> Scenario 19: - | Y1: =Scenarios!A22&Scenarios!$C22 -> Scenario 20: - | Z1: Add new columns to left
B2: Climate assumptions
A3: ='Climate Assumptions'!A2 -> 0 | B3: ='Climate Assumptions'!B2 -> Climate assumptions
A4: ='Climate Assumptions'!A3 -> 0 | B4: ='Climate Assumptions'!B3 -> 0 | C4: ='Climate Assumptions'!C3 -> Rainfall modelling conditions | D4: ='Climate Assumptions'!D3 -> Class | E4: ='Climate Assumptions'!E3 -> User selected | F4: ='Climate Assumptions'!F3 -> Average Year | G4: ='Climate Assumptions'!G3 -> Average Year | H4: ='Climate Assumptions'!H3 -> Average Year | I4: ='Climate Assumptions'!I3 -> Average Year | J4: ='Climate Assumptions'!J3 -> Average Year | K4: ='Climate Assumptions'!K3 -> Average Year | L4: ='Climate Assumptions'!L3 -> - | M4: ='Climate Assumptions'!M3 -> - | N4: ='Climate Assumptions'!N3 -> - | O4: ='Climate Assumptions'!O3 -> - | P4: ='Climate Assumptions'!P3 -> - | Q4: ='Climate Assumptions'!Q3 -> - | R4: ='Climate Assumptions'!R3 -> - | S4: ='Climate Assumptions'!S3 -> - | T4: ='Climate Assumptions'!T3 -> - | U4: ='Climate Assumptions'!U3 -> - | V4: ='Climate Assumptions'!V3 -> - | W4: ='Climate Assumptions'!W3 -> - | X4: ='Climate Assumptions'!X3 -> - | Y4: ='Climate Assumptions'!Y3 -> -
A5: ='Climate Assumptions'!A4 -> 1 | B5: ='Climate Assumptions'!B4 -> Avge_annual_rainfall | C5: ='Climate Assumptions'!C4 -> Average Annual Rainfall | D5: ='Climate Assumptions'!D4 -> Values | E5: ='Climate Assumptions'!E4 -> Calculated - no direct model input | F5: ='Climate Assumptions'!F4 -> 606.9789964 | G5: ='Climate Assumptions'!G4 -> 606.9789964 | H5: ='Climate Assumptions'!H4 -> 606.9789964 | I5: ='Climate Assumptions'!I4 -> 606.9789964 | J5: ='Climate Assumptions'!J4 -> 606.9789964 | K5: ='Climate Assumptions'!K4 -> 606.9789964 | L5: ='Climate Assumptions'!L4 -> - | M5: ='Climate Assumptions'!M4 -> - | N5: ='Climate Assumptions'!N4 -> - | O5: ='Climate Assumptions'!O4 -> - | P5: ='Climate Assumptions'!P4 -> - | Q5: ='Climate Assumptions'!Q4 -> - | R5: ='Climate Assumptions'!R4 -> - | S5: ='Climate Assumptions'!S4 -> - | T5: ='Climate Assumptions'!T4 -> - | U5: ='Climate Assumptions'!U4 -> - | V5: ='Climate Assumptions'!V4 -> - | W5: ='Climate Assumptions'!W4 -> - | X5: ='Climate Assumptions'!X4 -> - | Y5: ='Climate Assumptions'!Y4 -> -
A6: ='Climate Assumptions'!A5 -> 4 | B6: ='Climate Assumptions'!B5 -> Rainfall_IFD_index | C6: ='Climate Assumptions'!C5 -> Probability of > 50mm/hr rainfall | D6: ='Climate Assumptions'!D5 -> Class | E6: ='Climate Assumptions'!E5 -> Calculated - no direct model input | F6: ='Climate Assumptions'!F5 -> High | G6: ='Climate Assumptions'!G5 -> High | H6: ='Climate Assumptions'!H5 -> High | I6: ='Climate Assumptions'!I5 -> High | J6: ='Climate Assumptions'!J5 -> High | K6: ='Climate Assumptions'!K5 -> High | L6: ='Climate Assumptions'!L5 -> - | M6: ='Climate Assumptions'!M5 -> - | N6: ='Climate Assumptions'!N5 -> - | O6: ='Climate Assumptions'!O5 -> - | P6: ='Climate Assumptions'!P5 -> - | Q6: ='Climate Assumptions'!Q5 -> - | R6: ='Climate Assumptions'!R5 -> - | S6: ='Climate Assumptions'!S5 -> - | T6: ='Climate Assumptions'!T5 -> - | U6: ='Climate Assumptions'!U5 -> - | V6: ='Climate Assumptions'!V5 -> - | W6: ='Climate Assumptions'!W5 -> - | X6: ='Climate Assumptions'!X5 -> - | Y6: ='Climate Assumptions'!Y5 -> -
A7: ='Climate Assumptions'!A6 -> 0 | B7: ='Climate Assumptions'!B6 -> 0 | C7: ='Climate Assumptions'!C6 -> Gypsum Application month | D7: ='Climate Assumptions'!D6 -> Class | E7: ='Climate Assumptions'!E6 -> User selected | F7: ='Climate Assumptions'!F6 -> November | G7: ='Climate Assumptions'!G6 -> November | H7: ='Climate Assumptions'!H6 -> November | I7: ='Climate Assumptions'!I6 -> November | J7: ='Climate Assumptions'!J6 -> November | K7: ='Climate Assumptions'!K6 -> November | L7: ='Climate Assumptions'!L6 -> - | M7: ='Climate Assumptions'!M6 -> - | N7: ='Climate Assumptions'!N6 -> - | O7: ='Climate Assumptions'!O6 -> - | P7: ='Climate Assumptions'!P6 -> - | Q7: ='Climate Assumptions'!Q6 -> - | R7: ='Climate Assumptions'!R6 -> - | S7: ='Climate Assumptions'!S6 -> - | T7: ='Climate Assumptions'!T6 -> - | U7: ='Climate Assumptions'!U6 -> - | V7: ='Climate Assumptions'!V6 -> - | W7: ='Climate Assumptions'!W6 -> - | X7: ='Climate Assumptions'!X6 -> - | Y7: ='Climate Assumptions'!Y6 -> -
A8: ='Climate Assumptions'!A7 -> 0 | B8: ='Climate Assumptions'!B7 -> 0 | C8: ='Climate Assumptions'!C7 -> Day of month | D8: ='Climate Assumptions'!D7 -> Class | E8: ='Climate Assumptions'!E7 -> User selected | F8: ='Climate Assumptions'!F7 -> 12 | G8: ='Climate Assumptions'!G7 -> 22 | H8: ='Climate Assumptions'!H7 -> 1 | I8: ='Climate Assumptions'!I7 -> 1 | J8: ='Climate Assumptions'!J7 -> 1 | K8: ='Climate Assumptions'!K7 -> 1 | L8: ='Climate Assumptions'!L7 -> - | M8: ='Climate Assumptions'!M7 -> - | N8: ='Climate Assumptions'!N7 -> - | O8: ='Climate Assumptions'!O7 -> - | P8: ='Climate Assumptions'!P7 -> - | Q8: ='Climate Assumptions'!Q7 -> - | R8: ='Climate Assumptions'!R7 -> - | S8: ='Climate Assumptions'!S7 -> - | T8: ='Climate Assumptions'!T7 -> - | U8: ='Climate Assumptions'!U7 -> - | V8: ='Climate Assumptions'!V7 -> - | W8: ='Climate Assumptions'!W7 -> - | X8: ='Climate Assumptions'!X7 -> - | Y8: ='Climate Assumptions'!Y7 -> -
A9: ='Climate Assumptions'!A9 -> 2,3 | B9: ='Climate Assumptions'!B9 -> CumulativeRainfall_2month | C9: ='Climate Assumptions'!C9 -> Cumulative rainfall 2months following gypsum application | D9: ='Climate Assumptions'!D9 -> Values | E9: ='Climate Assumptions'!E9 -> Calculated - no direct model input | F9: ='Climate Assumptions'!F9 -> 156.6730209 | G9: ='Climate Assumptions'!G9 -> 184.3858146 | H9: ='Climate Assumptions'!H9 -> 128.9602273 | I9: ='Climate Assumptions'!I9 -> 128.9602273 | J9: ='Climate Assumptions'!J9 -> 128.9602273 | K9: ='Climate Assumptions'!K9 -> 128.9602273 | L9: ='Climate Assumptions'!L9 -> - | M9: ='Climate Assumptions'!M9 -> - | N9: ='Climate Assumptions'!N9 -> - | O9: ='Climate Assumptions'!O9 -> - | P9: ='Climate Assumptions'!P9 -> - | Q9: ='Climate Assumptions'!Q9 -> - | R9: ='Climate Assumptions'!R9 -> - | S9: ='Climate Assumptions'!S9 -> - | T9: ='Climate Assumptions'!T9 -> - | U9: ='Climate Assumptions'!U9 -> - | V9: ='Climate Assumptions'!V9 -> - | W9: ='Climate Assumptions'!W9 -> - | X9: ='Climate Assumptions'!X9 -> - | Y9: ='Climate Assumptions'!Y9 -> -
B10: Interventions
A11: =Interventions!A2 -> 0 | B11: =Interventions!B2 -> Ammendment rate for each soil layer
A12: =Interventions!A3 -> 11 | B12: =Interventions!B3 -> Spoil_amendment_rate_1 | C12: =Interventions!C3 -> Spoil amendment rate Layer 1 | D12: =Interventions!D3 -> Class | E12: =Interventions!E3 -> - | F12: =Interventions!F3 -> Nil | G12: =Interventions!G3 -> Nil | H12: =Interventions!H3 -> As_Recommended | I12: =Interventions!I3 -> As_Recommended | J12: =Interventions!J3 -> Half_recommended | K12: =Interventions!K3 -> Half_recommended | L12: =Interventions!L3 -> - | M12: =Interventions!M3 -> - | N12: =Interventions!N3 -> - | O12: =Interventions!O3 -> - | P12: =Interventions!P3 -> - | Q12: =Interventions!Q3 -> - | R12: =Interventions!R3 -> - | S12: =Interventions!S3 -> - | T12: =Interventions!T3 -> - | U12: =Interventions!U3 -> - | V12: =Interventions!V3 -> - | W12: =Interventions!W3 -> - | X12: =Interventions!X3 -> - | Y12: =Interventions!Y3 -> -
A13: =Interventions!A4 -> 12 | B13: =Interventions!B4 -> Spoil_amendment_rate_2 | C13: =Interventions!C4 -> Spoil amendment rate Layer 2 | D13: =Interventions!D4 -> Class | E13: =Interventions!E4 -> - | F13: =Interventions!F4 -> Nil | G13: =Interventions!G4 -> Nil | H13: =Interventions!H4 -> As_Recommended | I13: =Interventions!I4 -> As_Recommended | J13: =Interventions!J4 -> Half_recommended | K13: =Interventions!K4 -> Half_recommended | L13: =Interventions!L4 -> - | M13: =Interventions!M4 -> - | N13: =Interventions!N4 -> - | O13: =Interventions!O4 -> - | P13: =Interventions!P4 -> - | Q13: =Interventions!Q4 -> - | R13: =Interventions!R4 -> - | S13: =Interventions!S4 -> - | T13: =Interventions!T4 -> - | U13: =Interventions!U4 -> - | V13: =Interventions!V4 -> - | W13: =Interventions!W4 -> - | X13: =Interventions!X4 -> - | Y13: =Interventions!Y4 -> -
A14: =Interventions!A5 -> 13 | B14: =Interventions!B5 -> Spoil_amendment_rate_3 | C14: =Interventions!C5 -> Spoil amendment rate Layer 3 | D14: =Interventions!D5 -> Class | E14: =Interventions!E5 -> - | F14: =Interventions!F5 -> Nil | G14: =Interventions!G5 -> Nil | H14: =Interventions!H5 -> As_Recommended | I14: =Interventions!I5 -> As_Recommended | J14: =Interventions!J5 -> Half_recommended | K14: =Interventions!K5 -> Half_recommended | L14: =Interventions!L5 -> - | M14: =Interventions!M5 -> - | N14: =Interventions!N5 -> - | O14: =Interventions!O5 -> - | P14: =Interventions!P5 -> - | Q14: =Interventions!Q5 -> - | R14: =Interventions!R5 -> - | S14: =Interventions!S5 -> - | T14: =Interventions!T5 -> - | U14: =Interventions!U5 -> - | V14: =Interventions!V5 -> - | W14: =Interventions!W5 -> - | X14: =Interventions!X5 -> - | Y14: =Interventions!Y5 -> -
A15: =Interventions!A7 -> 14 | B15: =Interventions!B7 -> Spoil_amendment_type_1 | C15: =Interventions!C7 -> Spoil amendment type Layer 1 | D15: =Interventions!D7 -> Class | E15: =Interventions!E7 -> - | F15: =Interventions!F7 -> - | G15: =Interventions!G7 -> Gypsum | H15: =Interventions!H7 -> Gypsum | I15: =Interventions!I7 -> Gypsum | J15: =Interventions!J7 -> Gypsum | K15: =Interventions!K7 -> Gypsum | L15: =Interventions!L7 -> - | M15: =Interventions!M7 -> - | N15: =Interventions!N7 -> - | O15: =Interventions!O7 -> - | P15: =Interventions!P7 -> - | Q15: =Interventions!Q7 -> - | R15: =Interventions!R7 -> - | S15: =Interventions!S7 -> - | T15: =Interventions!T7 -> - | U15: =Interventions!U7 -> - | V15: =Interventions!V7 -> - | W15: =Interventions!W7 -> - | X15: =Interventions!X7 -> - | Y15: =Interventions!Y7 -> -
A16: =Interventions!A8 -> 15 | B16: =Interventions!B8 -> Spoil_amendment_type_2 | C16: =Interventions!C8 -> Spoil amendment type Layer 2 | D16: =Interventions!D8 -> Class | E16: =Interventions!E8 -> - | F16: =Interventions!F8 -> - | G16: =Interventions!G8 -> Gypsum | H16: =Interventions!H8 -> Gypsum | I16: =Interventions!I8 -> Gypsum | J16: =Interventions!J8 -> Gypsum | K16: =Interventions!K8 -> Gypsum | L16: =Interventions!L8 -> - | M16: =Interventions!M8 -> - | N16: =Interventions!N8 -> - | O16: =Interventions!O8 -> - | P16: =Interventions!P8 -> - | Q16: =Interventions!Q8 -> - | R16: =Interventions!R8 -> - | S16: =Interventions!S8 -> - | T16: =Interventions!T8 -> - | U16: =Interventions!U8 -> - | V16: =Interventions!V8 -> - | W16: =Interventions!W8 -> - | X16: =Interventions!X8 -> - | Y16: =Interventions!Y8 -> -
A17: =Interventions!A9 -> 16 | B17: =Interventions!B9 -> Spoil_amendment_type_3 | C17: =Interventions!C9 -> Spoil amendment type Layer 3 | D17: =Interventions!D9 -> Class | E17: =Interventions!E9 -> - | F17: =Interventions!F9 -> - | G17: =Interventions!G9 -> Gypsum | H17: =Interventions!H9 -> Gypsum | I17: =Interventions!I9 -> Gypsum | J17: =Interventions!J9 -> Gypsum | K17: =Interventions!K9 -> Gypsum | L17: =Interventions!L9 -> - | M17: =Interventions!M9 -> - | N17: =Interventions!N9 -> - | O17: =Interventions!O9 -> - | P17: =Interventions!P9 -> - | Q17: =Interventions!Q9 -> - | R17: =Interventions!R9 -> - | S17: =Interventions!S9 -> - | T17: =Interventions!T9 -> - | U17: =Interventions!U9 -> - | V17: =Interventions!V9 -> - | W17: =Interventions!W9 -> - | X17: =Interventions!X9 -> - | Y17: =Interventions!Y9 -> -
A18: =Interventions!A11 -> 1 | B18: =Interventions!B11 -> Amendment_form_1 | C18: =Interventions!C11 -> Amendment form Layer 1 | D18: =Interventions!D11 -> Class | E18: =Interventions!E11 -> - | F18: =Interventions!F11 -> - | G18: =Interventions!G11 -> Granular | H18: =Interventions!H11 -> Granular | I18: =Interventions!I11 -> Granular | J18: =Interventions!J11 -> Granular | K18: =Interventions!K11 -> Granular | L18: =Interventions!L11 -> - | M18: =Interventions!M11 -> - | N18: =Interventions!N11 -> - | O18: =Interventions!O11 -> - | P18: =Interventions!P11 -> - | Q18: =Interventions!Q11 -> - | R18: =Interventions!R11 -> - | S18: =Interventions!S11 -> - | T18: =Interventions!T11 -> - | U18: =Interventions!U11 -> - | V18: =Interventions!V11 -> - | W18: =Interventions!W11 -> - | X18: =Interventions!X11 -> - | Y18: =Interventions!Y11 -> -
A19: =Interventions!A12 -> 2 | B19: =Interventions!B12 -> Amendment_form_2 | C19: =Interventions!C12 -> Amendment form Layer 2 | D19: =Interventions!D12 -> Class | E19: =Interventions!E12 -> - | F19: =Interventions!F12 -> - | G19: =Interventions!G12 -> Granular | H19: =Interventions!H12 -> Granular | I19: =Interventions!I12 -> Granular | J19: =Interventions!J12 -> Granular | K19: =Interventions!K12 -> Granular | L19: =Interventions!L12 -> - | M19: =Interventions!M12 -> - | N19: =Interventions!N12 -> - | O19: =Interventions!O12 -> - | P19: =Interventions!P12 -> - | Q19: =Interventions!Q12 -> - | R19: =Interventions!R12 -> - | S19: =Interventions!S12 -> - | T19: =Interventions!T12 -> - | U19: =Interventions!U12 -> - | V19: =Interventions!V12 -> - | W19: =Interventions!W12 -> - | X19: =Interventions!X12 -> - | Y19: =Interventions!Y12 -> -
A20: =Interventions!A13 -> 3 | B20: =Interventions!B13 -> Amendment_form_3 | C20: =Interventions!C13 -> Amendment form Layer 3 | D20: =Interventions!D13 -> Class | E20: =Interventions!E13 -> - | F20: =Interventions!F13 -> - | G20: =Interventions!G13 -> Granular | H20: =Interventions!H13 -> Granular | I20: =Interventions!I13 -> Granular | J20: =Interventions!J13 -> Granular | K20: =Interventions!K13 -> Granular | L20: =Interventions!L13 -> - | M20: =Interventions!M13 -> - | N20: =Interventions!N13 -> - | O20: =Interventions!O13 -> - | P20: =Interventions!P13 -> - | Q20: =Interventions!Q13 -> - | R20: =Interventions!R13 -> - | S20: =Interventions!S13 -> - | T20: =Interventions!T13 -> - | U20: =Interventions!U13 -> - | V20: =Interventions!V13 -> - | W20: =Interventions!W13 -> - | X20: =Interventions!X13 -> - | Y20: =Interventions!Y13 -> -
A21: =Interventions!A15 -> 26 | B21: =Interventions!B15 -> Spoil_amendment_application_1 | C21: =Interventions!C15 -> Topsoil amendment application method | D21: =Interventions!D15 -> Class | E21: =Interventions!E15 -> - | F21: =Interventions!F15 -> - | G21: =Interventions!G15 -> Incorporated | H21: =Interventions!H15 -> Incorporated | I21: =Interventions!I15 -> Incorporated | J21: =Interventions!J15 -> Incorporated | K21: =Interventions!K15 -> Incorporated | L21: =Interventions!L15 -> - | M21: =Interventions!M15 -> - | N21: =Interventions!N15 -> - | O21: =Interventions!O15 -> - | P21: =Interventions!P15 -> - | Q21: =Interventions!Q15 -> - | R21: =Interventions!R15 -> - | S21: =Interventions!S15 -> - | T21: =Interventions!T15 -> - | U21: =Interventions!U15 -> - | V21: =Interventions!V15 -> - | W21: =Interventions!W15 -> - | X21: =Interventions!X15 -> - | Y21: =Interventions!Y15 -> -
A22: =Interventions!A16 -> 0 | B22: =Interventions!B16 -> Contour banks
A23: =Interventions!A17 -> 19 | B23: =Interventions!B17 -> Contourbank_height | C23: =Interventions!C17 -> Contourbank height (mm) | D23: =Interventions!D17 -> Value | E23: =Interventions!E17 -> - | F23: =Interventions!F17 -> 500 | G23: =Interventions!G17 -> 0 | H23: =Interventions!H17 -> 500 | I23: =Interventions!I17 -> 500 | J23: =Interventions!J17 -> 500 | K23: =Interventions!K17 -> 500 | L23: =Interventions!L17 -> - | M23: =Interventions!M17 -> - | N23: =Interventions!N17 -> - | O23: =Interventions!O17 -> - | P23: =Interventions!P17 -> - | Q23: =Interventions!Q17 -> - | R23: =Interventions!R17 -> - | S23: =Interventions!S17 -> - | T23: =Interventions!T17 -> - | U23: =Interventions!U17 -> - | V23: =Interventions!V17 -> - | W23: =Interventions!W17 -> - | X23: =Interventions!X17 -> - | Y23: =Interventions!Y17 -> -
A24: =Interventions!A18 -> 25 | B24: =Interventions!B18 -> Contourbank_Interval | C24: =Interventions!C18 -> Contourbank Interval (m) | D24: =Interventions!D18 -> Value | E24: =Interventions!E18 -> - | F24: =Interventions!F18 -> 20 | G24: =Interventions!G18 -> 20 | H24: =Interventions!H18 -> 20 | I24: =Interventions!I18 -> 20 | J24: =Interventions!J18 -> 20 | K24: =Interventions!K18 -> 20 | L24: =Interventions!L18 -> - | M24: =Interventions!M18 -> - | N24: =Interventions!N18 -> - | O24: =Interventions!O18 -> - | P24: =Interventions!P18 -> - | Q24: =Interventions!Q18 -> - | R24: =Interventions!R18 -> - | S24: =Interventions!S18 -> - | T24: =Interventions!T18 -> - | U24: =Interventions!U18 -> - | V24: =Interventions!V18 -> - | W24: =Interventions!W18 -> - | X24: =Interventions!X18 -> - | Y24: =Interventions!Y18 -> -
A25: =Interventions!A19 -> 4 | B25: =Interventions!B19 -> Contourbank_permanence | C25: =Interventions!C19 -> Contourbank permanence | D25: =Interventions!D19 -> Class | E25: =Interventions!E19 -> - | F25: =Interventions!F19 -> Temporary | G25: =Interventions!G19 -> Temporary | H25: =Interventions!H19 -> Temporary | I25: =Interventions!I19 -> Temporary | J25: =Interventions!J19 -> Temporary | K25: =Interventions!K19 -> Temporary | L25: =Interventions!L19 -> - | M25: =Interventions!M19 -> - | N25: =Interventions!N19 -> - | O25: =Interventions!O19 -> - | P25: =Interventions!P19 -> - | Q25: =Interventions!Q19 -> - | R25: =Interventions!R19 -> - | S25: =Interventions!S19 -> - | T25: =Interventions!T19 -> - | U25: =Interventions!U19 -> - | V25: =Interventions!V19 -> - | W25: =Interventions!W19 -> - | X25: =Interventions!X19 -> - | Y25: =Interventions!Y19 -> -
A26: =Interventions!A20 -> 17 | B26: =Interventions!B20 -> UpslopeBund | C26: =Interventions!C20 -> Upslope bund | D26: =Interventions!D20 -> Class | E26: =Interventions!E20 -> - | F26: =Interventions!F20 -> Yes | G26: =Interventions!G20 -> Yes | H26: =Interventions!H20 -> Yes | I26: =Interventions!I20 -> Yes | J26: =Interventions!J20 -> Yes | K26: =Interventions!K20 -> Yes | L26: =Interventions!L20 -> - | M26: =Interventions!M20 -> - | N26: =Interventions!N20 -> - | O26: =Interventions!O20 -> - | P26: =Interventions!P20 -> - | Q26: =Interventions!Q20 -> - | R26: =Interventions!R20 -> - | S26: =Interventions!S20 -> - | T26: =Interventions!T20 -> - | U26: =Interventions!U20 -> - | V26: =Interventions!V20 -> - | W26: =Interventions!W20 -> - | X26: =Interventions!X20 -> - | Y26: =Interventions!Y20 -> -
A27: =Interventions!A21 -> 0 | B27: =Interventions!B21 -> Landform
A28: =Interventions!A22 -> 23 | B28: =Interventions!B22 -> Slope_angle | C28: =Interventions!C22 -> Slope angle (%) | D28: =Interventions!D22 -> Value | E28: =Interventions!E22 -> - | F28: =Interventions!F22 -> 10 | G28: =Interventions!G22 -> 10 | H28: =Interventions!H22 -> 10 | I28: =Interventions!I22 -> 10 | J28: =Interventions!J22 -> 10 | K28: =Interventions!K22 -> 10 | L28: =Interventions!L22 -> - | M28: =Interventions!M22 -> - | N28: =Interventions!N22 -> - | O28: =Interventions!O22 -> - | P28: =Interventions!P22 -> - | Q28: =Interventions!Q22 -> - | R28: =Interventions!R22 -> - | S28: =Interventions!S22 -> - | T28: =Interventions!T22 -> - | U28: =Interventions!U22 -> - | V28: =Interventions!V22 -> - | W28: =Interventions!W22 -> - | X28: =Interventions!X22 -> - | Y28: =Interventions!Y22 -> -
A29: =Interventions!A23 -> 21 | B29: =Interventions!B23 -> Overall_Slope_length | C29: =Interventions!C23 -> Overall slope length (m) | D29: =Interventions!D23 -> Value | E29: =Interventions!E23 -> - | F29: =Interventions!F23 -> 100 | G29: =Interventions!G23 -> 100 | H29: =Interventions!H23 -> 100 | I29: =Interventions!I23 -> 100 | J29: =Interventions!J23 -> 100 | K29: =Interventions!K23 -> 100 | L29: =Interventions!L23 -> - | M29: =Interventions!M23 -> - | N29: =Interventions!N23 -> - | O29: =Interventions!O23 -> - | P29: =Interventions!P23 -> - | Q29: =Interventions!Q23 -> - | R29: =Interventions!R23 -> - | S29: =Interventions!S23 -> - | T29: =Interventions!T23 -> - | U29: =Interventions!U23 -> - | V29: =Interventions!V23 -> - | W29: =Interventions!W23 -> - | X29: =Interventions!X23 -> - | Y29: =Interventions!Y23 -> -
A30: =Interventions!A24 -> 10 | B30: =Interventions!B24 -> Slope_shape | C30: =Interventions!C24 -> Slope shape | D30: =Interventions!D24 -> Class | E30: =Interventions!E24 -> - | F30: =Interventions!F24 -> Linear | G30: =Interventions!G24 -> Linear | H30: =Interventions!H24 -> Linear | I30: =Interventions!I24 -> Linear | J30: =Interventions!J24 -> Linear | K30: =Interventions!K24 -> Linear | L30: =Interventions!L24 -> - | M30: =Interventions!M24 -> - | N30: =Interventions!N24 -> - | O30: =Interventions!O24 -> - | P30: =Interventions!P24 -> - | Q30: =Interventions!Q24 -> - | R30: =Interventions!R24 -> - | S30: =Interventions!S24 -> - | T30: =Interventions!T24 -> - | U30: =Interventions!U24 -> - | V30: =Interventions!V24 -> - | W30: =Interventions!W24 -> - | X30: =Interventions!X24 -> - | Y30: =Interventions!Y24 -> -
A31: =Interventions!A25 -> 5 | B31: =Interventions!B25 -> Lateral_landform_uniformity | C31: =Interventions!C25 -> Lateral landform uniformity | D31: =Interventions!D25 -> Class | E31: =Interventions!E25 -> - | F31: =Interventions!F25 -> Flat_linear | G31: =Interventions!G25 -> Flat_linear | H31: =Interventions!H25 -> Flat_linear | I31: =Interventions!I25 -> Flat_linear | J31: =Interventions!J25 -> Flat_linear | K31: =Interventions!K25 -> Flat_linear | L31: =Interventions!L25 -> - | M31: =Interventions!M25 -> - | N31: =Interventions!N25 -> - | O31: =Interventions!O25 -> - | P31: =Interventions!P25 -> - | Q31: =Interventions!Q25 -> - | R31: =Interventions!R25 -> - | S31: =Interventions!S25 -> - | T31: =Interventions!T25 -> - | U31: =Interventions!U25 -> - | V31: =Interventions!V25 -> - | W31: =Interventions!W25 -> - | X31: =Interventions!X25 -> - | Y31: =Interventions!Y25 -> -
A32: =Interventions!A26 -> 9 | B32: =Interventions!B26 -> Slope_Drainage_Type | C32: =Interventions!C26 -> Slope drainage type | D32: =Interventions!D26 -> Class | E32: =Interventions!E26 -> - | F32: =Interventions!F26 -> Grassed_drains | G32: =Interventions!G26 -> No_drainage | H32: =Interventions!H26 -> Grassed_drains | I32: =Interventions!I26 -> Grassed_drains | J32: =Interventions!J26 -> Grassed_drains | K32: =Interventions!K26 -> Grassed_drains | L32: =Interventions!L26 -> - | M32: =Interventions!M26 -> - | N32: =Interventions!N26 -> - | O32: =Interventions!O26 -> - | P32: =Interventions!P26 -> - | Q32: =Interventions!Q26 -> - | R32: =Interventions!R26 -> - | S32: =Interventions!S26 -> - | T32: =Interventions!T26 -> - | U32: =Interventions!U26 -> - | V32: =Interventions!V26 -> - | W32: =Interventions!W26 -> - | X32: =Interventions!X26 -> - | Y32: =Interventions!Y26 -> -
A33: =Interventions!A27 -> 0 | B33: =Interventions!B27 -> Ripping
A34: =Interventions!A28 -> 22 | B34: =Interventions!B28 -> Rip_depth | C34: =Interventions!C28 -> Rip depth (cm) | D34: =Interventions!D28 -> Class | E34: =Interventions!E28 -> - | F34: =Interventions!F28 -> 50 | G34: =Interventions!G28 -> 50 | H34: =Interventions!H28 -> 50 | I34: =Interventions!I28 -> 50 | J34: =Interventions!J28 -> 50 | K34: =Interventions!K28 -> 50 | L34: =Interventions!L28 -> - | M34: =Interventions!M28 -> - | N34: =Interventions!N28 -> - | O34: =Interventions!O28 -> - | P34: =Interventions!P28 -> - | Q34: =Interventions!Q28 -> - | R34: =Interventions!R28 -> - | S34: =Interventions!S28 -> - | T34: =Interventions!T28 -> - | U34: =Interventions!U28 -> - | V34: =Interventions!V28 -> - | W34: =Interventions!W28 -> - | X34: =Interventions!X28 -> - | Y34: =Interventions!Y28 -> -
A35: =Interventions!A29 -> 8 | B35: =Interventions!B29 -> Rip_direction | C35: =Interventions!C29 -> Rip direction | D35: =Interventions!D29 -> Class | E35: =Interventions!E29 -> - | F35: =Interventions!F29 -> Grade_ripped_downslope | G35: =Interventions!G29 -> Contour_ripped | H35: =Interventions!H29 -> Grade_ripped_downslope | I35: =Interventions!I29 -> Grade_ripped_downslope | J35: =Interventions!J29 -> Grade_ripped_downslope | K35: =Interventions!K29 -> Grade_ripped_downslope | L35: =Interventions!L29 -> - | M35: =Interventions!M29 -> - | N35: =Interventions!N29 -> - | O35: =Interventions!O29 -> - | P35: =Interventions!P29 -> - | Q35: =Interventions!Q29 -> - | R35: =Interventions!R29 -> - | S35: =Interventions!S29 -> - | T35: =Interventions!T29 -> - | U35: =Interventions!U29 -> - | V35: =Interventions!V29 -> - | W35: =Interventions!W29 -> - | X35: =Interventions!X29 -> - | Y35: =Interventions!Y29 -> -
A36: =Interventions!A30 -> 7 | B36: =Interventions!B30 -> Rip_conditions | C36: =Interventions!C30 -> Soil moisture at time of ripping | D36: =Interventions!D30 -> Class | E36: =Interventions!E30 -> - | F36: =Interventions!F30 -> Moist | G36: =Interventions!G30 -> Dry | H36: =Interventions!H30 -> Moist | I36: =Interventions!I30 -> Moist | J36: =Interventions!J30 -> Moist | K36: =Interventions!K30 -> Moist | L36: =Interventions!L30 -> - | M36: =Interventions!M30 -> - | N36: =Interventions!N30 -> - | O36: =Interventions!O30 -> - | P36: =Interventions!P30 -> - | Q36: =Interventions!Q30 -> - | R36: =Interventions!R30 -> - | S36: =Interventions!S30 -> - | T36: =Interventions!T30 -> - | U36: =Interventions!U30 -> - | V36: =Interventions!V30 -> - | W36: =Interventions!W30 -> - | X36: =Interventions!X30 -> - | Y36: =Interventions!Y30 -> -
A37: =Interventions!A31 -> 0 | B37: =Interventions!B31 -> Surface armouring
A38: =Interventions!A32 -> 6 | B38: =Interventions!B32 -> Mixing_topsoil_rockmulch | C38: =Interventions!C32 -> Rockmulch applied | D38: =Interventions!D32 -> Class | E38: =Interventions!E32 -> - | F38: =Interventions!F32 -> No | G38: =Interventions!G32 -> Yes | H38: =Interventions!H32 -> No | I38: =Interventions!I32 -> No | J38: =Interventions!J32 -> No | K38: =Interventions!K32 -> No | L38: =Interventions!L32 -> - | M38: =Interventions!M32 -> - | N38: =Interventions!N32 -> - | O38: =Interventions!O32 -> - | P38: =Interventions!P32 -> - | Q38: =Interventions!Q32 -> - | R38: =Interventions!R32 -> - | S38: =Interventions!S32 -> - | T38: =Interventions!T32 -> - | U38: =Interventions!U32 -> - | V38: =Interventions!V32 -> - | W38: =Interventions!W32 -> - | X38: =Interventions!X32 -> - | Y38: =Interventions!Y32 -> -
A39: =Interventions!A33 -> 24 | B39: =Interventions!B33 -> Surface_armouring_quantity | C39: =Interventions!C33 -> Surface armouring depth (cm) | D39: =Interventions!D33 -> Value | E39: =Interventions!E33 -> - | F39: =Interventions!F33 -> 0 | G39: =Interventions!G33 -> 100 | H39: =Interventions!H33 -> 0 | I39: =Interventions!I33 -> 0 | J39: =Interventions!J33 -> 0 | K39: =Interventions!K33 -> 0 | L39: =Interventions!L33 -> - | M39: =Interventions!M33 -> - | N39: =Interventions!N33 -> - | O39: =Interventions!O33 -> - | P39: =Interventions!P33 -> - | Q39: =Interventions!Q33 -> - | R39: =Interventions!R33 -> - | S39: =Interventions!S33 -> - | T39: =Interventions!T33 -> - | U39: =Interventions!U33 -> - | V39: =Interventions!V33 -> - | W39: =Interventions!W33 -> - | X39: =Interventions!X33 -> - | Y39: =Interventions!Y33 -> -
A40: =Interventions!A34 -> 30 | B40: =Interventions!B34 -> Surface_roughness_noVeg | C40: =Interventions!C34 -> Soil surface roughness (clod/rock size) (cm) | D40: =Interventions!D34 -> Value | E40: =Interventions!E34 -> Calculated by model. Optional input | F40: =Interventions!F34 -> 5 | G40: =Interventions!G34 -> 50 | H40: =Interventions!H34 -> 10 | I40: =Interventions!I34 -> 10 | J40: =Interventions!J34 -> 10 | K40: =Interventions!K34 -> 10 | L40: =Interventions!L34 -> - | M40: =Interventions!M34 -> - | N40: =Interventions!N34 -> - | O40: =Interventions!O34 -> - | P40: =Interventions!P34 -> - | Q40: =Interventions!Q34 -> - | R40: =Interventions!R34 -> - | S40: =Interventions!S34 -> - | T40: =Interventions!T34 -> - | U40: =Interventions!U34 -> - | V40: =Interventions!V34 -> - | W40: =Interventions!W34 -> - | X40: =Interventions!X34 -> - | Y40: =Interventions!Y34 -> -
A41: =Interventions!A35 -> 0 | B41: =Interventions!B35 -> Vegetation management
A42: =Interventions!A36 -> 28 | B42: =Interventions!B36 -> ERA_landuse_designation | C42: =Interventions!C36 -> EA Landuse requirement | D42: =Interventions!D36 -> Class | E42: =Interventions!E36 -> - | F42: =Interventions!F36 -> Native_vegetation | G42: =Interventions!G36 -> Grazing | H42: =Interventions!H36 -> Native_vegetation | I42: =Interventions!I36 -> Native_vegetation | J42: =Interventions!J36 -> Native_vegetation | K42: =Interventions!K36 -> Native_vegetation | L42: =Interventions!L36 -> - | M42: =Interventions!M36 -> - | N42: =Interventions!N36 -> - | O42: =Interventions!O36 -> - | P42: =Interventions!P36 -> - | Q42: =Interventions!Q36 -> - | R42: =Interventions!R36 -> - | S42: =Interventions!S36 -> - | T42: =Interventions!T36 -> - | U42: =Interventions!U36 -> - | V42: =Interventions!V36 -> - | W42: =Interventions!W36 -> - | X42: =Interventions!X36 -> - | Y42: =Interventions!Y36 -> -
A43: =Interventions!A37 -> 29 | B43: =Interventions!B37 -> Seed_Addition | C43: =Interventions!C37 -> Seed mix applied | D43: =Interventions!D37 -> Class | E43: =Interventions!E37 -> - | F43: =Interventions!F37 -> None | G43: =Interventions!G37 -> Mixed_Pasture_Covercrop_Spp | H43: =Interventions!H37 -> Mixed_Pasture_Covercrop_Spp | I43: =Interventions!I37 -> Mixed_Pasture_Covercrop_Spp | J43: =Interventions!J37 -> Mixed_Pasture_Covercrop_Spp | K43: =Interventions!K37 -> Mixed_Pasture_Covercrop_Spp | L43: =Interventions!L37 -> - | M43: =Interventions!M37 -> - | N43: =Interventions!N37 -> - | O43: =Interventions!O37 -> - | P43: =Interventions!P37 -> - | Q43: =Interventions!Q37 -> - | R43: =Interventions!R37 -> - | S43: =Interventions!S37 -> - | T43: =Interventions!T37 -> - | U43: =Interventions!U37 -> - | V43: =Interventions!V37 -> - | W43: =Interventions!W37 -> - | X43: =Interventions!X37 -> - | Y43: =Interventions!Y37 -> -
A44: =Interventions!A38 -> 27 | B44: =Interventions!B38 -> Fertiliser_addition | C44: =Interventions!C38 -> Topsoil fertiliser addition | D44: =Interventions!D38 -> Class | E44: =Interventions!E38 -> - | F44: =Interventions!F38 -> No | G44: =Interventions!G38 -> Yes | H44: =Interventions!H38 -> Yes | I44: =Interventions!I38 -> Yes | J44: =Interventions!J38 -> Yes | K44: =Interventions!K38 -> Yes | L44: =Interventions!L38 -> - | M44: =Interventions!M38 -> - | N44: =Interventions!N38 -> - | O44: =Interventions!O38 -> - | P44: =Interventions!P38 -> - | Q44: =Interventions!Q38 -> - | R44: =Interventions!R38 -> - | S44: =Interventions!S38 -> - | T44: =Interventions!T38 -> - | U44: =Interventions!U38 -> - | V44: =Interventions!V38 -> - | W44: =Interventions!W38 -> - | X44: =Interventions!X38 -> - | Y44: =Interventions!Y38 -> -
A45: =Interventions!A39 -> 20 | B45: =Interventions!B39 -> Organic_mulch | C45: =Interventions!C39 -> Organic mulch thickness (cm) | D45: =Interventions!D39 -> Value | E45: =Interventions!E39 -> - | F45: =Interventions!F39 -> 0 | G45: =Interventions!G39 -> 0 | H45: =Interventions!H39 -> 5 | I45: =Interventions!I39 -> 5 | J45: =Interventions!J39 -> 5 | K45: =Interventions!K39 -> 5 | L45: =Interventions!L39 -> - | M45: =Interventions!M39 -> - | N45: =Interventions!N39 -> - | O45: =Interventions!O39 -> - | P45: =Interventions!P39 -> - | Q45: =Interventions!Q39 -> - | R45: =Interventions!R39 -> - | S45: =Interventions!S39 -> - | T45: =Interventions!T39 -> - | U45: =Interventions!U39 -> - | V45: =Interventions!V39 -> - | W45: =Interventions!W39 -> - | X45: =Interventions!X39 -> - | Y45: =Interventions!Y39 -> -
A46: =Interventions!A40 -> 18 | B46: =Interventions!B40 -> Irrigation | C46: =Interventions!C40 -> Irrigation | D46: =Interventions!D40 -> Class | E46: =Interventions!E40 -> - | F46: =Interventions!F40 -> No | G46: =Interventions!G40 -> No | H46: =Interventions!H40 -> Yes | I46: =Interventions!I40 -> Yes | J46: =Interventions!J40 -> Yes | K46: =Interventions!K40 -> Yes | L46: =Interventions!L40 -> - | M46: =Interventions!M40 -> - | N46: =Interventions!N40 -> - | O46: =Interventions!O40 -> - | P46: =Interventions!P40 -> - | Q46: =Interventions!Q40 -> - | R46: =Interventions!R40 -> - | S46: =Interventions!S40 -> - | T46: =Interventions!T40 -> - | U46: =Interventions!U40 -> - | V46: =Interventions!V40 -> - | W46: =Interventions!W40 -> - | X46: =Interventions!X40 -> - | Y46: =Interventions!Y40 -> -
B47: Soil Chemical
A48: ='Soil Chemical'!A2 -> 0 | B48: ='Soil Chemical'!B2 -> pH
A49: ='Soil Chemical'!A3 -> 10 | B49: ='Soil Chemical'!B3 -> pH_1 | C49: ='Soil Chemical'!C3 -> pH (water) Layer 1 | D49: ='Soil Chemical'!D3 -> Value | E49: ='Soil Chemical'!E3 -> - | F49: ='Soil Chemical'!F3 -> 5.7 | G49: ='Soil Chemical'!G3 -> 5.7 | H49: ='Soil Chemical'!H3 -> 5.7 | I49: ='Soil Chemical'!I3 -> 5.7 | J49: ='Soil Chemical'!J3 -> 5.7 | K49: ='Soil Chemical'!K3 -> 5.7 | L49: ='Soil Chemical'!L3 -> - | M49: ='Soil Chemical'!M3 -> - | N49: ='Soil Chemical'!N3 -> - | O49: ='Soil Chemical'!O3 -> - | P49: ='Soil Chemical'!P3 -> - | Q49: ='Soil Chemical'!Q3 -> - | R49: ='Soil Chemical'!R3 -> - | S49: ='Soil Chemical'!S3 -> - | T49: ='Soil Chemical'!T3 -> - | U49: ='Soil Chemical'!U3 -> - | V49: ='Soil Chemical'!V3 -> - | W49: ='Soil Chemical'!W3 -> - | X49: ='Soil Chemical'!X3 -> - | Y49: ='Soil Chemical'!Y3 -> -
A50: ='Soil Chemical'!A4 -> 11 | B50: ='Soil Chemical'!B4 -> pH_2 | C50: ='Soil Chemical'!C4 -> pH (water) Layer 2 | D50: ='Soil Chemical'!D4 -> Value | E50: ='Soil Chemical'!E4 -> - | F50: ='Soil Chemical'!F4 -> 5.7 | G50: ='Soil Chemical'!G4 -> 5.7 | H50: ='Soil Chemical'!H4 -> 5.7 | I50: ='Soil Chemical'!I4 -> 5.7 | J50: ='Soil Chemical'!J4 -> 5.7 | K50: ='Soil Chemical'!K4 -> 5.7 | L50: ='Soil Chemical'!L4 -> - | M50: ='Soil Chemical'!M4 -> - | N50: ='Soil Chemical'!N4 -> - | O50: ='Soil Chemical'!O4 -> - | P50: ='Soil Chemical'!P4 -> - | Q50: ='Soil Chemical'!Q4 -> - | R50: ='Soil Chemical'!R4 -> - | S50: ='Soil Chemical'!S4 -> - | T50: ='Soil Chemical'!T4 -> - | U50: ='Soil Chemical'!U4 -> - | V50: ='Soil Chemical'!V4 -> - | W50: ='Soil Chemical'!W4 -> - | X50: ='Soil Chemical'!X4 -> - | Y50: ='Soil Chemical'!Y4 -> -
A51: ='Soil Chemical'!A5 -> 12 | B51: ='Soil Chemical'!B5 -> pH_3 | C51: ='Soil Chemical'!C5 -> pH (water) Layer 3 | D51: ='Soil Chemical'!D5 -> Value | E51: ='Soil Chemical'!E5 -> -- | F51: ='Soil Chemical'!F5 -> - | G51: ='Soil Chemical'!G5 -> - | H51: ='Soil Chemical'!H5 -> - | I51: ='Soil Chemical'!I5 -> - | J51: ='Soil Chemical'!J5 -> - | K51: ='Soil Chemical'!K5 -> - | L51: ='Soil Chemical'!L5 -> - | M51: ='Soil Chemical'!M5 -> - | N51: ='Soil Chemical'!N5 -> - | O51: ='Soil Chemical'!O5 -> - | P51: ='Soil Chemical'!P5 -> - | Q51: ='Soil Chemical'!Q5 -> - | R51: ='Soil Chemical'!R5 -> - | S51: ='Soil Chemical'!S5 -> - | T51: ='Soil Chemical'!T5 -> - | U51: ='Soil Chemical'!U5 -> - | V51: ='Soil Chemical'!V5 -> - | W51: ='Soil Chemical'!W5 -> - | X51: ='Soil Chemical'!X5 -> - | Y51: ='Soil Chemical'!Y5 -> -
A52: ='Soil Chemical'!A6 -> 0 | B52: ='Soil Chemical'!B6 -> EC (1:5)
A53: ='Soil Chemical'!A7 -> 1 | B53: ='Soil Chemical'!B7 -> EC_1 | C53: ='Soil Chemical'!C7 -> EC (1:5) Layer 1 (dS/m) | D53: ='Soil Chemical'!D7 -> Value | E53: ='Soil Chemical'!E7 -> - | F53: ='Soil Chemical'!F7 -> 0.7 | G53: ='Soil Chemical'!G7 -> 0.3 | H53: ='Soil Chemical'!H7 -> 0.3 | I53: ='Soil Chemical'!I7 -> 0.3 | J53: ='Soil Chemical'!J7 -> 0.3 | K53: ='Soil Chemical'!K7 -> 0.3 | L53: ='Soil Chemical'!L7 -> - | M53: ='Soil Chemical'!M7 -> - | N53: ='Soil Chemical'!N7 -> - | O53: ='Soil Chemical'!O7 -> - | P53: ='Soil Chemical'!P7 -> - | Q53: ='Soil Chemical'!Q7 -> - | R53: ='Soil Chemical'!R7 -> - | S53: ='Soil Chemical'!S7 -> - | T53: ='Soil Chemical'!T7 -> - | U53: ='Soil Chemical'!U7 -> - | V53: ='Soil Chemical'!V7 -> - | W53: ='Soil Chemical'!W7 -> - | X53: ='Soil Chemical'!X7 -> - | Y53: ='Soil Chemical'!Y7 -> -
A54: ='Soil Chemical'!A8 -> 2 | B54: ='Soil Chemical'!B8 -> EC_2 | C54: ='Soil Chemical'!C8 -> EC (1:5) Layer 2 (dS/m) | D54: ='Soil Chemical'!D8 -> Value | E54: ='Soil Chemical'!E8 -> - | F54: ='Soil Chemical'!F8 -> 0.7 | G54: ='Soil Chemical'!G8 -> 0.3 | H54: ='Soil Chemical'!H8 -> 0.3 | I54: ='Soil Chemical'!I8 -> 0.3 | J54: ='Soil Chemical'!J8 -> 0.3 | K54: ='Soil Chemical'!K8 -> 0.3 | L54: ='Soil Chemical'!L8 -> - | M54: ='Soil Chemical'!M8 -> - | N54: ='Soil Chemical'!N8 -> - | O54: ='Soil Chemical'!O8 -> - | P54: ='Soil Chemical'!P8 -> - | Q54: ='Soil Chemical'!Q8 -> - | R54: ='Soil Chemical'!R8 -> - | S54: ='Soil Chemical'!S8 -> - | T54: ='Soil Chemical'!T8 -> - | U54: ='Soil Chemical'!U8 -> - | V54: ='Soil Chemical'!V8 -> - | W54: ='Soil Chemical'!W8 -> - | X54: ='Soil Chemical'!X8 -> - | Y54: ='Soil Chemical'!Y8 -> -
A55: ='Soil Chemical'!A9 -> 3 | B55: ='Soil Chemical'!B9 -> EC_3 | C55: ='Soil Chemical'!C9 -> EC (1:5) Layer 3 (dS/m) | D55: ='Soil Chemical'!D9 -> Value | E55: ='Soil Chemical'!E9 -> - | F55: ='Soil Chemical'!F9 -> 0.7 | G55: ='Soil Chemical'!G9 -> 0.3 | H55: ='Soil Chemical'!H9 -> 0.3 | I55: ='Soil Chemical'!I9 -> 0.3 | J55: ='Soil Chemical'!J9 -> 0.3 | K55: ='Soil Chemical'!K9 -> 0.3 | L55: ='Soil Chemical'!L9 -> - | M55: ='Soil Chemical'!M9 -> - | N55: ='Soil Chemical'!N9 -> - | O55: ='Soil Chemical'!O9 -> - | P55: ='Soil Chemical'!P9 -> - | Q55: ='Soil Chemical'!Q9 -> - | R55: ='Soil Chemical'!R9 -> - | S55: ='Soil Chemical'!S9 -> - | T55: ='Soil Chemical'!T9 -> - | U55: ='Soil Chemical'!U9 -> - | V55: ='Soil Chemical'!V9 -> - | W55: ='Soil Chemical'!W9 -> - | X55: ='Soil Chemical'!X9 -> - | Y55: ='Soil Chemical'!Y9 -> -
A56: ='Soil Chemical'!A10 -> 0 | B56: ='Soil Chemical'!B10 -> Cations (Sodium)
A57: ='Soil Chemical'!A11 -> 7 | B57: ='Soil Chemical'!B11 -> Na_ex_1 | C57: ='Soil Chemical'!C11 -> Exchangeable Sodium Layer 1 (meq/100g) | D57: ='Soil Chemical'!D11 -> Value | E57: ='Soil Chemical'!E11 -> - | F57: ='Soil Chemical'!F11 -> 5.0 | G57: ='Soil Chemical'!G11 -> 0.4 | H57: ='Soil Chemical'!H11 -> 0.4 | I57: ='Soil Chemical'!I11 -> 0.4 | J57: ='Soil Chemical'!J11 -> 2.0 | K57: ='Soil Chemical'!K11 -> 2.0 | L57: ='Soil Chemical'!L11 -> - | M57: ='Soil Chemical'!M11 -> - | N57: ='Soil Chemical'!N11 -> - | O57: ='Soil Chemical'!O11 -> - | P57: ='Soil Chemical'!P11 -> - | Q57: ='Soil Chemical'!Q11 -> - | R57: ='Soil Chemical'!R11 -> - | S57: ='Soil Chemical'!S11 -> - | T57: ='Soil Chemical'!T11 -> - | U57: ='Soil Chemical'!U11 -> - | V57: ='Soil Chemical'!V11 -> - | W57: ='Soil Chemical'!W11 -> - | X57: ='Soil Chemical'!X11 -> - | Y57: ='Soil Chemical'!Y11 -> -
A58: ='Soil Chemical'!A12 -> 8 | B58: ='Soil Chemical'!B12 -> Na_ex_2 | C58: ='Soil Chemical'!C12 -> Exchangeable Sodium Layer 2 (meq/100g) | D58: ='Soil Chemical'!D12 -> Value | E58: ='Soil Chemical'!E12 -> - | F58: ='Soil Chemical'!F12 -> 5.0 | G58: ='Soil Chemical'!G12 -> 0.9 | H58: ='Soil Chemical'!H12 -> 0.9 | I58: ='Soil Chemical'!I12 -> 0.9 | J58: ='Soil Chemical'!J12 -> 2.0 | K58: ='Soil Chemical'!K12 -> 2.0 | L58: ='Soil Chemical'!L12 -> - | M58: ='Soil Chemical'!M12 -> - | N58: ='Soil Chemical'!N12 -> - | O58: ='Soil Chemical'!O12 -> - | P58: ='Soil Chemical'!P12 -> - | Q58: ='Soil Chemical'!Q12 -> - | R58: ='Soil Chemical'!R12 -> - | S58: ='Soil Chemical'!S12 -> - | T58: ='Soil Chemical'!T12 -> - | U58: ='Soil Chemical'!U12 -> - | V58: ='Soil Chemical'!V12 -> - | W58: ='Soil Chemical'!W12 -> - | X58: ='Soil Chemical'!X12 -> - | Y58: ='Soil Chemical'!Y12 -> -
A59: ='Soil Chemical'!A13 -> 9 | B59: ='Soil Chemical'!B13 -> Na_ex_3 | C59: ='Soil Chemical'!C13 -> Exchangeable Sodium Layer 3 (meq/100g) | D59: ='Soil Chemical'!D13 -> Value | E59: ='Soil Chemical'!E13 -> - | F59: ='Soil Chemical'!F13 -> 5.0 | G59: ='Soil Chemical'!G13 -> 0.9 | H59: ='Soil Chemical'!H13 -> 0.9 | I59: ='Soil Chemical'!I13 -> 0.9 | J59: ='Soil Chemical'!J13 -> 2.0 | K59: ='Soil Chemical'!K13 -> 2.0 | L59: ='Soil Chemical'!L13 -> - | M59: ='Soil Chemical'!M13 -> - | N59: ='Soil Chemical'!N13 -> - | O59: ='Soil Chemical'!O13 -> - | P59: ='Soil Chemical'!P13 -> - | Q59: ='Soil Chemical'!Q13 -> - | R59: ='Soil Chemical'!R13 -> - | S59: ='Soil Chemical'!S13 -> - | T59: ='Soil Chemical'!T13 -> - | U59: ='Soil Chemical'!U13 -> - | V59: ='Soil Chemical'!V13 -> - | W59: ='Soil Chemical'!W13 -> - | X59: ='Soil Chemical'!X13 -> - | Y59: ='Soil Chemical'!Y13 -> -
A60: ='Soil Chemical'!A14 -> 0 | B60: ='Soil Chemical'!B14 -> Cations (Potassium)
A61: ='Soil Chemical'!A15 -> 4 | B61: ='Soil Chemical'!B15 -> K_ex_1 | C61: ='Soil Chemical'!C15 -> Exchangeable Potassium Layer 1 (meq/100g) | D61: ='Soil Chemical'!D15 -> Value | E61: ='Soil Chemical'!E15 -> - | F61: ='Soil Chemical'!F15 -> 0.3 | G61: ='Soil Chemical'!G15 -> 0.6 | H61: ='Soil Chemical'!H15 -> 0.6 | I61: ='Soil Chemical'!I15 -> 0.6 | J61: ='Soil Chemical'!J15 -> 0.6 | K61: ='Soil Chemical'!K15 -> 0.6 | L61: ='Soil Chemical'!L15 -> - | M61: ='Soil Chemical'!M15 -> - | N61: ='Soil Chemical'!N15 -> - | O61: ='Soil Chemical'!O15 -> - | P61: ='Soil Chemical'!P15 -> - | Q61: ='Soil Chemical'!Q15 -> - | R61: ='Soil Chemical'!R15 -> - | S61: ='Soil Chemical'!S15 -> - | T61: ='Soil Chemical'!T15 -> - | U61: ='Soil Chemical'!U15 -> - | V61: ='Soil Chemical'!V15 -> - | W61: ='Soil Chemical'!W15 -> - | X61: ='Soil Chemical'!X15 -> - | Y61: ='Soil Chemical'!Y15 -> -
A62: ='Soil Chemical'!A16 -> 5 | B62: ='Soil Chemical'!B16 -> K_ex_2 | C62: ='Soil Chemical'!C16 -> Exchangeable Potassium Layer 2 (meq/100g) | D62: ='Soil Chemical'!D16 -> Value | E62: ='Soil Chemical'!E16 -> - | F62: ='Soil Chemical'!F16 -> 0.3 | G62: ='Soil Chemical'!G16 -> 0.5 | H62: ='Soil Chemical'!H16 -> 0.5 | I62: ='Soil Chemical'!I16 -> 0.5 | J62: ='Soil Chemical'!J16 -> 0.5 | K62: ='Soil Chemical'!K16 -> 0.5 | L62: ='Soil Chemical'!L16 -> - | M62: ='Soil Chemical'!M16 -> - | N62: ='Soil Chemical'!N16 -> - | O62: ='Soil Chemical'!O16 -> - | P62: ='Soil Chemical'!P16 -> - | Q62: ='Soil Chemical'!Q16 -> - | R62: ='Soil Chemical'!R16 -> - | S62: ='Soil Chemical'!S16 -> - | T62: ='Soil Chemical'!T16 -> - | U62: ='Soil Chemical'!U16 -> - | V62: ='Soil Chemical'!V16 -> - | W62: ='Soil Chemical'!W16 -> - | X62: ='Soil Chemical'!X16 -> - | Y62: ='Soil Chemical'!Y16 -> -
A63: ='Soil Chemical'!A17 -> 6 | B63: ='Soil Chemical'!B17 -> K_ex_3 | C63: ='Soil Chemical'!C17 -> Exchangeable Potassium Layer 3 (meq/100g) | D63: ='Soil Chemical'!D17 -> Value | E63: ='Soil Chemical'!E17 -> - | F63: ='Soil Chemical'!F17 -> 0.3 | G63: ='Soil Chemical'!G17 -> 0.5 | H63: ='Soil Chemical'!H17 -> 0.5 | I63: ='Soil Chemical'!I17 -> 0.5 | J63: ='Soil Chemical'!J17 -> 0.5 | K63: ='Soil Chemical'!K17 -> 0.5 | L63: ='Soil Chemical'!L17 -> - | M63: ='Soil Chemical'!M17 -> - | N63: ='Soil Chemical'!N17 -> - | O63: ='Soil Chemical'!O17 -> - | P63: ='Soil Chemical'!P17 -> - | Q63: ='Soil Chemical'!Q17 -> - | R63: ='Soil Chemical'!R17 -> - | S63: ='Soil Chemical'!S17 -> - | T63: ='Soil Chemical'!T17 -> - | U63: ='Soil Chemical'!U17 -> - | V63: ='Soil Chemical'!V17 -> - | W63: ='Soil Chemical'!W17 -> - | X63: ='Soil Chemical'!X17 -> - | Y63: ='Soil Chemical'!Y17 -> -
A64: ='Soil Chemical'!A18 -> 0 | B64: ='Soil Chemical'!B18 -> Exchangeable dispersion percentage
A65: ='Soil Chemical'!A19 -> 13 | B65: ='Soil Chemical'!B19 -> EDP_1 | C65: ='Soil Chemical'!C19 -> Exchangeable dispersive percentage Layer 1 (%) | D65: ='Soil Chemical'!D19 -> Calculated by model | E65: ='Soil Chemical'!E19 -> Model asks for input, but should be calcuated | F65: ='Soil Chemical'!F19 -> 35.8 | G65: ='Soil Chemical'!G19 -> 3.0 | H65: ='Soil Chemical'!H19 -> 3.0 | I65: ='Soil Chemical'!I19 -> 3.0 | J65: ='Soil Chemical'!J19 -> 15.0 | K65: ='Soil Chemical'!K19 -> 15.0 | L65: ='Soil Chemical'!L19 -> - | M65: ='Soil Chemical'!M19 -> - | N65: ='Soil Chemical'!N19 -> - | O65: ='Soil Chemical'!O19 -> - | P65: ='Soil Chemical'!P19 -> - | Q65: ='Soil Chemical'!Q19 -> - | R65: ='Soil Chemical'!R19 -> - | S65: ='Soil Chemical'!S19 -> - | T65: ='Soil Chemical'!T19 -> - | U65: ='Soil Chemical'!U19 -> - | V65: ='Soil Chemical'!V19 -> - | W65: ='Soil Chemical'!W19 -> - | X65: ='Soil Chemical'!X19 -> - | Y65: ='Soil Chemical'!Y19 -> -
A66: ='Soil Chemical'!A20 -> 14 | B66: ='Soil Chemical'!B20 -> EDP_2 | C66: ='Soil Chemical'!C20 -> Exchangeable dispersive percentage Layer 2 (%) | D66: ='Soil Chemical'!D20 -> Calculated by model | E66: ='Soil Chemical'!E20 -> Model asks for input, but should be calcuated | F66: ='Soil Chemical'!F20 -> 35.8 | G66: ='Soil Chemical'!G20 -> 6.0 | H66: ='Soil Chemical'!H20 -> 6.0 | I66: ='Soil Chemical'!I20 -> 6.0 | J66: ='Soil Chemical'!J20 -> 15.0 | K66: ='Soil Chemical'!K20 -> 15.0 | L66: ='Soil Chemical'!L20 -> - | M66: ='Soil Chemical'!M20 -> - | N66: ='Soil Chemical'!N20 -> - | O66: ='Soil Chemical'!O20 -> - | P66: ='Soil Chemical'!P20 -> - | Q66: ='Soil Chemical'!Q20 -> - | R66: ='Soil Chemical'!R20 -> - | S66: ='Soil Chemical'!S20 -> - | T66: ='Soil Chemical'!T20 -> - | U66: ='Soil Chemical'!U20 -> - | V66: ='Soil Chemical'!V20 -> - | W66: ='Soil Chemical'!W20 -> - | X66: ='Soil Chemical'!X20 -> - | Y66: ='Soil Chemical'!Y20 -> -
A67: ='Soil Chemical'!A21 -> 15 | B67: ='Soil Chemical'!B21 -> EDP_3 | C67: ='Soil Chemical'!C21 -> Exchangeable dispersive percentage Layer 3 (%) | D67: ='Soil Chemical'!D21 -> Calculated by model | E67: ='Soil Chemical'!E21 -> Model asks for input, but should be calcuated | F67: ='Soil Chemical'!F21 -> 35.8 | G67: ='Soil Chemical'!G21 -> 6.0 | H67: ='Soil Chemical'!H21 -> 6.0 | I67: ='Soil Chemical'!I21 -> 6.0 | J67: ='Soil Chemical'!J21 -> 15.0 | K67: ='Soil Chemical'!K21 -> 15.0 | L67: ='Soil Chemical'!L21 -> - | M67: ='Soil Chemical'!M21 -> - | N67: ='Soil Chemical'!N21 -> - | O67: ='Soil Chemical'!O21 -> - | P67: ='Soil Chemical'!P21 -> - | Q67: ='Soil Chemical'!Q21 -> - | R67: ='Soil Chemical'!R21 -> - | S67: ='Soil Chemical'!S21 -> - | T67: ='Soil Chemical'!T21 -> - | U67: ='Soil Chemical'!U21 -> - | V67: ='Soil Chemical'!V21 -> - | W67: ='Soil Chemical'!W21 -> - | X67: ='Soil Chemical'!X21 -> - | Y67: ='Soil Chemical'!Y21 -> -
B68: Soil Physical
A69: ='Soil physical'!A2 -> 0 | B69: ='Soil physical'!B2 -> Clay
A70: ='Soil physical'!A3 -> 3 | B70: ='Soil physical'!B3 -> Clay_1 | C70: ='Soil physical'!C3 -> Clay proportion Layer 1 (%) | D70: ='Soil physical'!D3 -> Value | E70: ='Soil physical'!E3 -> - | F70: ='Soil physical'!F3 -> 35.5 | G70: ='Soil physical'!G3 -> 9.8 | H70: ='Soil physical'!H3 -> 35.5 | I70: ='Soil physical'!I3 -> 35.5 | J70: ='Soil physical'!J3 -> 35.5 | K70: ='Soil physical'!K3 -> 35.5 | L70: ='Soil physical'!L3 -> - | M70: ='Soil physical'!M3 -> - | N70: ='Soil physical'!N3 -> - | O70: ='Soil physical'!O3 -> - | P70: ='Soil physical'!P3 -> - | Q70: ='Soil physical'!Q3 -> - | R70: ='Soil physical'!R3 -> - | S70: ='Soil physical'!S3 -> - | T70: ='Soil physical'!T3 -> - | U70: ='Soil physical'!U3 -> - | V70: ='Soil physical'!V3 -> - | W70: ='Soil physical'!W3 -> - | X70: ='Soil physical'!X3 -> - | Y70: ='Soil physical'!Y3 -> -
A71: ='Soil physical'!A4 -> 4 | B71: ='Soil physical'!B4 -> Clay_2 | C71: ='Soil physical'!C4 -> Clay proportion Layer 2 (%) | D71: ='Soil physical'!D4 -> Value | E71: ='Soil physical'!E4 -> - | F71: ='Soil physical'!F4 -> 35.5 | G71: ='Soil physical'!G4 -> 8.3 | H71: ='Soil physical'!H4 -> 35.5 | I71: ='Soil physical'!I4 -> 35.5 | J71: ='Soil physical'!J4 -> 35.5 | K71: ='Soil physical'!K4 -> 35.5 | L71: ='Soil physical'!L4 -> - | M71: ='Soil physical'!M4 -> - | N71: ='Soil physical'!N4 -> - | O71: ='Soil physical'!O4 -> - | P71: ='Soil physical'!P4 -> - | Q71: ='Soil physical'!Q4 -> - | R71: ='Soil physical'!R4 -> - | S71: ='Soil physical'!S4 -> - | T71: ='Soil physical'!T4 -> - | U71: ='Soil physical'!U4 -> - | V71: ='Soil physical'!V4 -> - | W71: ='Soil physical'!W4 -> - | X71: ='Soil physical'!X4 -> - | Y71: ='Soil physical'!Y4 -> -
A72: ='Soil physical'!A5 -> 0 | B72: ='Soil physical'!B5 -> Sand
A73: ='Soil physical'!A6 -> 7 | B73: ='Soil physical'!B6 -> Sand_1 | C73: ='Soil physical'!C6 -> Sand proportion Layer 1 (%) | D73: ='Soil physical'!D6 -> Value | E73: ='Soil physical'!E6 -> - | F73: ='Soil physical'!F6 -> 35.0 | G73: ='Soil physical'!G6 -> 56.8 | H73: ='Soil physical'!H6 -> 35.0 | I73: ='Soil physical'!I6 -> 35.0 | J73: ='Soil physical'!J6 -> 35.0 | K73: ='Soil physical'!K6 -> 35.0 | L73: ='Soil physical'!L6 -> - | M73: ='Soil physical'!M6 -> - | N73: ='Soil physical'!N6 -> - | O73: ='Soil physical'!O6 -> - | P73: ='Soil physical'!P6 -> - | Q73: ='Soil physical'!Q6 -> - | R73: ='Soil physical'!R6 -> - | S73: ='Soil physical'!S6 -> - | T73: ='Soil physical'!T6 -> - | U73: ='Soil physical'!U6 -> - | V73: ='Soil physical'!V6 -> - | W73: ='Soil physical'!W6 -> - | X73: ='Soil physical'!X6 -> - | Y73: ='Soil physical'!Y6 -> -
A74: ='Soil physical'!A7 -> 8 | B74: ='Soil physical'!B7 -> Sand_2 | C74: ='Soil physical'!C7 -> Sand proportion Layer 2 (%) | D74: ='Soil physical'!D7 -> Value | E74: ='Soil physical'!E7 -> - | F74: ='Soil physical'!F7 -> 35.0 | G74: ='Soil physical'!G7 -> 59.0 | H74: ='Soil physical'!H7 -> 35.0 | I74: ='Soil physical'!I7 -> 35.0 | J74: ='Soil physical'!J7 -> 35.0 | K74: ='Soil physical'!K7 -> 35.0 | L74: ='Soil physical'!L7 -> - | M74: ='Soil physical'!M7 -> - | N74: ='Soil physical'!N7 -> - | O74: ='Soil physical'!O7 -> - | P74: ='Soil physical'!P7 -> - | Q74: ='Soil physical'!Q7 -> - | R74: ='Soil physical'!R7 -> - | S74: ='Soil physical'!S7 -> - | T74: ='Soil physical'!T7 -> - | U74: ='Soil physical'!U7 -> - | V74: ='Soil physical'!V7 -> - | W74: ='Soil physical'!W7 -> - | X74: ='Soil physical'!X7 -> - | Y74: ='Soil physical'!Y7 -> -
A75: ='Soil physical'!A8 -> 0 | B75: ='Soil physical'!B8 -> Stone
A76: ='Soil physical'!A9 -> 9 | B76: ='Soil physical'!B9 -> Stone_content_1 | C76: ='Soil physical'!C9 -> Stone proportion Layer 1 (%) | D76: ='Soil physical'!D9 -> Value | E76: ='Soil physical'!E9 -> - | F76: ='Soil physical'!F9 -> - | G76: ='Soil physical'!G9 -> - | H76: ='Soil physical'!H9 -> - | I76: ='Soil physical'!I9 -> - | J76: ='Soil physical'!J9 -> - | K76: ='Soil physical'!K9 -> - | L76: ='Soil physical'!L9 -> - | M76: ='Soil physical'!M9 -> - | N76: ='Soil physical'!N9 -> - | O76: ='Soil physical'!O9 -> - | P76: ='Soil physical'!P9 -> - | Q76: ='Soil physical'!Q9 -> - | R76: ='Soil physical'!R9 -> - | S76: ='Soil physical'!S9 -> - | T76: ='Soil physical'!T9 -> - | U76: ='Soil physical'!U9 -> - | V76: ='Soil physical'!V9 -> - | W76: ='Soil physical'!W9 -> - | X76: ='Soil physical'!X9 -> - | Y76: ='Soil physical'!Y9 -> -
A77: ='Soil physical'!A10 -> 10 | B77: ='Soil physical'!B10 -> Stone_content_2 | C77: ='Soil physical'!C10 -> Stone proportion Layer 2 (%) | D77: ='Soil physical'!D10 -> Value | E77: ='Soil physical'!E10 -> - | F77: ='Soil physical'!F10 -> - | G77: ='Soil physical'!G10 -> - | H77: ='Soil physical'!H10 -> - | I77: ='Soil physical'!I10 -> - | J77: ='Soil physical'!J10 -> - | K77: ='Soil physical'!K10 -> - | L77: ='Soil physical'!L10 -> - | M77: ='Soil physical'!M10 -> - | N77: ='Soil physical'!N10 -> - | O77: ='Soil physical'!O10 -> - | P77: ='Soil physical'!P10 -> - | Q77: ='Soil physical'!Q10 -> - | R77: ='Soil physical'!R10 -> - | S77: ='Soil physical'!S10 -> - | T77: ='Soil physical'!T10 -> - | U77: ='Soil physical'!U10 -> - | V77: ='Soil physical'!V10 -> - | W77: ='Soil physical'!W10 -> - | X77: ='Soil physical'!X10 -> - | Y77: ='Soil physical'!Y10 -> -
A78: ='Soil physical'!A11 -> 0 | B78: ='Soil physical'!B11 -> Bulk density
A79: ='Soil physical'!A12 -> 1 | B79: ='Soil physical'!B12 -> Bulk_density_1 | C79: ='Soil physical'!C12 -> Bulk Density Layer 1 (ton/m3) | D79: ='Soil physical'!D12 -> Value | E79: ='Soil physical'!E12 -> - | F79: ='Soil physical'!F12 -> 1.5 | G79: ='Soil physical'!G12 -> 1.4275 | H79: ='Soil physical'!H12 -> 1.5 | I79: ='Soil physical'!I12 -> 1.5 | J79: ='Soil physical'!J12 -> 1.5 | K79: ='Soil physical'!K12 -> 1.5 | L79: ='Soil physical'!L12 -> - | M79: ='Soil physical'!M12 -> - | N79: ='Soil physical'!N12 -> - | O79: ='Soil physical'!O12 -> - | P79: ='Soil physical'!P12 -> - | Q79: ='Soil physical'!Q12 -> - | R79: ='Soil physical'!R12 -> - | S79: ='Soil physical'!S12 -> - | T79: ='Soil physical'!T12 -> - | U79: ='Soil physical'!U12 -> - | V79: ='Soil physical'!V12 -> - | W79: ='Soil physical'!W12 -> - | X79: ='Soil physical'!X12 -> - | Y79: ='Soil physical'!Y12 -> -
A80: ='Soil physical'!A13 -> 2 | B80: ='Soil physical'!B13 -> Bulk_density_2 | C80: ='Soil physical'!C13 -> Bulk Density Layer 2 (ton/m3) | D80: ='Soil physical'!D13 -> Value | E80: ='Soil physical'!E13 -> - | F80: ='Soil physical'!F13 -> 1.5 | G80: ='Soil physical'!G13 -> 1.45 | H80: ='Soil physical'!H13 -> 1.5 | I80: ='Soil physical'!I13 -> 1.5 | J80: ='Soil physical'!J13 -> 1.5 | K80: ='Soil physical'!K13 -> 1.5 | L80: ='Soil physical'!L13 -> - | M80: ='Soil physical'!M13 -> - | N80: ='Soil physical'!N13 -> - | O80: ='Soil physical'!O13 -> - | P80: ='Soil physical'!P13 -> - | Q80: ='Soil physical'!Q13 -> - | R80: ='Soil physical'!R13 -> - | S80: ='Soil physical'!S13 -> - | T80: ='Soil physical'!T13 -> - | U80: ='Soil physical'!U13 -> - | V80: ='Soil physical'!V13 -> - | W80: ='Soil physical'!W13 -> - | X80: ='Soil physical'!X13 -> - | Y80: ='Soil physical'!Y13 -> -
A81: ='Soil physical'!A14 -> 0 | B81: ='Soil physical'!B14 -> Soil depth
A82: ='Soil physical'!A15 -> 5 | B82: ='Soil physical'!B15 -> Depth_to_L2 | C82: ='Soil physical'!C15 -> Depth of Layer 1 (Topsoil) (cm) | D82: ='Soil physical'!D15 -> Value | E82: ='Soil physical'!E15 -> - | F82: ='Soil physical'!F15 -> 10 | G82: ='Soil physical'!G15 -> 50 | H82: ='Soil physical'!H15 -> 20 | I82: ='Soil physical'!I15 -> 10 | J82: ='Soil physical'!J15 -> 20 | K82: ='Soil physical'!K15 -> 10 | L82: ='Soil physical'!L15 -> - | M82: ='Soil physical'!M15 -> - | N82: ='Soil physical'!N15 -> - | O82: ='Soil physical'!O15 -> - | P82: ='Soil physical'!P15 -> - | Q82: ='Soil physical'!Q15 -> - | R82: ='Soil physical'!R15 -> - | S82: ='Soil physical'!S15 -> - | T82: ='Soil physical'!T15 -> - | U82: ='Soil physical'!U15 -> - | V82: ='Soil physical'!V15 -> - | W82: ='Soil physical'!W15 -> - | X82: ='Soil physical'!X15 -> - | Y82: ='Soil physical'!Y15 -> -
A83: ='Soil physical'!A16 -> 6 | B83: ='Soil physical'!B16 -> Depth_to_L3 | C83: ='Soil physical'!C16 -> Depth of Layer 2 (Subsoil) (cm) | D83: ='Soil physical'!D16 -> Value | E83: ='Soil physical'!E16 -> - | F83: ='Soil physical'!F16 -> 50 | G83: ='Soil physical'!G16 -> 50 | H83: ='Soil physical'!H16 -> 35 | I83: ='Soil physical'!I16 -> 20 | J83: ='Soil physical'!J16 -> 35 | K83: ='Soil physical'!K16 -> 20 | L83: ='Soil physical'!L16 -> - | M83: ='Soil physical'!M16 -> - | N83: ='Soil physical'!N16 -> - | O83: ='Soil physical'!O16 -> - | P83: ='Soil physical'!P16 -> - | Q83: ='Soil physical'!Q16 -> - | R83: ='Soil physical'!R16 -> - | S83: ='Soil physical'!S16 -> - | T83: ='Soil physical'!T16 -> - | U83: ='Soil physical'!U16 -> - | V83: ='Soil physical'!V16 -> - | W83: ='Soil physical'!W16 -> - | X83: ='Soil physical'!X16 -> - | Y83: ='Soil physical'!Y16 -> -
B84: Vegetation
A85: =Vegetation!A2 -> 0 | B85: =Vegetation!B2 -> Soil condition
A86: =Vegetation!A3 -> 1 | B86: =Vegetation!B3 -> Soil_Nutrient_Status | C86: =Vegetation!C3 -> Topsoil nutrient status | D86: =Vegetation!D3 -> Class | E86: =Vegetation!E3 -> - | F86: =Vegetation!F3 -> Low | G86: =Vegetation!G3 -> Moderate | H86: =Vegetation!H3 -> High | I86: =Vegetation!I3 -> High | J86: =Vegetation!J3 -> High | K86: =Vegetation!K3 -> High | L86: =Vegetation!L3 -> - | M86: =Vegetation!M3 -> - | N86: =Vegetation!N3 -> - | O86: =Vegetation!O3 -> - | P86: =Vegetation!P3 -> - | Q86: =Vegetation!Q3 -> - | R86: =Vegetation!R3 -> - | S86: =Vegetation!S3 -> - | T86: =Vegetation!T3 -> - | U86: =Vegetation!U3 -> - | V86: =Vegetation!V3 -> - | W86: =Vegetation!W3 -> - | X86: =Vegetation!X3 -> - | Y86: =Vegetation!Y3 -> -
A87: =Vegetation!A4 -> 2 | B87: =Vegetation!B4 -> Topsoil_organic_matter | C87: =Vegetation!C4 -> Topsoil organic matter | D87: =Vegetation!D4 -> Class | E87: =Vegetation!E4 -> Calculated by model. Optional input | F87: =Vegetation!F4 -> Low | G87: =Vegetation!G4 -> Low | H87: =Vegetation!H4 -> Medium | I87: =Vegetation!I4 -> High | J87: =Vegetation!J4 -> High | K87: =Vegetation!K4 -> High | L87: =Vegetation!L4 -> - | M87: =Vegetation!M4 -> - | N87: =Vegetation!N4 -> - | O87: =Vegetation!O4 -> - | P87: =Vegetation!P4 -> - | Q87: =Vegetation!Q4 -> - | R87: =Vegetation!R4 -> - | S87: =Vegetation!S4 -> - | T87: =Vegetation!T4 -> - | U87: =Vegetation!U4 -> - | V87: =Vegetation!V4 -> - | W87: =Vegetation!W4 -> - | X87: =Vegetation!X4 -> - | Y87: =Vegetation!Y4 -> -
A88: =Vegetation!A5 -> 0 | B88: =Vegetation!B5 -> Vegetation cover
A89: =Vegetation!A6 -> 3 | B89: =Vegetation!B6 -> Annual_spp_groundcover | C89: =Vegetation!C6 -> Annual species cover (%) | D89: =Vegetation!D6 -> Value | E89: =Vegetation!E6 -> Calculated by model. Optional input | F89: =Vegetation!F6 -> 0.0 | G89: =Vegetation!G6 -> 0.0 | H89: =Vegetation!H6 -> 79.0 | I89: =Vegetation!I6 -> 79.0 | J89: =Vegetation!J6 -> 79.0 | K89: =Vegetation!K6 -> 79.0 | L89: =Vegetation!L6 -> 0.0 | M89: =Vegetation!M6 -> - | N89: =Vegetation!N6 -> - | O89: =Vegetation!O6 -> - | P89: =Vegetation!P6 -> - | Q89: =Vegetation!Q6 -> - | R89: =Vegetation!R6 -> - | S89: =Vegetation!S6 -> - | T89: =Vegetation!T6 -> - | U89: =Vegetation!U6 -> - | V89: =Vegetation!V6 -> - | W89: =Vegetation!W6 -> - | X89: =Vegetation!X6 -> - | Y89: =Vegetation!Y6 -> -
A90: =Vegetation!A7 -> 4 | B90: =Vegetation!B7 -> Perennial_spp_groundcover | C90: =Vegetation!C7 -> Perennial species cover (%) | D90: =Vegetation!D7 -> Value | E90: =Vegetation!E7 -> Calculated by model. Optional input | F90: =Vegetation!F7 -> 0.0 | G90: =Vegetation!G7 -> 42.5 | H90: =Vegetation!H7 -> 79.0 | I90: =Vegetation!I7 -> 79.0 | J90: =Vegetation!J7 -> 79.0 | K90: =Vegetation!K7 -> 79.0 | L90: =Vegetation!L7 -> - | M90: =Vegetation!M7 -> - | N90: =Vegetation!N7 -> - | O90: =Vegetation!O7 -> - | P90: =Vegetation!P7 -> - | Q90: =Vegetation!Q7 -> - | R90: =Vegetation!R7 -> - | S90: =Vegetation!S7 -> - | T90: =Vegetation!T7 -> - | U90: =Vegetation!U7 -> - | V90: =Vegetation!V7 -> - | W90: =Vegetation!W7 -> - | X90: =Vegetation!X7 -> - | Y90: =Vegetation!Y7 -> -
A91: =Vegetation!A8 -> 6 | B91: =Vegetation!B8 -> Woody_spp_cover | C91: =Vegetation!C8 -> Woody species cover (%) | D91: =Vegetation!D8 -> Value | E91: =Vegetation!E8 -> Calculated by model. Optional input | F91: =Vegetation!F8 -> 0.0 | G91: =Vegetation!G8 -> 0.0 | H91: =Vegetation!H8 -> 0.0 | I91: =Vegetation!I8 -> 0.0 | J91: =Vegetation!J8 -> 0.0 | K91: =Vegetation!K8 -> 0.0 | L91: =Vegetation!L8 -> - | M91: =Vegetation!M8 -> - | N91: =Vegetation!N8 -> - | O91: =Vegetation!O8 -> - | P91: =Vegetation!P8 -> - | Q91: =Vegetation!Q8 -> - | R91: =Vegetation!R8 -> - | S91: =Vegetation!S8 -> - | T91: =Vegetation!T8 -> - | U91: =Vegetation!U8 -> - | V91: =Vegetation!V8 -> - | W91: =Vegetation!W8 -> - | X91: =Vegetation!X8 -> - | Y91: =Vegetation!Y8 -> -
A92: =Vegetation!A9 -> 5 | B92: =Vegetation!B9 -> Vegetation_cover | C92: =Vegetation!C9 -> Total vegetation cover (%) | D92: =Vegetation!D9 -> Value | E92: =Vegetation!E9 -> Calculated by model. Optional input | F92: =Vegetation!F9 -> 0.0 | G92: =Vegetation!G9 -> 42.5 | H92: =Vegetation!H9 -> 79.0 | I92: =Vegetation!I9 -> 79.0 | J92: =Vegetation!J9 -> 79.0 | K92: =Vegetation!K9 -> 79.0 | L92: =Vegetation!L9 -> - | M92: =Vegetation!M9 -> - | N92: =Vegetation!N9 -> - | O92: =Vegetation!O9 -> - | P92: =Vegetation!P9 -> - | Q92: =Vegetation!Q9 -> - | R92: =Vegetation!R9 -> - | S92: =Vegetation!S9 -> - | T92: =Vegetation!T9 -> - | U92: =Vegetation!U9 -> - | V92: =Vegetation!V9 -> - | W92: =Vegetation!W9 -> - | X92: =Vegetation!X9 -> - | Y92: =Vegetation!Y9 -> -

Sheet Data Form
A1: =Scenarios!A2 -> Scenario number | B1: =Scenarios!B2 -> Climate Description | C1: =Scenarios!C2 -> Scenario Description | D1: ='Climate Assumptions'!B4 -> Avge_annual_rainfall | E1: ='Climate Assumptions'!B5 -> Rainfall_IFD_index | F1: ='Climate Assumptions'!B9 -> CumulativeRainfall_2month | G1: =Interventions!$B3 -> Spoil_amendment_rate_1 | H1: =Interventions!$B4 -> Spoil_amendment_rate_2 | I1: =Interventions!$B5 -> Spoil_amendment_rate_3 | J1: =Interventions!$B7 -> Spoil_amendment_type_1 | K1: =Interventions!$B8 -> Spoil_amendment_type_2 | L1: =Interventions!$B9 -> Spoil_amendment_type_3 | M1: =Interventions!$B11 -> Amendment_form_1 | N1: =Interventions!$B12 -> Amendment_form_2 | O1: =Interventions!$B13 -> Amendment_form_3 | P1: =Interventions!$B15 -> Spoil_amendment_application_1 | Q1: =Interventions!$B17 -> Contourbank_height | R1: =Interventions!$B18 -> Contourbank_Interval | S1: =Interventions!$B19 -> Contourbank_permanence | T1: =Interventions!$B20 -> UpslopeBund | U1: =Interventions!$B22 -> Slope_angle | V1: =Interventions!$B23 -> Overall_Slope_length | W1: =Interventions!$B24 -> Slope_shape | X1: =Interventions!$B25 -> Lateral_landform_uniformity | Y1: =Interventions!$B26 -> Slope_Drainage_Type | Z1: =Interventions!$B28 -> Rip_depth | AA1: =Interventions!$B29 -> Rip_direction | AB1: =Interventions!$B30 -> Rip_conditions | AC1: =Interventions!$B32 -> Mixing_topsoil_rockmulch | AD1: =Interventions!$B33 -> Surface_armouring_quantity | AE1: =Interventions!$B34 -> Surface_roughness_noVeg | AF1: =Interventions!$B36 -> ERA_landuse_designation | AG1: =Interventions!$B37 -> Seed_Addition | AH1: =Interventions!$B38 -> Fertiliser_addition | AI1: =Interventions!$B39 -> Organic_mulch | AJ1: =Interventions!$B40 -> Irrigation | AK1: ='Soil Chemical'!$B3 -> pH_1 | AL1: ='Soil Chemical'!$B4 -> pH_2 | AM1: ='Soil Chemical'!$B5 -> pH_3 | AN1: ='Soil Chemical'!$B7 -> EC_1 | AO1: ='Soil Chemical'!$B8 -> EC_2 | AP1: ='Soil Chemical'!$B9 -> EC_3 | AQ1: ='Soil Chemical'!$B11 -> Na_ex_1 | AR1: ='Soil Chemical'!$B12 -> Na_ex_2 | AS1: ='Soil Chemical'!$B13 -> Na_ex_3 | AT1: ='Soil Chemical'!$B15 -> K_ex_1 | AU1: ='Soil Chemical'!$B16 -> K_ex_2 | AV1: ='Soil Chemical'!$B17 -> K_ex_3 | AW1: ='Soil Chemical'!$B19 -> EDP_1 | AX1: ='Soil Chemical'!$B20 -> EDP_2 | AY1: ='Soil Chemical'!$B21 -> EDP_3 | AZ1: ='Soil physical'!$B3 -> Clay_1 | BA1: ='Soil physical'!$B4 -> Clay_2 | BB1: ='Soil physical'!$B6 -> Sand_1 | BC1: ='Soil physical'!$B7 -> Sand_2 | BD1: ='Soil physical'!$B9 -> Stone_content_1 | BE1: ='Soil physical'!$B10 -> Stone_content_2 | BF1: ='Soil physical'!$B12 -> Bulk_density_1 | BG1: ='Soil physical'!$B13 -> Bulk_density_2 | BH1: ='Soil physical'!$B15 -> Depth_to_L2 | BI1: ='Soil physical'!$B16 -> Depth_to_L3 | BJ1: =Vegetation!$B3 -> Soil_Nutrient_Status | BK1: =Vegetation!$B4 -> Topsoil_organic_matter | BL1: =Vegetation!$B6 -> Annual_spp_groundcover | BM1: =Vegetation!$B7 -> Perennial_spp_groundcover | BN1: =Vegetation!$B8 -> Woody_spp_cover | BO1: =Vegetation!$B9 -> Vegetation_cover
A2: =Scenarios!A3 -> Scenario 01: | B2: =Scenarios!B3 -> Average Year | C2: =Scenarios!C3 -> 1. Pre-amendment | D2: ='Climate Assumptions'!$F4 -> 606.9789964 | E2: ='Climate Assumptions'!$F5 -> High | F2: ='Climate Assumptions'!$F9 -> 156.7 | G2: =Interventions!$F3 -> Nil | H2: =Interventions!$F4 -> Nil | I2: =Interventions!$F5 -> Nil | J2: =Interventions!$F7 -> - | K2: =Interventions!$F8 -> - | L2: =Interventions!$F9 -> - | M2: =Interventions!$F11 -> - | N2: =Interventions!$F12 -> - | O2: =Interventions!$F13 -> - | P2: =Interventions!$F15 -> - | Q2: =Interventions!$F17 -> 500 | R2: =Interventions!$F18 -> 20 | S2: =Interventions!$F19 -> Temporary | T2: =Interventions!$F20 -> Yes | U2: =Interventions!$F22 -> 10 | V2: =Interventions!$F23 -> 100 | W2: =Interventions!$F24 -> Linear | X2: =Interventions!$F25 -> Flat_linear | Y2: =Interventions!$F26 -> Grassed_drains | Z2: =Interventions!$F28 -> 50 | AA2: =Interventions!$F29 -> Grade_ripped_downslope | AB2: =Interventions!$F30 -> Moist | AC2: =Interventions!$F32 -> No | AD2: =Interventions!$F33 -> 0 | AE2: =Interventions!$F34 -> 5 | AF2: =Interventions!$F36 -> Native_vegetation | AG2: =Interventions!$F37 -> None | AH2: =Interventions!$F38 -> No | AI2: =Interventions!$F39 -> 0 | AJ2: =Interventions!$F40 -> No | AK2: ='Soil Chemical'!$F3 -> 5.7 | AL2: ='Soil Chemical'!$F4 -> 5.7 | AM2: ='Soil Chemical'!$F$5 -> - | AN2: ='Soil Chemical'!$F7 -> 0.70 | AO2: ='Soil Chemical'!$F8 -> 0.70 | AP2: ='Soil Chemical'!$F9 -> 0.70 | AQ2: ='Soil Chemical'!$F11 -> 5.00 | AR2: ='Soil Chemical'!$F12 -> 5.00 | AS2: ='Soil Chemical'!$F13 -> 5.00 | AT2: ='Soil Chemical'!$F15 -> 0.30 | AU2: ='Soil Chemical'!$F16 -> 0.30 | AV2: ='Soil Chemical'!$F17 -> 0.30 | AW2: ='Soil Chemical'!$F19 -> 35.80 | AX2: ='Soil Chemical'!$F20 -> 35.80 | AY2: ='Soil Chemical'!$F21 -> 35.80 | AZ2: ='Soil physical'!$F3 -> 35.5 | BA2: ='Soil physical'!$F4 -> 35.5 | BB2: ='Soil physical'!$F6 -> 35.0 | BC2: ='Soil physical'!$F7 -> 35.0 | BD2: ='Soil physical'!$F9 -> - | BE2: ='Soil physical'!$F10 -> - | BF2: ='Soil physical'!$F12 -> 1.5 | BG2: ='Soil physical'!$F13 -> 1.5 | BH2: ='Soil physical'!$F15 -> 10 | BI2: ='Soil physical'!$F16 -> 50 | BJ2: =Vegetation!$F3 -> Low | BK2: =Vegetation!$F4 -> Low | BL2: =Vegetation!$F6 -> 0.0 | BM2: =Vegetation!$F7 -> 0.0 | BN2: =Vegetation!$F8 -> 0.0 | BO2: =Vegetation!$F9 -> 0.0
A3: =Scenarios!A4 -> Scenario 02: | B3: =Scenarios!B4 -> Average Year | C3: =Scenarios!C4 -> 2. Rock mulch treatment | D3: ='Climate Assumptions'!$G4 -> 606.9789964 | E3: ='Climate Assumptions'!$G5 -> High | F3: ='Climate Assumptions'!$G9 -> 184.4 | G3: =Interventions!$G3 -> Nil | H3: =Interventions!$G4 -> Nil | I3: =Interventions!$G5 -> Nil | J3: =Interventions!$G7 -> Gypsum | K3: =Interventions!$G8 -> Gypsum | L3: =Interventions!$G9 -> Gypsum | M3: =Interventions!$G11 -> Granular | N3: =Interventions!$G12 -> Granular | O3: =Interventions!$G13 -> Granular | P3: =Interventions!$G15 -> Incorporated | Q3: =Interventions!$G17 -> 0 | R3: =Interventions!$G18 -> 20 | S3: =Interventions!$G19 -> Temporary | T3: =Interventions!$G20 -> Yes | U3: =Interventions!$G22 -> 10 | V3: =Interventions!$G23 -> 100 | W3: =Interventions!$G24 -> Linear | X3: =Interventions!$G25 -> Flat_linear | Y3: =Interventions!$G26 -> No_drainage | Z3: =Interventions!$G28 -> 50 | AA3: =Interventions!$G29 -> Contour_ripped | AB3: =Interventions!$G30 -> Dry | AC3: =Interventions!$G32 -> Yes | AD3: =Interventions!$G33 -> 100 | AE3: =Interventions!$G34 -> 50 | AF3: =Interventions!$G36 -> Grazing | AG3: =Interventions!$G37 -> Mixed_Pasture_Covercrop_Spp | AH3: =Interventions!$G38 -> Yes | AI3: =Interventions!$G39 -> 0 | AJ3: =Interventions!$G40 -> No | AK3: ='Soil Chemical'!$G3 -> 5.7 | AL3: ='Soil Chemical'!$F4 -> 5.7 | AM3: ='Soil Chemical'!$G$5 -> - | AN3: ='Soil Chemical'!$F7 -> 0.70 | AO3: ='Soil Chemical'!$F8 -> 0.70 | AP3: ='Soil Chemical'!$F9 -> 0.70 | AQ3: ='Soil Chemical'!$F11 -> 5.00 | AR3: ='Soil Chemical'!$F12 -> 5.00 | AS3: ='Soil Chemical'!$F13 -> 5.00 | AT3: ='Soil Chemical'!$F15 -> 0.30 | AU3: ='Soil Chemical'!$F16 -> 0.30 | AV3: ='Soil Chemical'!$F17 -> 0.30 | AW3: ='Soil Chemical'!$F19 -> 35.80 | AX3: ='Soil Chemical'!$F20 -> 35.80 | AY3: ='Soil Chemical'!$F21 -> 35.80 | AZ3: ='Soil physical'!$G3 -> 9.8 | BA3: ='Soil physical'!$G4 -> 8.3 | BB3: ='Soil physical'!$G6 -> 56.8 | BC3: ='Soil physical'!$G7 -> 59.0 | BD3: ='Soil physical'!$G9 -> - | BE3: ='Soil physical'!$G10 -> - | BF3: ='Soil physical'!$G12 -> 1.4 | BG3: ='Soil physical'!$G13 -> 1.5 | BH3: ='Soil physical'!$G15 -> 50 | BI3: ='Soil physical'!$G16 -> 50 | BJ3: =Vegetation!$G3 -> Moderate | BK3: =Vegetation!$G4 -> Low | BL3: =Vegetation!$G6 -> 0.0 | BM3: =Vegetation!$G7 -> 42.5 | BN3: =Vegetation!$G8 -> 0.0 | BO3: =Vegetation!$G9 -> 42.5
A4: =Scenarios!A5 -> Scenario 03: | B4: =Scenarios!B5 -> Average Year | C4: =Scenarios!C5 -> 3. Post-amendment | D4: ='Climate Assumptions'!$H4 -> 606.9789964 | E4: ='Climate Assumptions'!$H5 -> High | F4: ='Climate Assumptions'!$H9 -> 129.0 | G4: =Interventions!$H3 -> As_Recommended | H4: =Interventions!$H4 -> As_Recommended | I4: =Interventions!$H5 -> As_Recommended | J4: =Interventions!$H7 -> Gypsum | K4: =Interventions!$H8 -> Gypsum | L4: =Interventions!$H9 -> Gypsum | M4: =Interventions!$H11 -> Granular | N4: =Interventions!$H12 -> Granular | O4: =Interventions!$H13 -> Granular | P4: =Interventions!$H15 -> Incorporated | Q4: =Interventions!$H17 -> 500 | R4: =Interventions!$H18 -> 20 | S4: =Interventions!$H19 -> Temporary | T4: =Interventions!$H20 -> Yes | U4: =Interventions!$H22 -> 10 | V4: =Interventions!$H23 -> 100 | W4: =Interventions!$H24 -> Linear | X4: =Interventions!$H25 -> Flat_linear | Y4: =Interventions!$H26 -> Grassed_drains | Z4: =Interventions!$H28 -> 50 | AA4: =Interventions!$H29 -> Grade_ripped_downslope | AB4: =Interventions!$H30 -> Moist | AC4: =Interventions!$H32 -> No | AD4: =Interventions!$H33 -> 0 | AE4: =Interventions!$H34 -> 10 | AF4: =Interventions!$H36 -> Native_vegetation | AG4: =Interventions!$H37 -> Mixed_Pasture_Covercrop_Spp | AH4: =Interventions!$H38 -> Yes | AI4: =Interventions!$H39 -> 5 | AJ4: =Interventions!$H40 -> Yes | AK4: ='Soil Chemical'!$H3 -> 5.7 | AL4: ='Soil Chemical'!$H4 -> 5.7 | AM4: ='Soil Chemical'!$H$5 -> - | AN4: ='Soil Chemical'!$H7 -> 0.28 | AO4: ='Soil Chemical'!$H8 -> 0.34 | AP4: ='Soil Chemical'!$H9 -> 0.34 | AQ4: ='Soil Chemical'!$H11 -> 0.39 | AR4: ='Soil Chemical'!$H12 -> 0.87 | AS4: ='Soil Chemical'!$H13 -> 0.87 | AT4: ='Soil Chemical'!$H15 -> 0.64 | AU4: ='Soil Chemical'!$H16 -> 0.50 | AV4: ='Soil Chemical'!$H17 -> 0.50 | AW4: ='Soil Chemical'!$H19 -> 3.00 | AX4: ='Soil Chemical'!$H20 -> 6.00 | AY4: ='Soil Chemical'!$H21 -> 6.00 | AZ4: ='Soil physical'!$H3 -> 35.5 | BA4: ='Soil physical'!$H4 -> 35.5 | BB4: ='Soil physical'!$H6 -> 35.0 | BC4: ='Soil physical'!$H7 -> 35.0 | BD4: ='Soil physical'!$H9 -> - | BE4: ='Soil physical'!$H10 -> - | BF4: ='Soil physical'!$H12 -> 1.5 | BG4: ='Soil physical'!$H13 -> 1.5 | BH4: ='Soil physical'!$H15 -> 20 | BI4: ='Soil physical'!$H16 -> 35 | BJ4: =Vegetation!$H3 -> High | BK4: =Vegetation!$H4 -> Medium | BL4: =Vegetation!$H6 -> 79.0 | BM4: =Vegetation!$H7 -> 79.0 | BN4: =Vegetation!$H8 -> 0.0 | BO4: =Vegetation!$H9 -> 79.0
A5: =Scenarios!A6 -> Scenario 04: | B5: =Scenarios!B6 -> Average Year | C5: =Scenarios!C6 -> 4. Post-amendment (Reduced treatment depth) | D5: ='Climate Assumptions'!$I4 -> 606.9789964 | E5: ='Climate Assumptions'!$I5 -> High | F5: ='Climate Assumptions'!$I9 -> 129.0 | G5: =Interventions!$I3 -> As_Recommended | H5: =Interventions!$I4 -> As_Recommended | I5: =Interventions!$I5 -> As_Recommended | J5: =Interventions!$I7 -> Gypsum | K5: =Interventions!$I8 -> Gypsum | L5: =Interventions!$I9 -> Gypsum | M5: =Interventions!$I11 -> Granular | N5: =Interventions!$I12 -> Granular | O5: =Interventions!$I13 -> Granular | P5: =Interventions!$I15 -> Incorporated | Q5: =Interventions!$I17 -> 500 | R5: =Interventions!$I18 -> 20 | S5: =Interventions!$I19 -> Temporary | T5: =Interventions!$I20 -> Yes | U5: =Interventions!$I22 -> 10 | V5: =Interventions!$I23 -> 100 | W5: =Interventions!$I24 -> Linear | X5: =Interventions!$I25 -> Flat_linear | Y5: =Interventions!$I26 -> Grassed_drains | Z5: =Interventions!$I28 -> 50 | AA5: =Interventions!$I29 -> Grade_ripped_downslope | AB5: =Interventions!$I30 -> Moist | AC5: =Interventions!$I32 -> No | AD5: =Interventions!$I33 -> 0 | AE5: =Interventions!$I34 -> 10 | AF5: =Interventions!$I36 -> Native_vegetation | AG5: =Interventions!$I37 -> Mixed_Pasture_Covercrop_Spp | AH5: =Interventions!$I38 -> Yes | AI5: =Interventions!$I39 -> 5 | AJ5: =Interventions!$I40 -> Yes | AK5: ='Soil Chemical'!$I3 -> 5.7 | AL5: ='Soil Chemical'!$I4 -> 5.7 | AM5: ='Soil Chemical'!$I$5 -> - | AN5: ='Soil Chemical'!$I7 -> 0.28 | AO5: ='Soil Chemical'!$I8 -> 0.34 | AP5: ='Soil Chemical'!$I9 -> 0.34 | AQ5: ='Soil Chemical'!$I11 -> 0.39 | AR5: ='Soil Chemical'!$I12 -> 0.87 | AS5: ='Soil Chemical'!$I13 -> 0.87 | AT5: ='Soil Chemical'!$I15 -> 0.64 | AU5: ='Soil Chemical'!$I16 -> 0.50 | AV5: ='Soil Chemical'!$I17 -> 0.50 | AW5: ='Soil Chemical'!$I19 -> 3.00 | AX5: ='Soil Chemical'!$I20 -> 6.00 | AY5: ='Soil Chemical'!$I21 -> 6.00 | AZ5: ='Soil physical'!$I3 -> 35.5 | BA5: ='Soil physical'!$I4 -> 35.5 | BB5: ='Soil physical'!$I6 -> 35.0 | BC5: ='Soil physical'!$I7 -> 35.0 | BD5: ='Soil physical'!$I9 -> - | BE5: ='Soil physical'!$I10 -> - | BF5: ='Soil physical'!$I12 -> 1.5 | BG5: ='Soil physical'!$I13 -> 1.5 | BH5: ='Soil physical'!$I15 -> 10 | BI5: ='Soil physical'!$I16 -> 20 | BJ5: =Vegetation!$I3 -> High | BK5: =Vegetation!$I4 -> High | BL5: =Vegetation!$I6 -> 79.0 | BM5: =Vegetation!$I7 -> 79.0 | BN5: =Vegetation!$I8 -> 0.0 | BO5: =Vegetation!$I9 -> 79.0
A6: =Scenarios!A7 -> Scenario 05: | B6: =Scenarios!B7 -> Average Year | C6: =Scenarios!C7 -> 5. Post-amendment (Reduced treatment ESP) | D6: ='Climate Assumptions'!$J4 -> 606.9789964 | E6: ='Climate Assumptions'!$J5 -> High | F6: ='Climate Assumptions'!$J9 -> 129.0 | G6: =Interventions!$J3 -> Half_recommended | H6: =Interventions!$J4 -> Half_recommended | I6: =Interventions!$J5 -> Half_recommended | J6: =Interventions!$J7 -> Gypsum | K6: =Interventions!$J8 -> Gypsum | L6: =Interventions!$J9 -> Gypsum | M6: =Interventions!$J11 -> Granular | N6: =Interventions!$J12 -> Granular | O6: =Interventions!$J13 -> Granular | P6: =Interventions!$J15 -> Incorporated | Q6: =Interventions!$J17 -> 500 | R6: =Interventions!$J18 -> 20 | S6: =Interventions!$J19 -> Temporary | T6: =Interventions!$J20 -> Yes | U6: =Interventions!$J22 -> 10 | V6: =Interventions!$J23 -> 100 | W6: =Interventions!$J24 -> Linear | X6: =Interventions!$J25 -> Flat_linear | Y6: =Interventions!$J26 -> Grassed_drains | Z6: =Interventions!$J28 -> 50 | AA6: =Interventions!$J29 -> Grade_ripped_downslope | AB6: =Interventions!$J30 -> Moist | AC6: =Interventions!$J32 -> No | AD6: =Interventions!$J33 -> 0 | AE6: =Interventions!$J34 -> 10 | AF6: =Interventions!$J36 -> Native_vegetation | AG6: =Interventions!$J37 -> Mixed_Pasture_Covercrop_Spp | AH6: =Interventions!$J38 -> Yes | AI6: =Interventions!$J39 -> 5 | AJ6: =Interventions!$J40 -> Yes | AK6: ='Soil Chemical'!$J3 -> 5.7 | AL6: ='Soil Chemical'!$J4 -> 5.7 | AM6: ='Soil Chemical'!$J$5 -> - | AN6: ='Soil Chemical'!$J7 -> 0.28 | AO6: ='Soil Chemical'!$J8 -> 0.34 | AP6: ='Soil Chemical'!$J9 -> 0.34 | AQ6: ='Soil Chemical'!$J11 -> 2.00 | AR6: ='Soil Chemical'!$J12 -> 2.00 | AS6: ='Soil Chemical'!$J13 -> 2.00 | AT6: ='Soil Chemical'!$J15 -> 0.64 | AU6: ='Soil Chemical'!$J16 -> 0.50 | AV6: ='Soil Chemical'!$J17 -> 0.50 | AW6: ='Soil Chemical'!$J19 -> 15.00 | AX6: ='Soil Chemical'!$J20 -> 15.00 | AY6: ='Soil Chemical'!$J21 -> 15.00 | AZ6: ='Soil physical'!$J3 -> 35.5 | BA6: ='Soil physical'!$J4 -> 35.5 | BB6: ='Soil physical'!$J6 -> 35.0 | BC6: ='Soil physical'!$J7 -> 35.0 | BD6: ='Soil physical'!$J9 -> - | BE6: ='Soil physical'!$J10 -> - | BF6: ='Soil physical'!$J12 -> 1.5 | BG6: ='Soil physical'!$J13 -> 1.5 | BH6: ='Soil physical'!$J15 -> 20 | BI6: ='Soil physical'!$J16 -> 35 | BJ6: =Vegetation!$J3 -> High | BK6: =Vegetation!$J4 -> High | BL6: =Vegetation!$J6 -> 79.0 | BM6: =Vegetation!$J7 -> 79.0 | BN6: =Vegetation!$J8 -> 0.0 | BO6: =Vegetation!$J9 -> 79.0
A7: =Scenarios!A8 -> Scenario 06: | B7: =Scenarios!B8 -> Average Year | C7: =Scenarios!C8 -> 6. Post-amendment (Reduced treatment depth and ESP) | D7: ='Climate Assumptions'!$K4 -> 606.9789964 | E7: ='Climate Assumptions'!$K5 -> High | F7: ='Climate Assumptions'!$K9 -> 129.0 | G7: =Interventions!$K3 -> Half_recommended | H7: =Interventions!$K4 -> Half_recommended | I7: =Interventions!$K5 -> Half_recommended | J7: =Interventions!$K7 -> Gypsum | K7: =Interventions!$K8 -> Gypsum | L7: =Interventions!$K9 -> Gypsum | M7: =Interventions!$K11 -> Granular | N7: =Interventions!$K12 -> Granular | O7: =Interventions!$K13 -> Granular | P7: =Interventions!$K15 -> Incorporated | Q7: =Interventions!$K17 -> 500 | R7: =Interventions!$K18 -> 20 | S7: =Interventions!$K19 -> Temporary | T7: =Interventions!$K20 -> Yes | U7: =Interventions!$K22 -> 10 | V7: =Interventions!$K23 -> 100 | W7: =Interventions!$K24 -> Linear | X7: =Interventions!$K25 -> Flat_linear | Y7: =Interventions!$K26 -> Grassed_drains | Z7: =Interventions!$K28 -> 50 | AA7: =Interventions!$K29 -> Grade_ripped_downslope | AB7: =Interventions!$K30 -> Moist | AC7: =Interventions!$K32 -> No | AD7: =Interventions!$K33 -> 0 | AE7: =Interventions!$K34 -> 10 | AF7: =Interventions!$K36 -> Native_vegetation | AG7: =Interventions!$K37 -> Mixed_Pasture_Covercrop_Spp | AH7: =Interventions!$K38 -> Yes | AI7: =Interventions!$K39 -> 5 | AJ7: =Interventions!$K40 -> Yes | AK7: ='Soil Chemical'!$K3 -> 5.7 | AL7: ='Soil Chemical'!$K4 -> 5.7 | AM7: ='Soil Chemical'!$K$5 -> - | AN7: ='Soil Chemical'!$K7 -> 0.28 | AO7: ='Soil Chemical'!$K8 -> 0.34 | AP7: ='Soil Chemical'!$K9 -> 0.34 | AQ7: ='Soil Chemical'!$K11 -> 2.00 | AR7: ='Soil Chemical'!$K12 -> 2.00 | AS7: ='Soil Chemical'!$K13 -> 2.00 | AT7: ='Soil Chemical'!$K15 -> 0.64 | AU7: ='Soil Chemical'!$K16 -> 0.50 | AV7: ='Soil Chemical'!$K17 -> 0.50 | AW7: ='Soil Chemical'!$K19 -> 15.00 | AX7: ='Soil Chemical'!$K20 -> 15.00 | AY7: ='Soil Chemical'!$K21 -> 15.00 | AZ7: ='Soil physical'!$K3 -> 35.5 | BA7: ='Soil physical'!$K4 -> 35.5 | BB7: ='Soil physical'!$K6 -> 35.0 | BC7: ='Soil physical'!$K7 -> 35.0 | BD7: ='Soil physical'!$K9 -> - | BE7: ='Soil physical'!$K10 -> - | BF7: ='Soil physical'!$K12 -> 1.5 | BG7: ='Soil physical'!$K13 -> 1.5 | BH7: ='Soil physical'!$K15 -> 10 | BI7: ='Soil physical'!$K16 -> 20 | BJ7: =Vegetation!$K3 -> High | BK7: =Vegetation!$K4 -> High | BL7: =Vegetation!$K6 -> 79.0 | BM7: =Vegetation!$K7 -> 79.0 | BN7: =Vegetation!$K8 -> 0.0 | BO7: =Vegetation!$K9 -> 79.0
A8: =Scenarios!A9 -> Scenario 07: | B8: =Scenarios!B9 -> - | C8: =Scenarios!C9 -> - | D8: ='Climate Assumptions'!$L4 -> - | E8: ='Climate Assumptions'!$L5 -> - | F8: ='Climate Assumptions'!$L9 -> - | G8: =Interventions!$L3 -> - | H8: =Interventions!$L4 -> - | I8: =Interventions!$L5 -> - | J8: =Interventions!$L7 -> - | K8: =Interventions!$L8 -> - | L8: =Interventions!$L9 -> - | M8: =Interventions!$L11 -> - | N8: =Interventions!$L12 -> - | O8: =Interventions!$L13 -> - | P8: =Interventions!$L15 -> - | Q8: =Interventions!$L17 -> - | R8: =Interventions!$L18 -> - | S8: =Interventions!$L19 -> - | T8: =Interventions!$L20 -> - | U8: =Interventions!$L22 -> - | V8: =Interventions!$L23 -> - | W8: =Interventions!$L24 -> - | X8: =Interventions!$L25 -> - | Y8: =Interventions!$L26 -> - | Z8: =Interventions!$L28 -> - | AA8: =Interventions!$L29 -> - | AB8: =Interventions!$L30 -> - | AC8: =Interventions!$L32 -> - | AD8: =Interventions!$L33 -> - | AE8: =Interventions!$L34 -> - | AF8: =Interventions!$L36 -> - | AG8: =Interventions!$L37 -> - | AH8: =Interventions!$L38 -> - | AI8: =Interventions!$L39 -> - | AJ8: =Interventions!$L40 -> - | AK8: ='Soil Chemical'!$L3 -> - | AL8: ='Soil Chemical'!$L4 -> - | AM8: ='Soil Chemical'!$L$5 -> - | AN8: ='Soil Chemical'!$L7 -> - | AO8: ='Soil Chemical'!$L8 -> - | AP8: ='Soil Chemical'!$L9 -> - | AQ8: ='Soil Chemical'!$L11 -> - | AR8: ='Soil Chemical'!$L12 -> - | AS8: ='Soil Chemical'!$L13 -> - | AT8: ='Soil Chemical'!$L15 -> - | AU8: ='Soil Chemical'!$L16 -> - | AV8: ='Soil Chemical'!$L17 -> - | AW8: ='Soil Chemical'!$L19 -> - | AX8: ='Soil Chemical'!$L20 -> - | AY8: ='Soil Chemical'!$L21 -> - | AZ8: ='Soil physical'!$L3 -> - | BA8: ='Soil physical'!$L4 -> - | BB8: ='Soil physical'!$L6 -> - | BC8: ='Soil physical'!$L7 -> - | BD8: ='Soil physical'!$L9 -> - | BE8: ='Soil physical'!$L10 -> - | BF8: ='Soil physical'!$L12 -> - | BG8: ='Soil physical'!$L13 -> - | BH8: ='Soil physical'!$L15 -> - | BI8: ='Soil physical'!$L16 -> - | BJ8: =Vegetation!$L3 -> - | BK8: =Vegetation!$L4 -> - | BL8: =Vegetation!$L6 -> 0.0 | BM8: =Vegetation!$L7 -> - | BN8: =Vegetation!$L8 -> - | BO8: =Vegetation!$L9 -> -
A9: =Scenarios!A10 -> Scenario 08: | B9: =Scenarios!B10 -> - | C9: =Scenarios!C10 -> - | D9: ='Climate Assumptions'!$M4 -> - | E9: ='Climate Assumptions'!$M5 -> - | F9: ='Climate Assumptions'!$M9 -> - | G9: =Interventions!$M3 -> - | H9: =Interventions!$M4 -> - | I9: =Interventions!$M5 -> - | J9: =Interventions!$M7 -> - | K9: =Interventions!$M8 -> - | L9: =Interventions!$M9 -> - | M9: =Interventions!$M11 -> - | N9: =Interventions!$M12 -> - | O9: =Interventions!$M13 -> - | P9: =Interventions!$M15 -> - | Q9: =Interventions!$M17 -> - | R9: =Interventions!$M18 -> - | S9: =Interventions!$M19 -> - | T9: =Interventions!$M20 -> - | U9: =Interventions!$M22 -> - | V9: =Interventions!$M23 -> - | W9: =Interventions!$M24 -> - | X9: =Interventions!$M25 -> - | Y9: =Interventions!$M26 -> - | Z9: =Interventions!$M28 -> - | AA9: =Interventions!$M29 -> - | AB9: =Interventions!$M30 -> - | AC9: =Interventions!$M32 -> - | AD9: =Interventions!$M33 -> - | AE9: =Interventions!$M34 -> - | AF9: =Interventions!$M36 -> - | AG9: =Interventions!$M37 -> - | AH9: =Interventions!$M38 -> - | AI9: =Interventions!$M39 -> - | AJ9: =Interventions!$M40 -> - | AK9: ='Soil Chemical'!$M3 -> - | AL9: ='Soil Chemical'!$M4 -> - | AM9: ='Soil Chemical'!$M$5 -> - | AN9: ='Soil Chemical'!$M7 -> - | AO9: ='Soil Chemical'!$M8 -> - | AP9: ='Soil Chemical'!$M9 -> - | AQ9: ='Soil Chemical'!$M11 -> - | AR9: ='Soil Chemical'!$M12 -> - | AS9: ='Soil Chemical'!$M13 -> - | AT9: ='Soil Chemical'!$M15 -> - | AU9: ='Soil Chemical'!$M16 -> - | AV9: ='Soil Chemical'!$M17 -> - | AW9: ='Soil Chemical'!$M19 -> - | AX9: ='Soil Chemical'!$M20 -> - | AY9: ='Soil Chemical'!$M21 -> - | AZ9: ='Soil physical'!$M3 -> - | BA9: ='Soil physical'!$M4 -> - | BB9: ='Soil physical'!$M6 -> - | BC9: ='Soil physical'!$M7 -> - | BD9: ='Soil physical'!$M9 -> - | BE9: ='Soil physical'!$M10 -> - | BF9: ='Soil physical'!$M12 -> - | BG9: ='Soil physical'!$M13 -> - | BH9: ='Soil physical'!$M15 -> - | BI9: ='Soil physical'!$M16 -> - | BJ9: =Vegetation!$M3 -> - | BK9: =Vegetation!$M4 -> - | BL9: =Vegetation!$M6 -> - | BM9: =Vegetation!$M7 -> - | BN9: =Vegetation!$M8 -> - | BO9: =Vegetation!$M9 -> -
A10: =Scenarios!A11 -> Scenario 09: | B10: =Scenarios!B11 -> - | C10: =Scenarios!C11 -> - | D10: ='Climate Assumptions'!$N4 -> - | E10: ='Climate Assumptions'!$N5 -> - | F10: ='Climate Assumptions'!$N9 -> - | G10: =Interventions!$N3 -> - | H10: =Interventions!$N4 -> - | I10: =Interventions!$N5 -> - | J10: =Interventions!$N7 -> - | K10: =Interventions!$N8 -> - | L10: =Interventions!$N9 -> - | M10: =Interventions!$N11 -> - | N10: =Interventions!$N12 -> - | O10: =Interventions!$N13 -> - | P10: =Interventions!$N15 -> - | Q10: =Interventions!$N17 -> - | R10: =Interventions!$N18 -> - | S10: =Interventions!$N19 -> - | T10: =Interventions!$N20 -> - | U10: =Interventions!$N22 -> - | V10: =Interventions!$N23 -> - | W10: =Interventions!$N24 -> - | X10: =Interventions!$N25 -> - | Y10: =Interventions!$N26 -> - | Z10: =Interventions!$N28 -> - | AA10: =Interventions!$N29 -> - | AB10: =Interventions!$N30 -> - | AC10: =Interventions!$N32 -> - | AD10: =Interventions!$N33 -> - | AE10: =Interventions!$N34 -> - | AF10: =Interventions!$N36 -> - | AG10: =Interventions!$N37 -> - | AH10: =Interventions!$N38 -> - | AI10: =Interventions!$N39 -> - | AJ10: =Interventions!$N40 -> - | AK10: ='Soil Chemical'!$N3 -> - | AL10: ='Soil Chemical'!$N4 -> - | AM10: ='Soil Chemical'!$N$5 -> - | AN10: ='Soil Chemical'!$N7 -> - | AO10: ='Soil Chemical'!$N8 -> - | AP10: ='Soil Chemical'!$N9 -> - | AQ10: ='Soil Chemical'!$N11 -> - | AR10: ='Soil Chemical'!$N12 -> - | AS10: ='Soil Chemical'!$N13 -> - | AT10: ='Soil Chemical'!$N15 -> - | AU10: ='Soil Chemical'!$N16 -> - | AV10: ='Soil Chemical'!$N17 -> - | AW10: ='Soil Chemical'!$N19 -> - | AX10: ='Soil Chemical'!$N20 -> - | AY10: ='Soil Chemical'!$N21 -> - | AZ10: ='Soil physical'!$N3 -> - | BA10: ='Soil physical'!$N4 -> - | BB10: ='Soil physical'!$N6 -> - | BC10: ='Soil physical'!$N7 -> - | BD10: ='Soil physical'!$N9 -> - | BE10: ='Soil physical'!$N10 -> - | BF10: ='Soil physical'!$N12 -> - | BG10: ='Soil physical'!$N13 -> - | BH10: ='Soil physical'!$N15 -> - | BI10: ='Soil physical'!$N16 -> - | BJ10: =Vegetation!$N3 -> - | BK10: =Vegetation!$N4 -> - | BL10: =Vegetation!$N6 -> - | BM10: =Vegetation!$N7 -> - | BN10: =Vegetation!$N8 -> - | BO10: =Vegetation!$N9 -> -
A11: =Scenarios!A12 -> Scenario 10: | B11: =Scenarios!B12 -> - | C11: =Scenarios!C12 -> - | D11: ='Climate Assumptions'!$O4 -> - | E11: ='Climate Assumptions'!$O5 -> - | F11: ='Climate Assumptions'!$O9 -> - | G11: =Interventions!$O3 -> - | H11: =Interventions!$O4 -> - | I11: =Interventions!$O5 -> - | J11: =Interventions!$O7 -> - | K11: =Interventions!$O8 -> - | L11: =Interventions!$O9 -> - | M11: =Interventions!$O11 -> - | N11: =Interventions!$O12 -> - | O11: =Interventions!$O13 -> - | P11: =Interventions!$O15 -> - | Q11: =Interventions!$O17 -> - | R11: =Interventions!$O18 -> - | S11: =Interventions!$O19 -> - | T11: =Interventions!$O20 -> - | U11: =Interventions!$O22 -> - | V11: =Interventions!$O23 -> - | W11: =Interventions!$O24 -> - | X11: =Interventions!$O25 -> - | Y11: =Interventions!$O26 -> - | Z11: =Interventions!$O28 -> - | AA11: =Interventions!$O29 -> - | AB11: =Interventions!$O30 -> - | AC11: =Interventions!$O32 -> - | AD11: =Interventions!$O33 -> - | AE11: =Interventions!$O34 -> - | AF11: =Interventions!$O36 -> - | AG11: =Interventions!$O37 -> - | AH11: =Interventions!$O38 -> - | AI11: =Interventions!$O39 -> - | AJ11: =Interventions!$O40 -> - | AK11: ='Soil Chemical'!$O3 -> - | AL11: ='Soil Chemical'!$O4 -> - | AM11: ='Soil Chemical'!$O$5 -> - | AN11: ='Soil Chemical'!$O7 -> - | AO11: ='Soil Chemical'!$O8 -> - | AP11: ='Soil Chemical'!$O9 -> - | AQ11: ='Soil Chemical'!$O11 -> - | AR11: ='Soil Chemical'!$O12 -> - | AS11: ='Soil Chemical'!$O13 -> - | AT11: ='Soil Chemical'!$O15 -> - | AU11: ='Soil Chemical'!$O16 -> - | AV11: ='Soil Chemical'!$O17 -> - | AW11: ='Soil Chemical'!$O19 -> - | AX11: ='Soil Chemical'!$O20 -> - | AY11: ='Soil Chemical'!$O21 -> - | AZ11: ='Soil physical'!$O3 -> - | BA11: ='Soil physical'!$O4 -> - | BB11: ='Soil physical'!$O6 -> - | BC11: ='Soil physical'!$O7 -> - | BD11: ='Soil physical'!$O9 -> - | BE11: ='Soil physical'!$O10 -> - | BF11: ='Soil physical'!$O12 -> - | BG11: ='Soil physical'!$O13 -> - | BH11: ='Soil physical'!$O15 -> - | BI11: ='Soil physical'!$O16 -> - | BJ11: =Vegetation!$O3 -> - | BK11: =Vegetation!$O4 -> - | BL11: =Vegetation!$O6 -> - | BM11: =Vegetation!$O7 -> - | BN11: =Vegetation!$O8 -> - | BO11: =Vegetation!$O9 -> -
A12: =Scenarios!A13 -> Scenario 11: | B12: =Scenarios!B13 -> - | C12: =Scenarios!C13 -> - | D12: ='Climate Assumptions'!$P4 -> - | E12: ='Climate Assumptions'!$P5 -> - | F12: ='Climate Assumptions'!$P9 -> - | G12: =Interventions!$P3 -> - | H12: =Interventions!$P4 -> - | I12: =Interventions!$P5 -> - | J12: =Interventions!$P7 -> - | K12: =Interventions!$P8 -> - | L12: =Interventions!$P9 -> - | M12: =Interventions!$P11 -> - | N12: =Interventions!$P12 -> - | O12: =Interventions!$P13 -> - | P12: =Interventions!$P15 -> - | Q12: =Interventions!$P17 -> - | R12: =Interventions!$P18 -> - | S12: =Interventions!$P19 -> - | T12: =Interventions!$P20 -> - | U12: =Interventions!$P22 -> - | V12: =Interventions!$P23 -> - | W12: =Interventions!$P24 -> - | X12: =Interventions!$P25 -> - | Y12: =Interventions!$P26 -> - | Z12: =Interventions!$P28 -> - | AA12: =Interventions!$P29 -> - | AB12: =Interventions!$P30 -> - | AC12: =Interventions!$P32 -> - | AD12: =Interventions!$P33 -> - | AE12: =Interventions!$P34 -> - | AF12: =Interventions!$P36 -> - | AG12: =Interventions!$P37 -> - | AH12: =Interventions!$P38 -> - | AI12: =Interventions!$P39 -> - | AJ12: =Interventions!$P40 -> - | AK12: ='Soil Chemical'!$P3 -> - | AL12: ='Soil Chemical'!$P4 -> - | AM12: ='Soil Chemical'!$P$5 -> - | AN12: ='Soil Chemical'!$P7 -> - | AO12: ='Soil Chemical'!$P8 -> - | AP12: ='Soil Chemical'!$P9 -> - | AQ12: ='Soil Chemical'!$P11 -> - | AR12: ='Soil Chemical'!$P12 -> - | AS12: ='Soil Chemical'!$P13 -> - | AT12: ='Soil Chemical'!$P15 -> - | AU12: ='Soil Chemical'!$P16 -> - | AV12: ='Soil Chemical'!$P17 -> - | AW12: ='Soil Chemical'!$P19 -> - | AX12: ='Soil Chemical'!$P20 -> - | AY12: ='Soil Chemical'!$P21 -> - | AZ12: ='Soil physical'!$P3 -> - | BA12: ='Soil physical'!$P4 -> - | BB12: ='Soil physical'!$P6 -> - | BC12: ='Soil physical'!$P7 -> - | BD12: ='Soil physical'!$P9 -> - | BE12: ='Soil physical'!$P10 -> - | BF12: ='Soil physical'!$P12 -> - | BG12: ='Soil physical'!$P13 -> - | BH12: ='Soil physical'!$P15 -> - | BI12: ='Soil physical'!$P16 -> - | BJ12: =Vegetation!$P3 -> - | BK12: =Vegetation!$P4 -> - | BL12: =Vegetation!$P6 -> - | BM12: =Vegetation!$P7 -> - | BN12: =Vegetation!$P8 -> - | BO12: =Vegetation!$P9 -> -
A13: =Scenarios!A14 -> Scenario 12: | B13: =Scenarios!B14 -> - | C13: =Scenarios!C14 -> - | D13: ='Climate Assumptions'!$Q4 -> - | E13: ='Climate Assumptions'!$Q5 -> - | F13: ='Climate Assumptions'!$Q9 -> - | G13: =Interventions!$Q3 -> - | H13: =Interventions!$Q4 -> - | I13: =Interventions!$Q5 -> - | J13: =Interventions!$Q7 -> - | K13: =Interventions!$Q8 -> - | L13: =Interventions!$Q9 -> - | M13: =Interventions!$Q11 -> - | N13: =Interventions!$Q12 -> - | O13: =Interventions!$Q13 -> - | P13: =Interventions!$Q15 -> - | Q13: =Interventions!$Q17 -> - | R13: =Interventions!$Q18 -> - | S13: =Interventions!$Q19 -> - | T13: =Interventions!$Q20 -> - | U13: =Interventions!$Q22 -> - | V13: =Interventions!$Q23 -> - | W13: =Interventions!$Q24 -> - | X13: =Interventions!$Q25 -> - | Y13: =Interventions!$Q26 -> - | Z13: =Interventions!$Q28 -> - | AA13: =Interventions!$Q29 -> - | AB13: =Interventions!$Q30 -> - | AC13: =Interventions!$Q32 -> - | AD13: =Interventions!$Q33 -> - | AE13: =Interventions!$Q34 -> - | AF13: =Interventions!$Q36 -> - | AG13: =Interventions!$Q37 -> - | AH13: =Interventions!$Q38 -> - | AI13: =Interventions!$Q39 -> - | AJ13: =Interventions!$Q40 -> - | AK13: ='Soil Chemical'!$Q3 -> - | AL13: ='Soil Chemical'!$Q4 -> - | AM13: ='Soil Chemical'!$Q$5 -> - | AN13: ='Soil Chemical'!$Q7 -> - | AO13: ='Soil Chemical'!$Q8 -> - | AP13: ='Soil Chemical'!$Q9 -> - | AQ13: ='Soil Chemical'!$Q11 -> - | AR13: ='Soil Chemical'!$Q12 -> - | AS13: ='Soil Chemical'!$Q13 -> - | AT13: ='Soil Chemical'!$Q15 -> - | AU13: ='Soil Chemical'!$Q16 -> - | AV13: ='Soil Chemical'!$Q17 -> - | AW13: ='Soil Chemical'!$Q19 -> - | AX13: ='Soil Chemical'!$Q20 -> - | AY13: ='Soil Chemical'!$Q21 -> - | AZ13: ='Soil physical'!$Q3 -> - | BA13: ='Soil physical'!$Q4 -> - | BB13: ='Soil physical'!$Q6 -> - | BC13: ='Soil physical'!$Q7 -> - | BD13: ='Soil physical'!$Q9 -> - | BE13: ='Soil physical'!$Q10 -> - | BF13: ='Soil physical'!$Q12 -> - | BG13: ='Soil physical'!$Q13 -> - | BH13: ='Soil physical'!$Q15 -> - | BI13: ='Soil physical'!$Q16 -> - | BJ13: =Vegetation!$Q3 -> - | BK13: =Vegetation!$Q4 -> - | BL13: =Vegetation!$Q6 -> - | BM13: =Vegetation!$Q7 -> - | BN13: =Vegetation!$Q8 -> - | BO13: =Vegetation!$Q9 -> -
A14: =Scenarios!A15 -> Scenario 13: | B14: =Scenarios!B15 -> - | C14: =Scenarios!C15 -> - | D14: ='Climate Assumptions'!$R4 -> - | E14: ='Climate Assumptions'!$R5 -> - | F14: ='Climate Assumptions'!$R9 -> - | G14: =Interventions!$R3 -> - | H14: =Interventions!$R4 -> - | I14: =Interventions!$R5 -> - | J14: =Interventions!$R7 -> - | K14: =Interventions!$R8 -> - | L14: =Interventions!$R9 -> - | M14: =Interventions!$R11 -> - | N14: =Interventions!$R12 -> - | O14: =Interventions!$R13 -> - | P14: =Interventions!$R15 -> - | Q14: =Interventions!$R17 -> - | R14: =Interventions!$R18 -> - | S14: =Interventions!$R19 -> - | T14: =Interventions!$R20 -> - | U14: =Interventions!$R22 -> - | V14: =Interventions!$R23 -> - | W14: =Interventions!$R24 -> - | X14: =Interventions!$R25 -> - | Y14: =Interventions!$R26 -> - | Z14: =Interventions!$R28 -> - | AA14: =Interventions!$R29 -> - | AB14: =Interventions!$R30 -> - | AC14: =Interventions!$R32 -> - | AD14: =Interventions!$R33 -> - | AE14: =Interventions!$R34 -> - | AF14: =Interventions!$R36 -> - | AG14: =Interventions!$R37 -> - | AH14: =Interventions!$R38 -> - | AI14: =Interventions!$R39 -> - | AJ14: =Interventions!$R40 -> - | AK14: ='Soil Chemical'!$R3 -> - | AL14: ='Soil Chemical'!$R4 -> - | AM14: ='Soil Chemical'!$R$5 -> - | AN14: ='Soil Chemical'!$R7 -> - | AO14: ='Soil Chemical'!$R8 -> - | AP14: ='Soil Chemical'!$R9 -> - | AQ14: ='Soil Chemical'!$R11 -> - | AR14: ='Soil Chemical'!$R12 -> - | AS14: ='Soil Chemical'!$R13 -> - | AT14: ='Soil Chemical'!$R15 -> - | AU14: ='Soil Chemical'!$R16 -> - | AV14: ='Soil Chemical'!$R17 -> - | AW14: ='Soil Chemical'!$R19 -> - | AX14: ='Soil Chemical'!$R20 -> - | AY14: ='Soil Chemical'!$R21 -> - | AZ14: ='Soil physical'!$R3 -> - | BA14: ='Soil physical'!$R4 -> - | BB14: ='Soil physical'!$R6 -> - | BC14: ='Soil physical'!$R7 -> - | BD14: ='Soil physical'!$R9 -> - | BE14: ='Soil physical'!$R10 -> - | BF14: ='Soil physical'!$R12 -> - | BG14: ='Soil physical'!$R13 -> - | BH14: ='Soil physical'!$R15 -> - | BI14: ='Soil physical'!$R16 -> - | BJ14: =Vegetation!$R3 -> - | BK14: =Vegetation!$R4 -> - | BL14: =Vegetation!$R6 -> - | BM14: =Vegetation!$R7 -> - | BN14: =Vegetation!$R8 -> - | BO14: =Vegetation!$R9 -> -
A15: =Scenarios!A16 -> Scenario 14: | B15: =Scenarios!B16 -> - | C15: =Scenarios!C16 -> - | D15: ='Climate Assumptions'!$S4 -> - | E15: ='Climate Assumptions'!$S5 -> - | F15: ='Climate Assumptions'!$S9 -> - | G15: =Interventions!$S3 -> - | H15: =Interventions!$S4 -> - | I15: =Interventions!$S5 -> - | J15: =Interventions!$S7 -> - | K15: =Interventions!$S8 -> - | L15: =Interventions!$S9 -> - | M15: =Interventions!$S11 -> - | N15: =Interventions!$S12 -> - | O15: =Interventions!$S13 -> - | P15: =Interventions!$S15 -> - | Q15: =Interventions!$S17 -> - | R15: =Interventions!$S18 -> - | S15: =Interventions!$S19 -> - | T15: =Interventions!$S20 -> - | U15: =Interventions!$S22 -> - | V15: =Interventions!$S23 -> - | W15: =Interventions!$S24 -> - | X15: =Interventions!$S25 -> - | Y15: =Interventions!$S26 -> - | Z15: =Interventions!$S28 -> - | AA15: =Interventions!$S29 -> - | AB15: =Interventions!$S30 -> - | AC15: =Interventions!$S32 -> - | AD15: =Interventions!$S33 -> - | AE15: =Interventions!$S34 -> - | AF15: =Interventions!$S36 -> - | AG15: =Interventions!$S37 -> - | AH15: =Interventions!$S38 -> - | AI15: =Interventions!$S39 -> - | AJ15: =Interventions!$S40 -> - | AK15: ='Soil Chemical'!$S3 -> - | AL15: ='Soil Chemical'!$S4 -> - | AM15: ='Soil Chemical'!$S$5 -> - | AN15: ='Soil Chemical'!$S7 -> - | AO15: ='Soil Chemical'!$S8 -> - | AP15: ='Soil Chemical'!$S9 -> - | AQ15: ='Soil Chemical'!$S11 -> - | AR15: ='Soil Chemical'!$S12 -> - | AS15: ='Soil Chemical'!$S13 -> - | AT15: ='Soil Chemical'!$S15 -> - | AU15: ='Soil Chemical'!$S16 -> - | AV15: ='Soil Chemical'!$S17 -> - | AW15: ='Soil Chemical'!$S19 -> - | AX15: ='Soil Chemical'!$S20 -> - | AY15: ='Soil Chemical'!$S21 -> - | AZ15: ='Soil physical'!$S3 -> - | BA15: ='Soil physical'!$S4 -> - | BB15: ='Soil physical'!$S6 -> - | BC15: ='Soil physical'!$S7 -> - | BD15: ='Soil physical'!$S9 -> - | BE15: ='Soil physical'!$S10 -> - | BF15: ='Soil physical'!$S12 -> - | BG15: ='Soil physical'!$S13 -> - | BH15: ='Soil physical'!$S15 -> - | BI15: ='Soil physical'!$S16 -> - | BJ15: =Vegetation!$S3 -> - | BK15: =Vegetation!$S4 -> - | BL15: =Vegetation!$S6 -> - | BM15: =Vegetation!$S7 -> - | BN15: =Vegetation!$S8 -> - | BO15: =Vegetation!$S9 -> -
A16: =Scenarios!A17 -> Scenario 15: | B16: =Scenarios!B17 -> - | C16: =Scenarios!C17 -> - | D16: ='Climate Assumptions'!$T4 -> - | E16: ='Climate Assumptions'!$T5 -> - | F16: ='Climate Assumptions'!$T9 -> - | G16: =Interventions!$T3 -> - | H16: =Interventions!$T4 -> - | I16: =Interventions!$T5 -> - | J16: =Interventions!$T7 -> - | K16: =Interventions!$T8 -> - | L16: =Interventions!$T9 -> - | M16: =Interventions!$T11 -> - | N16: =Interventions!$T12 -> - | O16: =Interventions!$T13 -> - | P16: =Interventions!$T15 -> - | Q16: =Interventions!$T17 -> - | R16: =Interventions!$T18 -> - | S16: =Interventions!$T19 -> - | T16: =Interventions!$T20 -> - | U16: =Interventions!$T22 -> - | V16: =Interventions!$T23 -> - | W16: =Interventions!$T24 -> - | X16: =Interventions!$T25 -> - | Y16: =Interventions!$T26 -> - | Z16: =Interventions!$T28 -> - | AA16: =Interventions!$T29 -> - | AB16: =Interventions!$T30 -> - | AC16: =Interventions!$T32 -> - | AD16: =Interventions!$T33 -> - | AE16: =Interventions!$T34 -> - | AF16: =Interventions!$T36 -> - | AG16: =Interventions!$T37 -> - | AH16: =Interventions!$T38 -> - | AI16: =Interventions!$T39 -> - | AJ16: =Interventions!$T40 -> - | AK16: ='Soil Chemical'!$T3 -> - | AL16: ='Soil Chemical'!$T4 -> - | AM16: ='Soil Chemical'!$T$5 -> - | AN16: ='Soil Chemical'!$T7 -> - | AO16: ='Soil Chemical'!$T8 -> - | AP16: ='Soil Chemical'!$T9 -> - | AQ16: ='Soil Chemical'!$T11 -> - | AR16: ='Soil Chemical'!$T12 -> - | AS16: ='Soil Chemical'!$T13 -> - | AT16: ='Soil Chemical'!$T15 -> - | AU16: ='Soil Chemical'!$T16 -> - | AV16: ='Soil Chemical'!$T17 -> - | AW16: ='Soil Chemical'!$T19 -> - | AX16: ='Soil Chemical'!$T20 -> - | AY16: ='Soil Chemical'!$T21 -> - | AZ16: ='Soil physical'!$T3 -> - | BA16: ='Soil physical'!$T4 -> - | BB16: ='Soil physical'!$T6 -> - | BC16: ='Soil physical'!$T7 -> - | BD16: ='Soil physical'!$T9 -> - | BE16: ='Soil physical'!$T10 -> - | BF16: ='Soil physical'!$T12 -> - | BG16: ='Soil physical'!$T13 -> - | BH16: ='Soil physical'!$T15 -> - | BI16: ='Soil physical'!$T16 -> - | BJ16: =Vegetation!$T3 -> - | BK16: =Vegetation!$T4 -> - | BL16: =Vegetation!$T6 -> - | BM16: =Vegetation!$T7 -> - | BN16: =Vegetation!$T8 -> - | BO16: =Vegetation!$T9 -> -
A17: =Scenarios!A18 -> Scenario 16: | B17: =Scenarios!B18 -> - | C17: =Scenarios!C18 -> - | D17: ='Climate Assumptions'!$U4 -> - | E17: ='Climate Assumptions'!$U5 -> - | F17: ='Climate Assumptions'!$U9 -> - | G17: =Interventions!$U3 -> - | H17: =Interventions!$U4 -> - | I17: =Interventions!$U5 -> - | J17: =Interventions!$U7 -> - | K17: =Interventions!$U8 -> - | L17: =Interventions!$U9 -> - | M17: =Interventions!$U11 -> - | N17: =Interventions!$U12 -> - | O17: =Interventions!$U13 -> - | P17: =Interventions!$U15 -> - | Q17: =Interventions!$U17 -> - | R17: =Interventions!$U18 -> - | S17: =Interventions!$U19 -> - | T17: =Interventions!$U20 -> - | U17: =Interventions!$U22 -> - | V17: =Interventions!$U23 -> - | W17: =Interventions!$U24 -> - | X17: =Interventions!$U25 -> - | Y17: =Interventions!$U26 -> - | Z17: =Interventions!$U28 -> - | AA17: =Interventions!$U29 -> - | AB17: =Interventions!$U30 -> - | AC17: =Interventions!$U32 -> - | AD17: =Interventions!$U33 -> - | AE17: =Interventions!$U34 -> - | AF17: =Interventions!$U36 -> - | AG17: =Interventions!$U37 -> - | AH17: =Interventions!$U38 -> - | AI17: =Interventions!$U39 -> - | AJ17: =Interventions!$U40 -> - | AK17: ='Soil Chemical'!$U3 -> - | AL17: ='Soil Chemical'!$U4 -> - | AM17: ='Soil Chemical'!$U$5 -> - | AN17: ='Soil Chemical'!$U7 -> - | AO17: ='Soil Chemical'!$U8 -> - | AP17: ='Soil Chemical'!$U9 -> - | AQ17: ='Soil Chemical'!$U11 -> - | AR17: ='Soil Chemical'!$U12 -> - | AS17: ='Soil Chemical'!$U13 -> - | AT17: ='Soil Chemical'!$U15 -> - | AU17: ='Soil Chemical'!$U16 -> - | AV17: ='Soil Chemical'!$U17 -> - | AW17: ='Soil Chemical'!$U19 -> - | AX17: ='Soil Chemical'!$U20 -> - | AY17: ='Soil Chemical'!$U21 -> - | AZ17: ='Soil physical'!$U3 -> - | BA17: ='Soil physical'!$U4 -> - | BB17: ='Soil physical'!$U6 -> - | BC17: ='Soil physical'!$U7 -> - | BD17: ='Soil physical'!$U9 -> - | BE17: ='Soil physical'!$U10 -> - | BF17: ='Soil physical'!$U12 -> - | BG17: ='Soil physical'!$U13 -> - | BH17: ='Soil physical'!$U15 -> - | BI17: ='Soil physical'!$U16 -> - | BJ17: =Vegetation!$U3 -> - | BK17: =Vegetation!$U4 -> - | BL17: =Vegetation!$U6 -> - | BM17: =Vegetation!$U7 -> - | BN17: =Vegetation!$U8 -> - | BO17: =Vegetation!$U9 -> -
A18: =Scenarios!A19 -> Scenario 17: | B18: =Scenarios!B19 -> - | C18: =Scenarios!C19 -> - | D18: ='Climate Assumptions'!$V4 -> - | E18: ='Climate Assumptions'!$V5 -> - | F18: ='Climate Assumptions'!$V9 -> - | G18: =Interventions!$V3 -> - | H18: =Interventions!$V4 -> - | I18: =Interventions!$V5 -> - | J18: =Interventions!$V7 -> - | K18: =Interventions!$V8 -> - | L18: =Interventions!$V9 -> - | M18: =Interventions!$V11 -> - | N18: =Interventions!$V12 -> - | O18: =Interventions!$V13 -> - | P18: =Interventions!$V15 -> - | Q18: =Interventions!$V17 -> - | R18: =Interventions!$V18 -> - | S18: =Interventions!$V19 -> - | T18: =Interventions!$V20 -> - | U18: =Interventions!$V22 -> - | V18: =Interventions!$V23 -> - | W18: =Interventions!$V24 -> - | X18: =Interventions!$V25 -> - | Y18: =Interventions!$V26 -> - | Z18: =Interventions!$V28 -> - | AA18: =Interventions!$V29 -> - | AB18: =Interventions!$V30 -> - | AC18: =Interventions!$V32 -> - | AD18: =Interventions!$V33 -> - | AE18: =Interventions!$V34 -> - | AF18: =Interventions!$V36 -> - | AG18: =Interventions!$V37 -> - | AH18: =Interventions!$V38 -> - | AI18: =Interventions!$V39 -> - | AJ18: =Interventions!$V40 -> - | AK18: ='Soil Chemical'!$V3 -> - | AL18: ='Soil Chemical'!$V4 -> - | AM18: ='Soil Chemical'!$V$5 -> - | AN18: ='Soil Chemical'!$V7 -> - | AO18: ='Soil Chemical'!$V8 -> - | AP18: ='Soil Chemical'!$V9 -> - | AQ18: ='Soil Chemical'!$V11 -> - | AR18: ='Soil Chemical'!$V12 -> - | AS18: ='Soil Chemical'!$V13 -> - | AT18: ='Soil Chemical'!$V15 -> - | AU18: ='Soil Chemical'!$V16 -> - | AV18: ='Soil Chemical'!$V17 -> - | AW18: ='Soil Chemical'!$V19 -> - | AX18: ='Soil Chemical'!$V20 -> - | AY18: ='Soil Chemical'!$V21 -> - | AZ18: ='Soil physical'!$V3 -> - | BA18: ='Soil physical'!$V4 -> - | BB18: ='Soil physical'!$V6 -> - | BC18: ='Soil physical'!$V7 -> - | BD18: ='Soil physical'!$V9 -> - | BE18: ='Soil physical'!$V10 -> - | BF18: ='Soil physical'!$V12 -> - | BG18: ='Soil physical'!$V13 -> - | BH18: ='Soil physical'!$V15 -> - | BI18: ='Soil physical'!$V16 -> - | BJ18: =Vegetation!$V3 -> - | BK18: =Vegetation!$V4 -> - | BL18: =Vegetation!$V6 -> - | BM18: =Vegetation!$V7 -> - | BN18: =Vegetation!$V8 -> - | BO18: =Vegetation!$V9 -> -
A19: =Scenarios!A20 -> Scenario 18: | B19: =Scenarios!B20 -> - | C19: =Scenarios!C20 -> - | D19: ='Climate Assumptions'!$W4 -> - | E19: ='Climate Assumptions'!$W5 -> - | F19: ='Climate Assumptions'!$W9 -> - | G19: =Interventions!$W3 -> - | H19: =Interventions!$W4 -> - | I19: =Interventions!$W5 -> - | J19: =Interventions!$W7 -> - | K19: =Interventions!$W8 -> - | L19: =Interventions!$W9 -> - | M19: =Interventions!$W11 -> - | N19: =Interventions!$W12 -> - | O19: =Interventions!$W13 -> - | P19: =Interventions!$W15 -> - | Q19: =Interventions!$W17 -> - | R19: =Interventions!$W18 -> - | S19: =Interventions!$W19 -> - | T19: =Interventions!$W20 -> - | U19: =Interventions!$W22 -> - | V19: =Interventions!$W23 -> - | W19: =Interventions!$W24 -> - | X19: =Interventions!$W25 -> - | Y19: =Interventions!$W26 -> - | Z19: =Interventions!$W28 -> - | AA19: =Interventions!$W29 -> - | AB19: =Interventions!$W30 -> - | AC19: =Interventions!$W32 -> - | AD19: =Interventions!$W33 -> - | AE19: =Interventions!$W34 -> - | AF19: =Interventions!$W36 -> - | AG19: =Interventions!$W37 -> - | AH19: =Interventions!$W38 -> - | AI19: =Interventions!$W39 -> - | AJ19: =Interventions!$W40 -> - | AK19: ='Soil Chemical'!$W3 -> - | AL19: ='Soil Chemical'!$W4 -> - | AM19: ='Soil Chemical'!$W$5 -> - | AN19: ='Soil Chemical'!$W7 -> - | AO19: ='Soil Chemical'!$W8 -> - | AP19: ='Soil Chemical'!$W9 -> - | AQ19: ='Soil Chemical'!$W11 -> - | AR19: ='Soil Chemical'!$W12 -> - | AS19: ='Soil Chemical'!$W13 -> - | AT19: ='Soil Chemical'!$W15 -> - | AU19: ='Soil Chemical'!$W16 -> - | AV19: ='Soil Chemical'!$W17 -> - | AW19: ='Soil Chemical'!$W19 -> - | AX19: ='Soil Chemical'!$W20 -> - | AY19: ='Soil Chemical'!$W21 -> - | AZ19: ='Soil physical'!$W3 -> - | BA19: ='Soil physical'!$W4 -> - | BB19: ='Soil physical'!$W6 -> - | BC19: ='Soil physical'!$W7 -> - | BD19: ='Soil physical'!$W9 -> - | BE19: ='Soil physical'!$W10 -> - | BF19: ='Soil physical'!$W12 -> - | BG19: ='Soil physical'!$W13 -> - | BH19: ='Soil physical'!$W15 -> - | BI19: ='Soil physical'!$W16 -> - | BJ19: =Vegetation!$W3 -> - | BK19: =Vegetation!$W4 -> - | BL19: =Vegetation!$W6 -> - | BM19: =Vegetation!$W7 -> - | BN19: =Vegetation!$W8 -> - | BO19: =Vegetation!$W9 -> -
A20: =Scenarios!A21 -> Scenario 19: | B20: =Scenarios!B21 -> - | C20: =Scenarios!C21 -> - | D20: ='Climate Assumptions'!$X4 -> - | E20: ='Climate Assumptions'!$X5 -> - | F20: ='Climate Assumptions'!$X9 -> - | G20: =Interventions!$X3 -> - | H20: =Interventions!$X4 -> - | I20: =Interventions!$X5 -> - | J20: =Interventions!$X7 -> - | K20: =Interventions!$X8 -> - | L20: =Interventions!$X9 -> - | M20: =Interventions!$X11 -> - | N20: =Interventions!$X12 -> - | O20: =Interventions!$X13 -> - | P20: =Interventions!$X15 -> - | Q20: =Interventions!$X17 -> - | R20: =Interventions!$X18 -> - | S20: =Interventions!$X19 -> - | T20: =Interventions!$X20 -> - | U20: =Interventions!$X22 -> - | V20: =Interventions!$X23 -> - | W20: =Interventions!$X24 -> - | X20: =Interventions!$X25 -> - | Y20: =Interventions!$X26 -> - | Z20: =Interventions!$X28 -> - | AA20: =Interventions!$X29 -> - | AB20: =Interventions!$X30 -> - | AC20: =Interventions!$X32 -> - | AD20: =Interventions!$X33 -> - | AE20: =Interventions!$X34 -> - | AF20: =Interventions!$X36 -> - | AG20: =Interventions!$X37 -> - | AH20: =Interventions!$X38 -> - | AI20: =Interventions!$X39 -> - | AJ20: =Interventions!$X40 -> - | AK20: ='Soil Chemical'!$X3 -> - | AL20: ='Soil Chemical'!$X4 -> - | AM20: ='Soil Chemical'!$X$5 -> - | AN20: ='Soil Chemical'!$X7 -> - | AO20: ='Soil Chemical'!$X8 -> - | AP20: ='Soil Chemical'!$X9 -> - | AQ20: ='Soil Chemical'!$X11 -> - | AR20: ='Soil Chemical'!$X12 -> - | AS20: ='Soil Chemical'!$X13 -> - | AT20: ='Soil Chemical'!$X15 -> - | AU20: ='Soil Chemical'!$X16 -> - | AV20: ='Soil Chemical'!$X17 -> - | AW20: ='Soil Chemical'!$X19 -> - | AX20: ='Soil Chemical'!$X20 -> - | AY20: ='Soil Chemical'!$X21 -> - | AZ20: ='Soil physical'!$X3 -> - | BA20: ='Soil physical'!$X4 -> - | BB20: ='Soil physical'!$X6 -> - | BC20: ='Soil physical'!$X7 -> - | BD20: ='Soil physical'!$X9 -> - | BE20: ='Soil physical'!$X10 -> - | BF20: ='Soil physical'!$X12 -> - | BG20: ='Soil physical'!$X13 -> - | BH20: ='Soil physical'!$X15 -> - | BI20: ='Soil physical'!$X16 -> - | BJ20: =Vegetation!$X3 -> - | BK20: =Vegetation!$X4 -> - | BL20: =Vegetation!$X6 -> - | BM20: =Vegetation!$X7 -> - | BN20: =Vegetation!$X8 -> - | BO20: =Vegetation!$X9 -> -
A21: =Scenarios!A22 -> Scenario 20: | B21: =Scenarios!B22 -> - | C21: =Scenarios!C22 -> - | D21: ='Climate Assumptions'!$Y4 -> - | E21: ='Climate Assumptions'!$Y5 -> - | F21: ='Climate Assumptions'!$Y9 -> - | G21: =Interventions!$Y3 -> - | H21: =Interventions!$Y4 -> - | I21: =Interventions!$Y5 -> - | J21: =Interventions!$Y7 -> - | K21: =Interventions!$Y8 -> - | L21: =Interventions!$Y9 -> - | M21: =Interventions!$Y11 -> - | N21: =Interventions!$Y12 -> - | O21: =Interventions!$Y13 -> - | P21: =Interventions!$Y15 -> - | Q21: =Interventions!$Y17 -> - | R21: =Interventions!$Y18 -> - | S21: =Interventions!$Y19 -> - | T21: =Interventions!$Y20 -> - | U21: =Interventions!$Y22 -> - | V21: =Interventions!$Y23 -> - | W21: =Interventions!$Y24 -> - | X21: =Interventions!$Y25 -> - | Y21: =Interventions!$Y26 -> - | Z21: =Interventions!$Y28 -> - | AA21: =Interventions!$Y29 -> - | AB21: =Interventions!$Y30 -> - | AC21: =Interventions!$Y32 -> - | AD21: =Interventions!$Y33 -> - | AE21: =Interventions!$Y34 -> - | AF21: =Interventions!$Y36 -> - | AG21: =Interventions!$Y37 -> - | AH21: =Interventions!$Y38 -> - | AI21: =Interventions!$Y39 -> - | AJ21: =Interventions!$Y40 -> - | AK21: ='Soil Chemical'!$Y3 -> - | AL21: ='Soil Chemical'!$Y4 -> - | AM21: ='Soil Chemical'!$Y$5 -> - | AN21: ='Soil Chemical'!$Y7 -> - | AO21: ='Soil Chemical'!$Y8 -> - | AP21: ='Soil Chemical'!$Y9 -> - | AQ21: ='Soil Chemical'!$Y11 -> - | AR21: ='Soil Chemical'!$Y12 -> - | AS21: ='Soil Chemical'!$Y13 -> - | AT21: ='Soil Chemical'!$Y15 -> - | AU21: ='Soil Chemical'!$Y16 -> - | AV21: ='Soil Chemical'!$Y17 -> - | AW21: ='Soil Chemical'!$Y19 -> - | AX21: ='Soil Chemical'!$Y20 -> - | AY21: ='Soil Chemical'!$Y21 -> - | AZ21: ='Soil physical'!$Y3 -> - | BA21: ='Soil physical'!$Y4 -> - | BB21: ='Soil physical'!$Y6 -> - | BC21: ='Soil physical'!$Y7 -> - | BD21: ='Soil physical'!$Y9 -> - | BE21: ='Soil physical'!$Y10 -> - | BF21: ='Soil physical'!$Y12 -> - | BG21: ='Soil physical'!$Y13 -> - | BH21: ='Soil physical'!$Y15 -> - | BI21: ='Soil physical'!$Y16 -> - | BJ21: =Vegetation!$Y3 -> - | BK21: =Vegetation!$Y4 -> - | BL21: =Vegetation!$Y6 -> - | BM21: =Vegetation!$Y7 -> - | BN21: =Vegetation!$Y8 -> - | BO21: =Vegetation!$Y9 -> -

Sheet Results
A1: Measurement | B1: Scenario 01 | C1: Scenario 02 | D1: Scenario 03 | E1: Scenario 04 | F1: Scenario 05 | G1: Scenario 06
A2: Calcium amount relative to requirement layer 3
A3: Low | B3: 0.487 | C3: 0.272 | D3: 0.046 | E3: 0.046 | F3: 0.039 | G3: 0.039
A4: Medium | B4: 0.482 | C4: 0.422 | D4: 0.879 | E4: 0.879 | F4: 0.897 | G4: 0.897
A5: High | B5: 0.031 | C5: 0.306 | D5: 0.075 | E5: 0.075 | F5: 0.064 | G5: 0.064
A6: Ca effectiveness layer 3
A7: Low | B7: 0.663 | C7: 0.367 | D7: 0.019 | E7: 0.019 | F7: 0.006 | G7: 0.006
A8: Medium | B8: 0.336 | C8: 0.234 | D8: 0.955 | E8: 0.955 | F8: 0.985 | G8: 0.985
A9: High | B9: 0.001 | C9: 0.399 | D9: 0.026 | E9: 0.026 | F9: 0.009 | G9: 0.009
A10: Zeta potential layer 3
A11: mean | B11: -58.99 | C11: -38.16 | D11: -40.64 | E11: -40.64 | F11: -54.83 | G11: -54.83
A12: error | B12: 23.34 | C12: 25 | D12: 25 | E12: 25 | F12: 25.22 | G12: 25.22
A13: High | B13: 0.591 | C13: 0.234 | D13: 0.261 | E13: 0.261 | F13: 0.522 | G13: 0.522
A14: Medium | B14: 0.342 | C14: 0.365 | D14: 0.399 | E14: 0.399 | F14: 0.34 | G14: 0.34
A15: Low | B15: 0.067 | C15: 0.401 | D15: 0.34 | E15: 0.34 | F15: 0.138 | G15: 0.138
A16: Spoil dispersivity layer 3 (NTU)
A17: mean | B17: 3505.32 | C17: 2254.71 | D17: 2397.82 | E17: 2397.82 | F17: 3256.68 | G17: 3256.68
A18: error | B18: 3091.23 | C18: 2812.89 | D18: 2858.28 | E18: 2858.28 | F18: 3081.2 | G18: 3081.2
A19: Low | B19: 0.176 | C19: 0.383 | D19: 0.348 | E19: 0.348 | F19: 0.219 | G19: 0.219
A20: Mid | B20: 0.203 | C20: 0.203 | D20: 0.213 | E20: 0.213 | F20: 0.201 | G20: 0.201
A21: High | B21: 0.141 | C21: 0.136 | D21: 0.141 | E21: 0.141 | F21: 0.139 | G21: 0.139
A22: VeryHigh | B22: 0.48 | C22: 0.278 | D22: 0.298 | E22: 0.298 | F22: 0.44 | G22: 0.44
A23: Ca_availability_1
A24: Low | B24: 0.918 | C24: 0.867 | D24: 0.351 | E24: 0.351 | F24: 0.541 | G24: 0.541
A25: Medium | B25: 0.065 | C25: 0.102 | D25: 0.41 | E25: 0.41 | F25: 0.358 | G25: 0.358
A26: High | B26: 0.017 | C26: 0.031 | D26: 0.239 | E26: 0.239 | F26: 0.101 | G26: 0.101
A27: Calcium amount relative to requirement layer 1
A28: Low | B28: 1 | C28: 1 | D28: 0.155 | E28: 0.155 | F28: 0.273 | G28: 0.273
A29: Medium | B29: - | C29: - | D29: 0.29 | E29: 0.29 | F29: 0.364 | G29: 0.364
A30: High | B30: - | C30: - | D30: 0.555 | E30: 0.555 | F30: 0.363 | G30: 0.363
A31: Ca effectiveness layer 1
A32: Low | B32: 0.941 | C32: 0.91 | D32: 0.003 | E32: 0.003 | F32: 0.01 | G32: 0.01
A33: Medium | B33: 0.059 | C33: 0.09 | D33: 0.002 | E33: 0.002 | F33: 0.986 | G33: 0.986
A34: High | B34: - | C34: - | D34: 0.995 | E34: 0.995 | F34: 0.003 | G34: 0.003
A35: Zeta potential layer 1
A36: mean | B36: -53.25 | C36: -52.71 | D36: -31 | E36: -31 | F36: -48 | G36: -48
A37: error | B37: 23.55 | C37: 26.95 | D37: 20.63 | E37: 20.63 | F37: 21.35 | G37: 21.35
A38: High | B38: 0.45 | C38: 0.512 | D38: 0.1 | E38: 0.1 | F38: 0.3 | G38: 0.3
A39: Medium | B39: 0.45 | C39: 0.281 | D39: 0.4 | E39: 0.4 | F39: 0.6 | G39: 0.6
A40: Low | B40: 0.1 | C40: 0.208 | D40: 0.5 | E40: 0.5 | F40: 0.1 | G40: 0.1
A41: Spoil dispersivity layer 1 (NTU)
A42: mean | B42: 3145.05 | C42: 3138.83 | D42: 1820.37 | E42: 1820.37 | F42: 2807.61 | G42: 2807.61
A43: error | B43: 3025.8 | C43: 3092.51 | D43: 2558.16 | E43: 2558.16 | F43: 2902.84 | G43: 2902.84
A44: Low | B44: 0.203 | C44: 0.258 | D44: 0.446 | E44: 0.446 | F44: 0.214 | G44: 0.214
A45: Mid | B45: 0.232 | C45: 0.184 | D45: 0.21 | E45: 0.21 | F45: 0.273 | G45: 0.273
A46: High | B46: 0.15 | C46: 0.133 | D46: 0.138 | E46: 0.138 | F46: 0.164 | G46: 0.164
A47: VeryHigh | B47: 0.414 | C47: 0.426 | D47: 0.206 | E47: 0.206 | F47: 0.349 | G47: 0.349
A48: Nutrition
A49: Low | B49: 0.913 | C49: 0.291 | D49: 0.055 | E49: 0.014 | F49: 0.014 | G49: 0.014
A50: Moderate | B50: 0.075 | C50: 0.519 | D50: 0.121 | E50: 0.045 | F50: 0.045 | G50: 0.045
A51: High | B51: 0.012 | C51: 0.19 | D51: 0.824 | E51: 0.94 | F51: 0.941 | G51: 0.94
A52: Total porosity layer 1 (%)
A53: mean | B53: 28.53 | C53: 28.55 | D53: 28.73 | E53: 28.78 | F53: 28.73 | G53: 28.78
A54: error | B54: 16.39 | C54: 16.41 | D54: 16.46 | E54: 16.51 | F54: 16.46 | G54: 16.51
A55: Low | B55: 0.402 | C55: 0.402 | D55: 0.397 | E55: 0.396 | F55: 0.397 | G55: 0.396
A56: Medium | B56: 0.568 | C56: 0.568 | D56: 0.573 | E56: 0.573 | F56: 0.573 | G56: 0.573
A57: High | B57: 0.029 | C57: 0.029 | D57: 0.031 | E57: 0.031 | F57: 0.031 | G57: 0.031
A58: Water holding capacity layer 1 (mm)
A59: mean | B59: 82.27 | C59: 114.24 | D59: 274.78 | E59: 84.33 | F59: 274.78 | G59: 84.33
A60: error | B60: 65.41 | C60: 115.62 | D60: 123.24 | E60: 67.7 | F60: 123.23 | G60: 67.7
A61: Low | B61: 0.715 | C61: 0.665 | D61: 0.024 | E61: 0.702 | F61: 0.024 | G61: 0.702
A62: Mid | B62: 0.266 | C62: 0.182 | D62: 0.34 | E62: 0.276 | F62: 0.34 | G62: 0.276
A63: High | B63: 0.019 | C63: 0.154 | D63: 0.636 | E63: 0.022 | F63: 0.636 | G63: 0.022
A64: Water status layer 1 (mm)
A65: mean | B65: 46.23 | C65: 47.29 | D65: 62.2 | E65: 53.32 | F65: 62.2 | G65: 53.32
A66: error | B66: 25.87 | C66: 26.21 | D66: 24.86 | E66: 25.86 | F66: 24.86 | G66: 25.86
A67: Low | B67: 0.318 | C67: 0.307 | D67: 0.119 | E67: 0.211 | F67: 0.119 | G67: 0.211
A68: Mid | B68: 0.467 | C68: 0.456 | D68: 0.386 | E68: 0.467 | F68: 0.386 | G68: 0.467
A69: High | B69: 0.215 | C69: 0.237 | D69: 0.496 | E69: 0.322 | F69: 0.496 | G69: 0.322
A70: Total porosity layer 2
A71: mean | B71: 0.22 | C71: 0.22 | D71: 0.23 | E71: 0.23 | F71: 0.23 | G71: 0.23
A72: error | B72: 0.16 | C72: 0.16 | D72: 0.16 | E72: 0.16 | F72: 0.16 | G72: 0.16
A73: Low | B73: 0.256 | C73: 0.26 | D73: 0.229 | E73: 0.224 | F73: 0.229 | G73: 0.224
A74: Mid | B74: 0.709 | C74: 0.706 | D74: 0.729 | E74: 0.733 | F74: 0.729 | G74: 0.733
A75: High | B75: 0.035 | C75: 0.034 | D75: 0.042 | E75: 0.043 | F75: 0.042 | G75: 0.043
A76: Water holding capacity layer 2 (mm)
A77: mean | B77: 101.13 | C77: 151.35 | D77: 116.21 | E77: 119.37 | F77: 116.23 | G77: 119.37
A78: error | B78: 92.75 | C78: 123.4 | D78: 103.99 | E78: 106.04 | F78: 103.99 | G78: 106.04
A79: Low | B79: 0.647 | C79: 0.422 | D79: 0.57 | E79: 0.555 | F79: 0.57 | G79: 0.555
A80: Mid | B80: 0.274 | C80: 0.36 | D80: 0.314 | E80: 0.321 | F80: 0.314 | G80: 0.321
A81: High | B81: 0.079 | C81: 0.218 | D81: 0.116 | E81: 0.124 | F81: 0.116 | G81: 0.124
A82: Water status layer 2 (mm)
A83: mean | B83: 35.83 | C83: 41.25 | D83: 52.56 | E83: 49.82 | F83: 52.58 | G83: 49.82
A84: error | B84: 26.18 | C84: 27.89 | D84: 28.17 | E84: 28.62 | F84: 28.17 | G84: 28.62
A85: Low | B85: 0.565 | C85: 0.47 | D85: 0.277 | E85: 0.326 | F85: 0.277 | G85: 0.326
A86: Mid | B86: 0.287 | C86: 0.314 | D86: 0.359 | E86: 0.343 | F86: 0.359 | G86: 0.343
A87: High | B87: 0.148 | C87: 0.216 | D87: 0.364 | E87: 0.331 | F87: 0.364 | G87: 0.331
A88: Plant available water content (mm)
A89: Low | B89: 0.564 | C89: 0.593 | D89: 0.04 | E89: 0.135 | F89: 0.04 | G89: 0.135
A90: Moderate | B90: 0.306 | C90: 0.256 | D90: 0.217 | E90: 0.35 | F90: 0.216 | G90: 0.35
A91: High | B91: 0.13 | C91: 0.151 | D91: 0.744 | E91: 0.514 | F91: 0.744 | G91: 0.514
A92: Vegetation root depth
A93: Shallow | B93: 0.95 | C93: 0.7 | D93: 0.65 | E93: 0.65 | F93: 0.65 | G93: 0.65
A94: Medium | B94: 0.04 | C94: 0.24 | D94: 0.27 | E94: 0.27 | F94: 0.27 | G94: 0.27
A95: Deep | B95: 0.01 | C95: 0.06 | D95: 0.08 | E95: 0.08 | F95: 0.08 | G95: 0.08
A96: LAYER 1 VULNERABILITY
A97: Low | B97: 0.115 | C97: 0.148 | D97: 0.33 | E97: 0.209 | F97: 0.245 | G97: 0.159
A98: Moderate | B98: 0.19 | C98: 0.202 | D98: 0.265 | E98: 0.252 | F98: 0.271 | G98: 0.228
A99: High | B99: 0.245 | C99: 0.229 | D99: 0.237 | E99: 0.264 | F99: 0.275 | G99: 0.261
A100: VeryHigh | B100: 0.45 | C100: 0.421 | D100: 0.168 | E100: 0.275 | F100: 0.209 | G100: 0.351
A101: Calcium amount relative to requirement layer 2
A102: Medium | B102: 0.048 | C102: 1 | D102: 0.757 | E102: 0.757 | F102: 0.789 | G102: 0.789
A103: Ca effectiveness layer 2
A104: Low | B104: 0.937 | C104: 0.002 | D104: 0.069 | E104: 0.069 | F104: 0.024 | G104: 0.024
A105: Medium | B105: 0.063 | C105: 0.996 | D105: 0.924 | E105: 0.924 | F105: 0.973 | G105: 0.973
A106: High | B106: - | C106: 0.002 | D106: 0.006 | E106: 0.006 | F106: 0.002 | G106: 0.002
A107: Zeta potential layer 2
A108: mean | B108: -53.25 | C108: -62 | D108: -39.5 | E108: -39.5 | F108: -48 | G108: -48
A109: error | B109: 23.55 | C109: 24.41 | D109: 22.65 | E109: 22.65 | F109: 21.35 | G109: 21.35
A110: High | B110: 0.45 | C110: 0.7 | D110: 0.2 | E110: 0.2 | F110: 0.3 | G110: 0.3
A111: Medium | B111: 0.45 | C111: 0.2 | D111: 0.5 | E111: 0.5 | F111: 0.6 | G111: 0.6
A112: Low | B112: 0.1 | C112: 0.1 | D112: 0.3 | E112: 0.3 | F112: 0.1 | G112: 0.1
A113: Spoil dispersivity layer 2 (NTU)
A114: mean | B114: 3145.05 | C114: 3707.46 | D114: 2313.99 | E114: 2313.99 | F114: 2807.61 | G114: 2807.61
A115: error | B115: 3025.8 | C115: 3140.76 | D115: 2780.11 | E115: 2780.11 | F115: 2902.84 | G115: 2902.84
A116: Low | B116: 0.203 | C116: 0.186 | D116: 0.33 | E116: 0.33 | F116: 0.214 | G116: 0.214
A117: Mid | B117: 0.232 | C117: 0.164 | D117: 0.242 | E117: 0.242 | F117: 0.273 | G117: 0.273
A118: High | B118: 0.15 | C118: 0.127 | D118: 0.151 | E118: 0.151 | F118: 0.164 | G118: 0.164
A119: VeryHigh | B119: 0.414 | C119: 0.523 | D119: 0.278 | E119: 0.278 | F119: 0.349 | G119: 0.349
A120: Texture layer 2
A121: mean | B121: 0 | C121: 0 | D121: 0 | E121: 0 | F121: 0 | G121: 0
A122: error | B122: 0 | C122: 0 | D122: 0 | E122: 0 | F122: 0 | G122: 0
A123: Coarse | B123: 0.13 | C123: 0.5 | D123: 0.13 | E123: 0.13 | F123: 0.13 | G123: 0.13
A124: Medium | B124: 0.2 | C124: 0.12 | D124: 0.2 | E124: 0.2 | F124: 0.2 | G124: 0.2
A125: MediumFine | B125: 0.24 | C125: 0.16 | D125: 0.24 | E125: 0.24 | F125: 0.24 | G125: 0.24
A126: Fine | B126: 0.18 | C126: 0.12 | D126: 0.18 | E126: 0.18 | F126: 0.18 | G126: 0.18
A127: VeryFine | B127: 0.25 | C127: 0.1 | D127: 0.25 | E127: 0.25 | F127: 0.25 | G127: 0.25
A128: Pore size frequency layer 2 (mm)
A129: mean | B129: 0.23 | C129: 0.33 | D129: 0.23 | E129: 0.23 | F129: 0.23 | G129: 0.23
A130: error | B130: 0.3 | C130: 0.33 | D130: 0.3 | E130: 0.3 | F130: 0.3 | G130: 0.3
A131: Residual | B131: 0.254 | C131: 0.176 | D131: 0.254 | E131: 0.254 | F131: 0.254 | G131: 0.254
A132: Low | B132: 0.282 | C132: 0.229 | D132: 0.282 | E132: 0.282 | F132: 0.282 | G132: 0.282
A133: Mid | B133: 0.267 | C133: 0.267 | D133: 0.267 | E133: 0.267 | F133: 0.267 | G133: 0.267
A134: High | B134: 0.198 | C134: 0.328 | D134: 0.198 | E134: 0.198 | F134: 0.198 | G134: 0.198
A135: Infiltration rate layer 2 (mm/hr)
A136: mean | B136: 12.48 | C136: 13.24 | D136: 15.03 | E136: 12.82 | F136: 15.41 | G136: 13.18
A137: error | B137: 8.41 | C137: 8.57 | D137: 8.51 | E137: 8.47 | F137: 8.48 | G137: 8.5
A138: Low | B138: 0.237 | C138: 0.216 | D138: 0.148 | E138: 0.225 | F138: 0.138 | G138: 0.211
A139: Mid | B139: 0.423 | C139: 0.395 | D139: 0.36 | E139: 0.415 | F139: 0.347 | G139: 0.409
A140: High | B140: 0.34 | C140: 0.389 | D140: 0.492 | E140: 0.36 | F140: 0.515 | G140: 0.381
A141: LAYER 2 VULNERABILITY
A142: Low | B142: 0.127 | C142: 0.159 | D142: 0.28 | E142: 0.166 | F142: 0.238 | G142: 0.146
A143: Moderate | B143: 0.211 | C143: 0.205 | D143: 0.277 | E143: 0.255 | F143: 0.278 | G143: 0.236
A144: High | B144: 0.255 | C144: 0.231 | D144: 0.263 | E144: 0.278 | F144: 0.277 | G144: 0.27
A145: VeryHigh | B145: 0.407 | C145: 0.405 | D145: 0.181 | E145: 0.302 | F145: 0.206 | G145: 0.349
A146: LAYER 3 VULNERABILITY
A147: Low | B147: 0.075 | C147: 0.22 | D147: 0.113 | E147: 0.097 | F147: 0.098 | G147: 0.082
A148: Moderate | B148: 0.126 | C148: 0.22 | D148: 0.197 | E148: 0.166 | F148: 0.171 | G148: 0.14
A149: High | B149: 0.172 | C149: 0.232 | D149: 0.241 | E149: 0.216 | F149: 0.216 | G149: 0.187
A150: VeryHigh | B150: 0.628 | C150: 0.328 | D150: 0.449 | E150: 0.522 | F150: 0.516 | G150: 0.59
A151: PROFILE VULNERABILITY
A152: mean | B152: 61.74 | C152: 58.14 | D152: 45.36 | E152: 53.55 | F152: 49.32 | G152: 57.46
A153: error | B153: 29.89 | C153: 30.96 | D153: 30.85 | E153: 30.94 | F153: 30.88 | G153: 30.62
A154: Low | B154: 0.175 | C154: 0.22 | D154: 0.367 | E154: 0.258 | F154: 0.307 | G154: 0.216
A155: Medium | B155: 0.163 | C155: 0.168 | D155: 0.198 | E155: 0.194 | F155: 0.202 | G155: 0.181
A156: High | B156: 0.179 | C156: 0.179 | D156: 0.191 | E156: 0.197 | F156: 0.202 | G156: 0.191
A157: VeryHigh | B157: 0.483 | C157: 0.433 | D157: 0.245 | E157: 0.351 | F157: 0.289 | G157: 0.412
A158: Ponding
A159: Yes | B159: 0.584 | C159: 0.584 | D159: 0.584 | E159: 0.584 | F159: 0.584 | G159: 0.584
A160: TUNNEL EXPOSURE
A161: None | B161: 0.172 | C161: 0.172 | D161: 0.172 | E161: 0.172 | F161: 0.172 | G161: 0.172
A162: Low | B162: 0.131 | C162: 0.131 | D162: 0.131 | E162: 0.131 | F162: 0.131 | G162: 0.131
A163: Medium | B163: 0.097 | C163: 0.097 | D163: 0.097 | E163: 0.097 | F163: 0.097 | G163: 0.097
A164: High | B164: 0.601 | C164: 0.601 | D164: 0.601 | E164: 0.601 | F164: 0.601 | G164: 0.601
A165: TUNNELLING RISK
A166: mean | B166: 61.56 | C166: 59.87 | D166: 53.85 | E166: 57.64 | F166: 55.65 | G166: 59.5
A167: error | B167: 29.35 | C167: 29.69 | D167: 30.08 | E167: 29.93 | F167: 30.05 | G167: 29.71
A168: Low | B168: 0.163 | C168: 0.178 | D168: 0.234 | E168: 0.198 | F168: 0.216 | G168: 0.181
A169: Medium | B169: 0.179 | C169: 0.186 | D169: 0.214 | E169: 0.198 | F169: 0.207 | G169: 0.189
A170: High | B170: 0.192 | C170: 0.197 | D170: 0.217 | E170: 0.206 | F170: 0.212 | G170: 0.199
A171: VeryHigh | B171: 0.467 | C171: 0.438 | D171: 0.335 | E171: 0.399 | F171: 0.365 | G171: 0.431
A172: Runon risk
A173: NoRunon | B173: 0.9 | C173: 0.45 | D173: 0.9 | E173: 0.9 | F173: 0.9 | G173: 0.9
A174: Texture layer 1
A175: mean | B175: 0 | C175: 0 | D175: 0 | E175: 0 | F175: 0 | G175: 0
A176: error | B176: 0 | C176: 0 | D176: 0 | E176: 0 | F176: 0 | G176: 0
A177: Coarse | B177: 0.13 | C177: 0.5 | D177: 0.13 | E177: 0.13 | F177: 0.13 | G177: 0.13
A178: Medium | B178: 0.2 | C178: 0.12 | D178: 0.2 | E178: 0.2 | F178: 0.2 | G178: 0.2
A179: MediumFine | B179: 0.24 | C179: 0.16 | D179: 0.24 | E179: 0.24 | F179: 0.24 | G179: 0.24
A180: Fine | B180: 0.18 | C180: 0.12 | D180: 0.18 | E180: 0.18 | F180: 0.18 | G180: 0.18
A181: VeryFine | B181: 0.25 | C181: 0.1 | D181: 0.25 | E181: 0.25 | F181: 0.25 | G181: 0.25
A182: Pore size frequency layer 1 (mm)
A183: mean | B183: 0.23 | C183: 0.33 | D183: 0.23 | E183: 0.23 | F183: 0.23 | G183: 0.23
A184: error | B184: 0.3 | C184: 0.33 | D184: 0.3 | E184: 0.3 | F184: 0.3 | G184: 0.3
A185: Residual | B185: 0.254 | C185: 0.176 | D185: 0.254 | E185: 0.254 | F185: 0.254 | G185: 0.254
A186: Low | B186: 0.282 | C186: 0.229 | D186: 0.282 | E186: 0.282 | F186: 0.282 | G186: 0.282
A187: Mid | B187: 0.267 | C187: 0.267 | D187: 0.267 | E187: 0.267 | F187: 0.267 | G187: 0.267
A188: High | B188: 0.198 | C188: 0.328 | D188: 0.198 | E188: 0.198 | F188: 0.198 | G188: 0.198
A189: Infiltration rate layer 1 (mm/hr)
A190: mean | B190: 13.52 | C190: 14.08 | D190: 13.42 | E190: 14.1 | F190: 12.56 | G190: 13.23
A191: error | B191: 8.62 | C191: 8.65 | D191: 8.59 | E191: 8.62 | F191: 8.54 | G191: 8.6
A192: Low | B192: 0.21 | C192: 0.191 | D192: 0.211 | E192: 0.188 | F192: 0.247 | G192: 0.221
A193: Mid | B193: 0.382 | C193: 0.367 | D193: 0.389 | E193: 0.371 | F193: 0.401 | G193: 0.389
A194: High | B194: 0.408 | C194: 0.441 | D194: 0.4 | E194: 0.441 | F194: 0.352 | G194: 0.39
A195: Runoff risk
A196: VeryLow | B196: 0.149 | C196: 0.145 | D196: 0.149 | E196: 0.149 | F196: 0.149 | G196: 0.149
A197: Low | B197: 0.348 | C197: 0.339 | D197: 0.348 | E197: 0.348 | F197: 0.348 | G197: 0.348
A198: Moderate | B198: 0.348 | C198: 0.339 | D198: 0.348 | E198: 0.348 | F198: 0.348 | G198: 0.348
A199: High | B199: 0.155 | C199: 0.177 | D199: 0.155 | E199: 0.155 | F199: 0.155 | G199: 0.155
A200: Runoff risk with surface management
... 16 more rows

Sheet Output
A1: Scenario | B1: =IF(Results!B1>0,Results!B1,"") -> Scenario 01 | C1: =IF(Results!C1>0,Results!C1,"") -> Scenario 02 | D1: =IF(Results!D1>0,Results!D1,"") -> Scenario 03 | E1: =IF(Results!E1>0,Results!E1,"") -> Scenario 04 | F1: =IF(Results!F1>0,Results!F1,"") -> Scenario 05 | G1: =IF(Results!G1>0,Results!G1,"") -> Scenario 06
A2: PROFILE VULNERABILITY
A3: Low | B3: =OFFSET(Results!$A$1,Lists!$B$133+MATCH($A3,INDIRECT(Lists!$D$133),0)-1,COLUMN()-1) -> 17.50% | C3: =OFFSET(Results!$A$1,Lists!$B$133+MATCH($A3,INDIRECT(Lists!$D$133),0)-1,COLUMN()-1) -> 22.00% | D3: =OFFSET(Results!$A$1,Lists!$B$133+MATCH($A3,INDIRECT(Lists!$D$133),0)-1,COLUMN()-1) -> 36.70% | E3: =OFFSET(Results!$A$1,Lists!$B$133+MATCH($A3,INDIRECT(Lists!$D$133),0)-1,COLUMN()-1) -> 25.80% | F3: =OFFSET(Results!$A$1,Lists!$B$133+MATCH($A3,INDIRECT(Lists!$D$133),0)-1,COLUMN()-1) -> 30.70% | G3: =OFFSET(Results!$A$1,Lists!$B$133+MATCH($A3,INDIRECT(Lists!$D$133),0)-1,COLUMN()-1) -> 21.60%
A4: Medium | B4: =OFFSET(Results!$A$1,Lists!$B$133+MATCH($A4,INDIRECT(Lists!$D$133),0)-1,COLUMN()-1) -> 16.30% | C4: =OFFSET(Results!$A$1,Lists!$B$133+MATCH($A4,INDIRECT(Lists!$D$133),0)-1,COLUMN()-1) -> 16.80% | D4: =OFFSET(Results!$A$1,Lists!$B$133+MATCH($A4,INDIRECT(Lists!$D$133),0)-1,COLUMN()-1) -> 19.80% | E4: =OFFSET(Results!$A$1,Lists!$B$133+MATCH($A4,INDIRECT(Lists!$D$133),0)-1,COLUMN()-1) -> 19.40% | F4: =OFFSET(Results!$A$1,Lists!$B$133+MATCH($A4,INDIRECT(Lists!$D$133),0)-1,COLUMN()-1) -> 20.20% | G4: =OFFSET(Results!$A$1,Lists!$B$133+MATCH($A4,INDIRECT(Lists!$D$133),0)-1,COLUMN()-1) -> 18.10%
A5: High | B5: =OFFSET(Results!$A$1,Lists!$B$133+MATCH($A5,INDIRECT(Lists!$D$133),0)-1,COLUMN()-1) -> 17.90% | C5: =OFFSET(Results!$A$1,Lists!$B$133+MATCH($A5,INDIRECT(Lists!$D$133),0)-1,COLUMN()-1) -> 17.90% | D5: =OFFSET(Results!$A$1,Lists!$B$133+MATCH($A5,INDIRECT(Lists!$D$133),0)-1,COLUMN()-1) -> 19.10% | E5: =OFFSET(Results!$A$1,Lists!$B$133+MATCH($A5,INDIRECT(Lists!$D$133),0)-1,COLUMN()-1) -> 19.70% | F5: =OFFSET(Results!$A$1,Lists!$B$133+MATCH($A5,INDIRECT(Lists!$D$133),0)-1,COLUMN()-1) -> 20.20% | G5: =OFFSET(Results!$A$1,Lists!$B$133+MATCH($A5,INDIRECT(Lists!$D$133),0)-1,COLUMN()-1) -> 19.10%
A6: VeryHigh | B6: =OFFSET(Results!$A$1,Lists!$B$133+MATCH($A6,INDIRECT(Lists!$D$133),0)-1,COLUMN()-1) -> 48.30% | C6: =OFFSET(Results!$A$1,Lists!$B$133+MATCH($A6,INDIRECT(Lists!$D$133),0)-1,COLUMN()-1) -> 43.30% | D6: =OFFSET(Results!$A$1,Lists!$B$133+MATCH($A6,INDIRECT(Lists!$D$133),0)-1,COLUMN()-1) -> 24.50% | E6: =OFFSET(Results!$A$1,Lists!$B$133+MATCH($A6,INDIRECT(Lists!$D$133),0)-1,COLUMN()-1) -> 35.10% | F6: =OFFSET(Results!$A$1,Lists!$B$133+MATCH($A6,INDIRECT(Lists!$D$133),0)-1,COLUMN()-1) -> 28.90% | G6: =OFFSET(Results!$A$1,Lists!$B$133+MATCH($A6,INDIRECT(Lists!$D$133),0)-1,COLUMN()-1) -> 41.20%
A7: TUNNEL EXPOSURE
A8: None | B8: =OFFSET(Results!$A$1,Lists!$B$134+MATCH($A8,INDIRECT(Lists!$D$134),0)-1,COLUMN()-1) -> 17.20% | C8: =OFFSET(Results!$A$1,Lists!$B$134+MATCH($A8,INDIRECT(Lists!$D$134),0)-1,COLUMN()-1) -> 17.20% | D8: =OFFSET(Results!$A$1,Lists!$B$134+MATCH($A8,INDIRECT(Lists!$D$134),0)-1,COLUMN()-1) -> 17.20% | E8: =OFFSET(Results!$A$1,Lists!$B$134+MATCH($A8,INDIRECT(Lists!$D$134),0)-1,COLUMN()-1) -> 17.20% | F8: =OFFSET(Results!$A$1,Lists!$B$134+MATCH($A8,INDIRECT(Lists!$D$134),0)-1,COLUMN()-1) -> 17.20% | G8: =OFFSET(Results!$A$1,Lists!$B$134+MATCH($A8,INDIRECT(Lists!$D$134),0)-1,COLUMN()-1) -> 17.20%
A9: Low | B9: =OFFSET(Results!$A$1,Lists!$B$134+MATCH($A9,INDIRECT(Lists!$D$134),0)-1,COLUMN()-1) -> 13.10% | C9: =OFFSET(Results!$A$1,Lists!$B$134+MATCH($A9,INDIRECT(Lists!$D$134),0)-1,COLUMN()-1) -> 13.10% | D9: =OFFSET(Results!$A$1,Lists!$B$134+MATCH($A9,INDIRECT(Lists!$D$134),0)-1,COLUMN()-1) -> 13.10% | E9: =OFFSET(Results!$A$1,Lists!$B$134+MATCH($A9,INDIRECT(Lists!$D$134),0)-1,COLUMN()-1) -> 13.10% | F9: =OFFSET(Results!$A$1,Lists!$B$134+MATCH($A9,INDIRECT(Lists!$D$134),0)-1,COLUMN()-1) -> 13.10% | G9: =OFFSET(Results!$A$1,Lists!$B$134+MATCH($A9,INDIRECT(Lists!$D$134),0)-1,COLUMN()-1) -> 13.10%
A10: Medium | B10: =OFFSET(Results!$A$1,Lists!$B$134+MATCH($A10,INDIRECT(Lists!$D$134),0)-1,COLUMN()-1) -> 9.70% | C10: =OFFSET(Results!$A$1,Lists!$B$134+MATCH($A10,INDIRECT(Lists!$D$134),0)-1,COLUMN()-1) -> 9.70% | D10: =OFFSET(Results!$A$1,Lists!$B$134+MATCH($A10,INDIRECT(Lists!$D$134),0)-1,COLUMN()-1) -> 9.70% | E10: =OFFSET(Results!$A$1,Lists!$B$134+MATCH($A10,INDIRECT(Lists!$D$134),0)-1,COLUMN()-1) -> 9.70% | F10: =OFFSET(Results!$A$1,Lists!$B$134+MATCH($A10,INDIRECT(Lists!$D$134),0)-1,COLUMN()-1) -> 9.70% | G10: =OFFSET(Results!$A$1,Lists!$B$134+MATCH($A10,INDIRECT(Lists!$D$134),0)-1,COLUMN()-1) -> 9.70%
A11: High | B11: =OFFSET(Results!$A$1,Lists!$B$134+MATCH($A11,INDIRECT(Lists!$D$134),0)-1,COLUMN()-1) -> 60.10% | C11: =OFFSET(Results!$A$1,Lists!$B$134+MATCH($A11,INDIRECT(Lists!$D$134),0)-1,COLUMN()-1) -> 60.10% | D11: =OFFSET(Results!$A$1,Lists!$B$134+MATCH($A11,INDIRECT(Lists!$D$134),0)-1,COLUMN()-1) -> 60.10% | E11: =OFFSET(Results!$A$1,Lists!$B$134+MATCH($A11,INDIRECT(Lists!$D$134),0)-1,COLUMN()-1) -> 60.10% | F11: =OFFSET(Results!$A$1,Lists!$B$134+MATCH($A11,INDIRECT(Lists!$D$134),0)-1,COLUMN()-1) -> 60.10% | G11: =OFFSET(Results!$A$1,Lists!$B$134+MATCH($A11,INDIRECT(Lists!$D$134),0)-1,COLUMN()-1) -> 60.10%
A12: TUNNELLING RISK
A13: Low | B13: =OFFSET(Results!$A$1,Lists!$B$135+MATCH($A13,INDIRECT(Lists!$D$135),0)-1,COLUMN()-1) -> 16.30% | C13: =OFFSET(Results!$A$1,Lists!$B$135+MATCH($A13,INDIRECT(Lists!$D$135),0)-1,COLUMN()-1) -> 17.80% | D13: =OFFSET(Results!$A$1,Lists!$B$135+MATCH($A13,INDIRECT(Lists!$D$135),0)-1,COLUMN()-1) -> 23.40% | E13: =OFFSET(Results!$A$1,Lists!$B$135+MATCH($A13,INDIRECT(Lists!$D$135),0)-1,COLUMN()-1) -> 19.80% | F13: =OFFSET(Results!$A$1,Lists!$B$135+MATCH($A13,INDIRECT(Lists!$D$135),0)-1,COLUMN()-1) -> 21.60% | G13: =OFFSET(Results!$A$1,Lists!$B$135+MATCH($A13,INDIRECT(Lists!$D$135),0)-1,COLUMN()-1) -> 18.10%
A14: Medium | B14: =OFFSET(Results!$A$1,Lists!$B$135+MATCH($A14,INDIRECT(Lists!$D$135),0)-1,COLUMN()-1) -> 17.90% | C14: =OFFSET(Results!$A$1,Lists!$B$135+MATCH($A14,INDIRECT(Lists!$D$135),0)-1,COLUMN()-1) -> 18.60% | D14: =OFFSET(Results!$A$1,Lists!$B$135+MATCH($A14,INDIRECT(Lists!$D$135),0)-1,COLUMN()-1) -> 21.40% | E14: =OFFSET(Results!$A$1,Lists!$B$135+MATCH($A14,INDIRECT(Lists!$D$135),0)-1,COLUMN()-1) -> 19.80% | F14: =OFFSET(Results!$A$1,Lists!$B$135+MATCH($A14,INDIRECT(Lists!$D$135),0)-1,COLUMN()-1) -> 20.70% | G14: =OFFSET(Results!$A$1,Lists!$B$135+MATCH($A14,INDIRECT(Lists!$D$135),0)-1,COLUMN()-1) -> 18.90%
A15: High | B15: =OFFSET(Results!$A$1,Lists!$B$135+MATCH($A15,INDIRECT(Lists!$D$135),0)-1,COLUMN()-1) -> 19.20% | C15: =OFFSET(Results!$A$1,Lists!$B$135+MATCH($A15,INDIRECT(Lists!$D$135),0)-1,COLUMN()-1) -> 19.70% | D15: =OFFSET(Results!$A$1,Lists!$B$135+MATCH($A15,INDIRECT(Lists!$D$135),0)-1,COLUMN()-1) -> 21.70% | E15: =OFFSET(Results!$A$1,Lists!$B$135+MATCH($A15,INDIRECT(Lists!$D$135),0)-1,COLUMN()-1) -> 20.60% | F15: =OFFSET(Results!$A$1,Lists!$B$135+MATCH($A15,INDIRECT(Lists!$D$135),0)-1,COLUMN()-1) -> 21.20% | G15: =OFFSET(Results!$A$1,Lists!$B$135+MATCH($A15,INDIRECT(Lists!$D$135),0)-1,COLUMN()-1) -> 19.90%
A16: VeryHigh | B16: =OFFSET(Results!$A$1,Lists!$B$135+MATCH($A16,INDIRECT(Lists!$D$135),0)-1,COLUMN()-1) -> 46.70% | C16: =OFFSET(Results!$A$1,Lists!$B$135+MATCH($A16,INDIRECT(Lists!$D$135),0)-1,COLUMN()-1) -> 43.80% | D16: =OFFSET(Results!$A$1,Lists!$B$135+MATCH($A16,INDIRECT(Lists!$D$135),0)-1,COLUMN()-1) -> 33.50% | E16: =OFFSET(Results!$A$1,Lists!$B$135+MATCH($A16,INDIRECT(Lists!$D$135),0)-1,COLUMN()-1) -> 39.90% | F16: =OFFSET(Results!$A$1,Lists!$B$135+MATCH($A16,INDIRECT(Lists!$D$135),0)-1,COLUMN()-1) -> 36.50% | G16: =OFFSET(Results!$A$1,Lists!$B$135+MATCH($A16,INDIRECT(Lists!$D$135),0)-1,COLUMN()-1) -> 43.10%
A17: mean | B17: =OFFSET(Results!$A$1,Lists!$B$135+MATCH($A17,INDIRECT(Lists!$D$135),0)-1,COLUMN()-1)/100 -> 61.56% | C17: =OFFSET(Results!$A$1,Lists!$B$135+MATCH($A17,INDIRECT(Lists!$D$135),0)-1,COLUMN()-1)/100 -> 59.87% | D17: =OFFSET(Results!$A$1,Lists!$B$135+MATCH($A17,INDIRECT(Lists!$D$135),0)-1,COLUMN()-1)/100 -> 53.85% | E17: =OFFSET(Results!$A$1,Lists!$B$135+MATCH($A17,INDIRECT(Lists!$D$135),0)-1,COLUMN()-1)/100 -> 57.64% | F17: =OFFSET(Results!$A$1,Lists!$B$135+MATCH($A17,INDIRECT(Lists!$D$135),0)-1,COLUMN()-1)/100 -> 55.65% | G17: =OFFSET(Results!$A$1,Lists!$B$135+MATCH($A17,INDIRECT(Lists!$D$135),0)-1,COLUMN()-1)/100 -> 59.50%
A18: Minimum | B18: =MIN($B17:$H17) -> 53.85% | C18: 53.85% | D18: 53.85% | E18: 53.85% | F18: 53.85% | G18: 53.85%
A19: Ratio | B19: =IF(B18="","",B17/B18) -> 1.14 | C19: =IF(C18="","",C17/C18) -> 1.11 | D19: 1.00 | E19: 1.07 | F19: 1.03 | G19: 1.10
A21: Scenario | B21: =IF(Results!B1>0,Results!B1,"") -> Scenario 01 | C21: =IF(Results!C1>0,Results!C1,"") -> Scenario 02 | D21: =IF(Results!D1>0,Results!D1,"") -> Scenario 03 | E21: =IF(Results!E1>0,Results!E1,"") -> Scenario 04 | F21: =IF(Results!F1>0,Results!F1,"") -> Scenario 05 | G21: =IF(Results!G1>0,Results!G1,"") -> Scenario 06
A22: LAYER 1 VULNERABILITY
A23: Low | B23: =OFFSET(Results!$A$1,Lists!$B$136+MATCH($A23,INDIRECT(Lists!$D$136),0)-1,COLUMN()-1) -> 11.50% | C23: =OFFSET(Results!$A$1,Lists!$B$136+MATCH($A23,INDIRECT(Lists!$D$136),0)-1,COLUMN()-1) -> 14.80% | D23: =OFFSET(Results!$A$1,Lists!$B$136+MATCH($A23,INDIRECT(Lists!$D$136),0)-1,COLUMN()-1) -> 33.00% | E23: =OFFSET(Results!$A$1,Lists!$B$136+MATCH($A23,INDIRECT(Lists!$D$136),0)-1,COLUMN()-1) -> 20.90% | F23: =OFFSET(Results!$A$1,Lists!$B$136+MATCH($A23,INDIRECT(Lists!$D$136),0)-1,COLUMN()-1) -> 24.50% | G23: =OFFSET(Results!$A$1,Lists!$B$136+MATCH($A23,INDIRECT(Lists!$D$136),0)-1,COLUMN()-1) -> 15.90%
A24: Moderate | B24: =OFFSET(Results!$A$1,Lists!$B$136+MATCH($A24,INDIRECT(Lists!$D$136),0)-1,COLUMN()-1) -> 19.00% | C24: =OFFSET(Results!$A$1,Lists!$B$136+MATCH($A24,INDIRECT(Lists!$D$136),0)-1,COLUMN()-1) -> 20.20% | D24: =OFFSET(Results!$A$1,Lists!$B$136+MATCH($A24,INDIRECT(Lists!$D$136),0)-1,COLUMN()-1) -> 26.50% | E24: =OFFSET(Results!$A$1,Lists!$B$136+MATCH($A24,INDIRECT(Lists!$D$136),0)-1,COLUMN()-1) -> 25.20% | F24: =OFFSET(Results!$A$1,Lists!$B$136+MATCH($A24,INDIRECT(Lists!$D$136),0)-1,COLUMN()-1) -> 27.10% | G24: =OFFSET(Results!$A$1,Lists!$B$136+MATCH($A24,INDIRECT(Lists!$D$136),0)-1,COLUMN()-1) -> 22.80%
A25: High | B25: =OFFSET(Results!$A$1,Lists!$B$136+MATCH($A25,INDIRECT(Lists!$D$136),0)-1,COLUMN()-1) -> 24.50% | C25: =OFFSET(Results!$A$1,Lists!$B$136+MATCH($A25,INDIRECT(Lists!$D$136),0)-1,COLUMN()-1) -> 22.90% | D25: =OFFSET(Results!$A$1,Lists!$B$136+MATCH($A25,INDIRECT(Lists!$D$136),0)-1,COLUMN()-1) -> 23.70% | E25: =OFFSET(Results!$A$1,Lists!$B$136+MATCH($A25,INDIRECT(Lists!$D$136),0)-1,COLUMN()-1) -> 26.40% | F25: =OFFSET(Results!$A$1,Lists!$B$136+MATCH($A25,INDIRECT(Lists!$D$136),0)-1,COLUMN()-1) -> 27.50% | G25: =OFFSET(Results!$A$1,Lists!$B$136+MATCH($A25,INDIRECT(Lists!$D$136),0)-1,COLUMN()-1) -> 26.10%
A26: VeryHigh | B26: =OFFSET(Results!$A$1,Lists!$B$136+MATCH($A26,INDIRECT(Lists!$D$136),0)-1,COLUMN()-1) -> 45.00% | C26: =OFFSET(Results!$A$1,Lists!$B$136+MATCH($A26,INDIRECT(Lists!$D$136),0)-1,COLUMN()-1) -> 42.10% | D26: =OFFSET(Results!$A$1,Lists!$B$136+MATCH($A26,INDIRECT(Lists!$D$136),0)-1,COLUMN()-1) -> 16.80% | E26: =OFFSET(Results!$A$1,Lists!$B$136+MATCH($A26,INDIRECT(Lists!$D$136),0)-1,COLUMN()-1) -> 27.50% | F26: =OFFSET(Results!$A$1,Lists!$B$136+MATCH($A26,INDIRECT(Lists!$D$136),0)-1,COLUMN()-1) -> 20.90% | G26: =OFFSET(Results!$A$1,Lists!$B$136+MATCH($A26,INDIRECT(Lists!$D$136),0)-1,COLUMN()-1) -> 35.10%
A27: SURFACE GULLYING EXPOSURE
A28: Nil | B28: =OFFSET(Results!$A$1,Lists!$B$137+MATCH($A28,INDIRECT(Lists!$D$137),0)-1,COLUMN()-1) -> 50.80% | C28: =OFFSET(Results!$A$1,Lists!$B$137+MATCH($A28,INDIRECT(Lists!$D$137),0)-1,COLUMN()-1) -> 16.40% | D28: =OFFSET(Results!$A$1,Lists!$B$137+MATCH($A28,INDIRECT(Lists!$D$137),0)-1,COLUMN()-1) -> 81.00% | E28: =OFFSET(Results!$A$1,Lists!$B$137+MATCH($A28,INDIRECT(Lists!$D$137),0)-1,COLUMN()-1) -> 81.00% | F28: =OFFSET(Results!$A$1,Lists!$B$137+MATCH($A28,INDIRECT(Lists!$D$137),0)-1,COLUMN()-1) -> 81.00% | G28: =OFFSET(Results!$A$1,Lists!$B$137+MATCH($A28,INDIRECT(Lists!$D$137),0)-1,COLUMN()-1) -> 81.00%
A29: Low | B29: =OFFSET(Results!$A$1,Lists!$B$137+MATCH($A29,INDIRECT(Lists!$D$137),0)-1,COLUMN()-1) -> 21.70% | C29: =OFFSET(Results!$A$1,Lists!$B$137+MATCH($A29,INDIRECT(Lists!$D$137),0)-1,COLUMN()-1) -> 25.60% | D29: =OFFSET(Results!$A$1,Lists!$B$137+MATCH($A29,INDIRECT(Lists!$D$137),0)-1,COLUMN()-1) -> 9.10% | E29: =OFFSET(Results!$A$1,Lists!$B$137+MATCH($A29,INDIRECT(Lists!$D$137),0)-1,COLUMN()-1) -> 9.10% | F29: =OFFSET(Results!$A$1,Lists!$B$137+MATCH($A29,INDIRECT(Lists!$D$137),0)-1,COLUMN()-1) -> 9.10% | G29: =OFFSET(Results!$A$1,Lists!$B$137+MATCH($A29,INDIRECT(Lists!$D$137),0)-1,COLUMN()-1) -> 9.10%
A30: Moderate | B30: =OFFSET(Results!$A$1,Lists!$B$137+MATCH($A30,INDIRECT(Lists!$D$137),0)-1,COLUMN()-1) -> 18.30% | C30: =OFFSET(Results!$A$1,Lists!$B$137+MATCH($A30,INDIRECT(Lists!$D$137),0)-1,COLUMN()-1) -> 26.20% | D30: =OFFSET(Results!$A$1,Lists!$B$137+MATCH($A30,INDIRECT(Lists!$D$137),0)-1,COLUMN()-1) -> 6.30% | E30: =OFFSET(Results!$A$1,Lists!$B$137+MATCH($A30,INDIRECT(Lists!$D$137),0)-1,COLUMN()-1) -> 6.30% | F30: =OFFSET(Results!$A$1,Lists!$B$137+MATCH($A30,INDIRECT(Lists!$D$137),0)-1,COLUMN()-1) -> 6.30% | G30: =OFFSET(Results!$A$1,Lists!$B$137+MATCH($A30,INDIRECT(Lists!$D$137),0)-1,COLUMN()-1) -> 6.30%
A31: High | B31: =OFFSET(Results!$A$1,Lists!$B$137+MATCH($A31,INDIRECT(Lists!$D$137),0)-1,COLUMN()-1) -> 9.20% | C31: =OFFSET(Results!$A$1,Lists!$B$137+MATCH($A31,INDIRECT(Lists!$D$137),0)-1,COLUMN()-1) -> 31.80% | D31: =OFFSET(Results!$A$1,Lists!$B$137+MATCH($A31,INDIRECT(Lists!$D$137),0)-1,COLUMN()-1) -> 3.70% | E31: =OFFSET(Results!$A$1,Lists!$B$137+MATCH($A31,INDIRECT(Lists!$D$137),0)-1,COLUMN()-1) -> 3.70% | F31: =OFFSET(Results!$A$1,Lists!$B$137+MATCH($A31,INDIRECT(Lists!$D$137),0)-1,COLUMN()-1) -> 3.70% | G31: =OFFSET(Results!$A$1,Lists!$B$137+MATCH($A31,INDIRECT(Lists!$D$137),0)-1,COLUMN()-1) -> 3.70%
A32: SURFACE EROSION RISK
A33: Low | B33: =OFFSET(Results!$A$1,Lists!$B$138+MATCH($A33,INDIRECT(Lists!$D$138),0)-1,COLUMN()-1) -> 29.20% | C33: =OFFSET(Results!$A$1,Lists!$B$138+MATCH($A33,INDIRECT(Lists!$D$138),0)-1,COLUMN()-1) -> 20.20% | D33: =OFFSET(Results!$A$1,Lists!$B$138+MATCH($A33,INDIRECT(Lists!$D$138),0)-1,COLUMN()-1) -> 55.40% | E33: =OFFSET(Results!$A$1,Lists!$B$138+MATCH($A33,INDIRECT(Lists!$D$138),0)-1,COLUMN()-1) -> 46.60% | F33: =OFFSET(Results!$A$1,Lists!$B$138+MATCH($A33,INDIRECT(Lists!$D$138),0)-1,COLUMN()-1) -> 50.30% | G33: =OFFSET(Results!$A$1,Lists!$B$138+MATCH($A33,INDIRECT(Lists!$D$138),0)-1,COLUMN()-1) -> 41.80%
A34: Medium | B34: =OFFSET(Results!$A$1,Lists!$B$138+MATCH($A34,INDIRECT(Lists!$D$138),0)-1,COLUMN()-1) -> 24.80% | C34: =OFFSET(Results!$A$1,Lists!$B$138+MATCH($A34,INDIRECT(Lists!$D$138),0)-1,COLUMN()-1) -> 21.60% | D34: =OFFSET(Results!$A$1,Lists!$B$138+MATCH($A34,INDIRECT(Lists!$D$138),0)-1,COLUMN()-1) -> 19.60% | E34: =OFFSET(Results!$A$1,Lists!$B$138+MATCH($A34,INDIRECT(Lists!$D$138),0)-1,COLUMN()-1) -> 22.70% | F34: =OFFSET(Results!$A$1,Lists!$B$138+MATCH($A34,INDIRECT(Lists!$D$138),0)-1,COLUMN()-1) -> 21.60% | G34: =OFFSET(Results!$A$1,Lists!$B$138+MATCH($A34,INDIRECT(Lists!$D$138),0)-1,COLUMN()-1) -> 24.30%
A35: High | B35: =OFFSET(Results!$A$1,Lists!$B$138+MATCH($A35,INDIRECT(Lists!$D$138),0)-1,COLUMN()-1) -> 23.20% | C35: =OFFSET(Results!$A$1,Lists!$B$138+MATCH($A35,INDIRECT(Lists!$D$138),0)-1,COLUMN()-1) -> 22.20% | D35: =OFFSET(Results!$A$1,Lists!$B$138+MATCH($A35,INDIRECT(Lists!$D$138),0)-1,COLUMN()-1) -> 14.90% | E35: =OFFSET(Results!$A$1,Lists!$B$138+MATCH($A35,INDIRECT(Lists!$D$138),0)-1,COLUMN()-1) -> 18.30% | F35: =OFFSET(Results!$A$1,Lists!$B$138+MATCH($A35,INDIRECT(Lists!$D$138),0)-1,COLUMN()-1) -> 16.70% | G35: =OFFSET(Results!$A$1,Lists!$B$138+MATCH($A35,INDIRECT(Lists!$D$138),0)-1,COLUMN()-1) -> 20.20%
A36: VeryHigh | B36: =OFFSET(Results!$A$1,Lists!$B$138+MATCH($A36,INDIRECT(Lists!$D$138),0)-1,COLUMN()-1) -> 22.80% | C36: =OFFSET(Results!$A$1,Lists!$B$138+MATCH($A36,INDIRECT(Lists!$D$138),0)-1,COLUMN()-1) -> 35.90% | D36: =OFFSET(Results!$A$1,Lists!$B$138+MATCH($A36,INDIRECT(Lists!$D$138),0)-1,COLUMN()-1) -> 10.10% | E36: =OFFSET(Results!$A$1,Lists!$B$138+MATCH($A36,INDIRECT(Lists!$D$138),0)-1,COLUMN()-1) -> 12.40% | F36: =OFFSET(Results!$A$1,Lists!$B$138+MATCH($A36,INDIRECT(Lists!$D$138),0)-1,COLUMN()-1) -> 11.30% | G36: =OFFSET(Results!$A$1,Lists!$B$138+MATCH($A36,INDIRECT(Lists!$D$138),0)-1,COLUMN()-1) -> 13.70%
A37: mean | B37: =OFFSET(Results!$A$1,Lists!$B$138+MATCH($A37,INDIRECT(Lists!$D$138),0)-1,COLUMN()-1)/100 -> 47.39% | C37: =OFFSET(Results!$A$1,Lists!$B$138+MATCH($A37,INDIRECT(Lists!$D$138),0)-1,COLUMN()-1)/100 -> 55.97% | D37: =OFFSET(Results!$A$1,Lists!$B$138+MATCH($A37,INDIRECT(Lists!$D$138),0)-1,COLUMN()-1)/100 -> 32.40% | E37: =OFFSET(Results!$A$1,Lists!$B$138+MATCH($A37,INDIRECT(Lists!$D$138),0)-1,COLUMN()-1)/100 -> 36.63% | F37: =OFFSET(Results!$A$1,Lists!$B$138+MATCH($A37,INDIRECT(Lists!$D$138),0)-1,COLUMN()-1)/100 -> 34.77% | G37: =OFFSET(Results!$A$1,Lists!$B$138+MATCH($A37,INDIRECT(Lists!$D$138),0)-1,COLUMN()-1)/100 -> 38.98%
A38: Minimum | B38: =MIN($B37:$H37) -> 32.40% | C38: 32.40% | D38: 32.40% | E38: 32.40% | F38: 32.40% | G38: 32.40%
A39: Ratio | B39: =IF(B38="","",B37/B38) -> 1.46 | C39: =IF(C38="","",C37/C38) -> 1.73 | D39: 1.00 | E39: 1.13 | F39: 1.07 | G39: 1.20
B42: =IF(Results!B1>0,Results!B1,"") -> Scenario 01 | C42: =IF(Results!C1>0,Results!C1,"") -> Scenario 02 | D42: =IF(Results!D1>0,Results!D1,"") -> Scenario 03 | E42: =IF(Results!E1>0,Results!E1,"") -> Scenario 04 | F42: =IF(Results!F1>0,Results!F1,"") -> Scenario 05 | G42: =IF(Results!G1>0,Results!G1,"") -> Scenario 06
A43: Relative tunnelling risk ratio | B43: =B19 -> 1.14 | C43: =C19 -> 1.11 | D43: =D19 -> 1.00 | E43: 1.07 | F43: 1.03 | G43: 1.10
A44: Relative surface gullying risk ratio | B44: =B39 -> 1.46 | C44: =C39 -> 1.73 | D44: 1.00 | E44: 1.13 | F44: 1.07 | G44: 1.20
